{"text_format":"2","workbook":"xlsx","n_sheets":13,"sheets":["прил 1 (2013 доходы)","прил 2 (2014-2015)","прил3 (админ)","прил4","прил5","прил6","прил7","прил8","прил9","прил10","прил18источн2013","прил19источ 2014-2015)","Лист1"],"not_rendered":{"charts":0,"images":0,"macros":0,"external_links":0,"defined_names":23,"comments":0,"pivot_tables":0},"unopened":[],"bounds":{"document_bytes":16777216,"sheet_cells":100000,"run_cost":"one","rows_first":2000,"rows_last":500,"rows_between":2000,"halvings":0,"cell_chars":16384,"cell_head_chars":4096},"cells_cut":0,"cells_raw":0,"read":"whole","date_system":"1900"}

{"sheet":"прил 1 (2013 доходы)","index":0,"n_rows":144,"n_cols":6,"rows_kept":144,"cut":false,"hidden":false,"merged":[[72,6,72,15],[74,6,74,11],[5,0,6,4],[8,0,9,0],[8,1,8,2],[8,3,9,3],[8,4,9,4],[8,5,9,5]]}
[]
[]
[]
[]
[]
["Прогнозируемые доходы бюджета Черемховского районного муниципального образования на 2013 год  "]
[]
[{"$nulls":4},"(тыс. рублей)"]
["Наименование","Код бюджетной классификации",null,"Прогноз на 2013 год (перв)","Прогноз на 2013 год ","ОТК"]
[null,"главного администратора доходов","доходов районного бюджета"]
["НАЛОГОВЫЕ И НЕНАЛОГОВЫЕ ДОХОДЫ","000","1 00 00000 00 0000 000",{"$f":"D12+D17+D27+D31+D35+D40+D46+D53+D58+D81","v":81236.930000000008},{"$f":"E12+E17+E27+E31+E35+E40+E46+E53+E58+E81","v":87014.12999999999},{"$f":"E11-D11","v":5777.1999999999825}]
["НАЛОГИ НА ПРИБЫЛЬ, ДОХОДЫ","182","1 01 00000 00 0000 000",{"$f":"D13+D14+D15+D16","v":50023.7},53100,{"$f":"E12-D12","v":3076.3000000000029}]
["Налог на доходы физических лиц с доходов, источником которых является налоговый агент, за исключением доходов, в отношении которых исчисление и уплата налога осуществляются в соответствии со статьями 227,227¹ и 228 Налогового кодекса Российской Федерации","182","1 01 02010 01 0000 110",49835.4,{"$f":"49835.4+3000","v":52835.4},3000]
["Налог на доходы физических лиц с доходов, полученных от осуществления деятельности физическими лицами,зарегистрированными в качестве индивидуальных предпринимателей,нотариусов,занимающихся частной практикой,адвокатов,учредивших адвокатские кабинеты и других лиц, занимающихся частной практикой","182","1 01 02020 01 0000 110",53.1,129.4,76.300000000000011]
["Налог на доходы физических лиц с доходов,  полученных физическими лицами, не являющимися налоговыми резидентами ","182","1 01 02030 01 0000 110",131.69999999999999,131.69999999999999,0]
["Налог на доходы физических лиц в виде фиксированных авансовых платежей с доходов, полученных физическими лицами, являющимися иностранными гражданами, осуществляющими трудовую деятельность по найму у физических лиц на основании патента ","182","1 01 02040 01 0000 110",3.5,3.5,0]
["НАЛОГИ НА СОВОКУПНЫЙ ДОХОД","182","1 05 00000 00 0000 000",{"$f":"D18+D24+D25+D26","v":9179.2999999999993},{"$f":"E18+E24+E25+E26","v":9300.4},121.10000000000036]
["Налог, взимаемый в связи с применением упрощенной системы налогообложения ","182","1 05 01000 00 0000 110",{"$f":"D19+D20+D21+D22","v":3770.3999999999996},{"$f":"E19+E20+E21+E22","v":3770.3999999999996},0]
["Налог, взимаемый с налогоплательщиков, выбравших в качестве объекта налогообложения  доходы","182","1 05 01010 01 0000 110",1487,1487,0]
["Налог, взимаемый с налогоплательщиков, выбравших в качестве объекта налогообложения доходы, уменьшенные на величину расходов","182","1 05 01020 01 0000 110",1540,1540,0]
["Налог, взимаемый с налогоплательщиков, выбравших в качестве объекта налогообложения доходы, уменьшенные на величину расходов (за налоговые периоды, истекшие до 1 января 2011 года)","182","1 05 01022 01 0000 110",106.2,106.2,0]
["Минимальный налог, зачисляемый в бюджеты субьектов РФ","182","1 05 01050 01 0000 110",637.20000000000005,637.20000000000005,0]
["Налог, взимаемый в связи с применением патентной системы налогообложения","182",null,0,0,0]
["Единый налог на вмененный доход для отдельных видов деятельности","182","1 05 02000 02 0000 110",5310,5310,0]
["Единый сельскохозяйственный налог ","182","1 05 03000 01 0000 110",98.9,210,111.1]
["Налог, взимаемый в связи с применением патентной системы налогообложения","182","1 05 04000 01 0000 110",0,10,10]
["ГОСУДАРСТВЕННАЯ ПОШЛИНА","000","1 08 00000 00 0000 000",{"$f":"D28+D29+D30","v":988},1028,40]
["Государственная пошлина по делам, рассматриваемым в судах общей юрисдикции, мировыми судьями (за исключением Верховного Суда Российской Федерации)","182","1 08 03010 01 0000 110",308,308,0]
["Государственная пошлина за совершение действий, связанных с лицензированием, с проведением аттестации в случаях, если такая аттестация предусмотрена законодательством Российской Федерации, зачисляемая в бюджеты муниципальных районов","917","1 08 07084 01 1000 110",680,720,40]
["Государственная пошлина за государственную регистрацию транспортных средств и иные юридически значимые действия, связанные с изменениями и выдачей документов на транспортные средства, выдачей регистрационных знаков, приемом квалификационных экзаменов на получение права на управление транспортными средствами","000","1 08 07141 01 0000 110",null,null,0]
["ЗАДОЛЖЕННОСТЬ И ПЕРЕРАСЧЕТЫ ПО ОТМЕНЕННЫМ НАЛОГАМ, СБОРАМ И ИНЫМ ОБЯЗАТЕЛЬНЫМ ПЛАТЕЖАМ","182","1 09 00000 00 0000 000",{"$f":"D33+D34+D32","v":1},{"$f":"E33+E34+E32","v":2},1]
["Налог на прибыль организаций, зачислявшийся до 1 января 2005 года в местные бюджеты","182","1 09 01030 05 0000 110",0,0.05,0.05]
["Налог на имущество предприятий","182","1 09 04010 02 0000 110",0.5,0.45,-4.9999999999999989E-2]
["Налог с продаж","182","1 09 06010 02 0000 110",0.5,1.5,1]
["ДОХОДЫ ОТ ИСПОЛЬЗОВАНИЯ ИМУЩЕСТВА, НАХОДЯЩЕГОСЯ В ГОСУДАРСТВЕННОЙ И МУНИЦИПАЛЬНОЙ СОБСТВЕННОСТИ","000","1 11 00000 00 0000 000",{"$f":"D36+D39","v":9990},9990,0]
["Доходы, получаемые в виде арендной  платы за земельные участки,государственная собственность на которые не разграничена и которые расположеныв границах поселений, а также средства от продажи права на заключение договоров аренды указанных земельных участков","000","1 11 05013 10 0000 120",{"$f":"D37+D38","v":5090},5090,0]
["Доходы, получаемые в виде арендной платы за земельные участки, государственная собственность на которые не разграничена и которые расположены в границах поселений, а также средства от продажи права на заключение договоров аренды указанных земельных участков","913","1 11 05013 10 0000 120",4340,4340,0]
["Доходы, получаемые в виде арендной  платы за земельные участки,государственная собственность на которые не разграничена и которые расположеныв границах поселений, а также средства от продажи права на заключение договоров аренды указанных земельных участков","950","1 11 05013 10 0000 120",750,750,0]
["Доходы от сдачи в аренду имущества, находящегося в оперативном управлении органов управления муниципальных районов и созданных ими учреждений (за исключением имущества муниципальных автономных учреждений)","913","1 11 05035 05 0000 120",4900,4900,0]
["ПЛАТЕЖИ ПРИ ПОЛЬЗОВАНИИ ПРИРОДНЫМИ РЕСУРСАМИ","048","1 12 00000 00 0000 000",{"$f":"D41","v":179.13},179.13,0]
["Плата за негативное воздействие на окружающую среду","048","1 12 01000 01 0000 120",{"$f":"D42+D43+D45+D44","v":179.13},{"$f":"E42+E43+E45+E44","v":179.13},0]
["Плата за выбросы загрязняющих веществ в атмосферный воздух стационарными объектами ","048","1 12 01010 01 0000 120",94.9,72.900000000000006,-22]
["Плата за выбросы загрязняющих веществ в атмосферный воздух передвижными объектами","048","1 12 01020 01 0000 120",17.93,60,42.07]
["Плата за сбросы загрязняющих веществ в водные объекты","048","1 12 01030 01 0000 120",0,2.4700000000000002,2.4700000000000002]
["Плата за размещение отходов производства и потребления","048","1 12 01040 01 0000 120",66.3,43.76,-22.54]
["ДОХОДЫ ОТ ОКАЗАНИЯ ПЛАТНЫХ УСЛУГ И КОМПЕНСАЦИИ ЗАТРАТ ГОСУДАРСТВА","000","1 13 00000 00 0000 000",{"$f":"D47+D48","v":7394},7394,0]
["Прочие доходы от оказания платных услуг (работ) получателями средств бюджетов муниципальных районов","907","113 01995 05 0000 130",7070,7070,0]
["Прочие доходы от оказания платных услуг (работ) получателями средств бюджетов муниципальных районов ","904","113 01995 05 0000 130",{"$f":"D49+D50+D51+D52","v":324},324,0]
["Прочие доходы от оказания платных услуг (работ) получателями средств бюджетов муниципальных районов (МКУК МКЦ АЧРМО)","000","113 01995 05 0000 130",55,55,0]
["Прочие доходы от оказания платных услуг (работ) получателями средств бюджетов муниципальных районов (МКУК РИК МУЗЕЙ)","000","113 01995 05 0000 130",21,21,0]
["Прочие доходы от оказания платных услуг (работ) получателями средств бюджетов муниципальных районов (МКУК МБЧР)","000","113 01995 05 0000 130",26,26,0]
["Прочие доходы от оказания платных услуг (работ) получателями средств бюджетов муниципальных районов (МКОУ ДОД ДШИ)","000","113 01995 05 0000 130",222,222,0]
["ДОХОДЫ ОТ ПРОДАЖИ МАТЕРИАЛЬНЫХ И НЕМАТЕРИАЛЬНЫХ АКТИВОВ","913","1 14 00000 00 0000 000",{"$f":"D54+D56","v":2669.3},4900,2230.6999999999998]
["Доходы от реализации имущества, находящегося в государственной и муниципальной собственности (за исключением имущества автономных учреждений, а также имущества государственных и муниципальных унитарных предприятий, в том числе казенных)","913","1 14 02000 00 0000 000",{"$f":"D55","v":2600},2600,0]
["Доходы от реализации иного имущества, находящегося в собственности муниципальных районов (за исключением имущества муниципальных автономных учреждений, а также имущества муниципальных унитарных предприятий, в том числе казенных), в части реализации основных средств по указанному имуществу","913","1 14 02053 05 0000 410",2600,2600,0]
["Доходы от продажи земельных участков, находящихся в  государственной и муниципальной собственности (за исключением земельных участков автономных учреждений)","913","1 14 06000 00 0000 430",{"$f":"D57","v":69.3},2300,2230.6999999999998]
["Доходы от продажи земельных участков, государственная собственность на которые не разграничена и которые расположены в границах поселений","913","1 14 06013 10 0000 430",69.3,2300,2230.6999999999998]
["ШТРАФЫ, САНКЦИИ, ВОЗМЕЩЕНИЕ УЩЕРБА","000","1 16 00000 00 0000 000",{"$f":"D59+D61+D62+D67+D71+D70+D60+D66","v":512.5},{"$f":"E59+E61+E62+E67+E71+E70+E60+E66","v":514.20000000000005},1.7000000000000455]
["Денежные взыскания (штрафы) за нарушение законодательства о налогах и сборах","182","1 16 03000 01 0000 140",39,39,0]
["Денежные взыскания (штрафы) за нарушение  законодательства о применении контрольно-кассовой техники при осуществлении наличных денежных расчетов и (или) расчетов с использованием платежных карт","182","1 16 06000 01 0000 140",0,1.2,1.2]
["Денежные взыскания (штрафы) за административные правонарушения в области государственного регулирования производства и оборота этилового спирта, алкогольной и спиртосодержащей продукции","000","1 16 08000 01 0000 140",3.2,3.2,0]
["Денежные взыскания (штрафы) за нарушение законодательства о недрах, об особо охраняемых природных территориях, об охране и использовании животного мира, об экологической экспертизе, в области охраны окружающей среды, земельного законодательства","000","1 16 25000 01 0000 140",{"$f":"D64+D65+D63","v":37},37,0]
["Денежные взыскания (штрафы) за нарушение законодательства о недрах","000","1 16 25010 01 6000 140",1,1,0]
["Денежные взыскания (штрафы) за нарушение законодательства об охране и использовании животного мира","815","1 16 25030 01 6000 140",35,35,0]
["Денежные взыскания (штрафы) за нарушение земельного законодательства","081","1 16 25060 01 6000 140",1,1,0]
["Денежные взыскания (штрафы) за нарушение законодательства в области обеспечения санитарно-эпидемиологического благополучия человека и законодательства в сфере защиты прав потребителей","141","1 16 28000 01 6000 140",0,0.5,0.5]
["Денежные взыскания (штрафы) за правонарушения в области дорожного движения","000","1 16 30000 01 0000 140",{"$f":"D68+D69","v":31.7},31.7,0]
["Денежные взыскания (штрафы) за административные правонарушения в области дорожного движения","188","1 16 30014 01 0000 140",2.7,2.7,0]
["Прочие денежные взыскания (штрафы) за административные правонарушения в области дорожного движения","188","1 16 30030 01 0000 140",29,29,0]
["Денежные взыскания (штрафы) за нарушение законодательства РФ об административных правонарушениях, предусмотренные статьей 20.25 Кодекса РФ об административных правонарушений","188","1 16 43000 01 0000 140",2.2000000000000002,2.2000000000000002,0]
["Прочие поступления от денежных взысканий (штрафов) и иных сумм в возмещение ущерба, зачисляемые в бюджеты муниципальных районов","000","1 16 90050 05 0000 140",{"$f":"D72+D73+D74+D75+D76+D77+D79+D80+D78","v":399.4},{"$f":"E72+E73+E74+E75+E76+E77+E79+E80+E78","v":399.4},0]
["Прочие поступления от денежных взысканий (штрафов) и иных сумм в возмещение ущерба, зачисляемые в бюджеты муниципальных районов","081","1 16 90050 05 0000 140",15,15,0]
["Прочие поступления от денежных взысканий (штрафов) и иных сумм в возмещение ущерба, зачисляемые в бюджеты муниципальных районов","177","1 16 90050 05 0000 140",38,38,0]
["Прочие поступления от денежных взысканий (штрафов) и иных сумм в возмещение ущерба, зачисляемые в бюджеты муниципальных районов","188","1 16 90050 05 0000 140",59,59,0]
["Прочие поступления от денежных взысканий (штрафов) и иных сумм в возмещение ущерба, зачисляемые в бюджеты муниципальных районов","192","1 16 90050 05 0000 140",170,100.4,-69.599999999999994]
["Прочие поступления от денежных взысканий (штрафов) и иных сумм в возмещение ущерба, зачисляемые в бюджеты муниципальных районов","415","1 16 90050 05 0000 140",60,60,0]
["Прочие поступления от денежных взысканий (штрафов) и иных сумм в возмещение ущерба, зачисляемые в бюджеты муниципальных районов","809","1 16 90050 05 0000 140",50,60,10]
["Прочие поступления от денежных взысканий (штрафов) и иных сумм в возмещение ущерба, зачисляемые в бюджеты муниципальных районов","815","1 16 90050 05 0000 140",0,20,20]
["Прочие поступления от денежных взысканий (штрафов) и иных сумм в возмещение ущерба, зачисляемые в бюджеты муниципальных районов","917","1 16 90050 05 0000 140",7.4,12,4.5999999999999996]
["Прочие поступления от денежных взысканий (штрафов) и иных сумм в возмещение ущерба, зачисляемые в бюджеты муниципальных районов","918","1 16 90050 05 0000 140",0,35,35]
["ПРОЧИЕ НЕНАЛОГОВЫЕ ДОХОДЫ","000","1 17 00000 00 0000 000",{"$f":"D82+D83","v":300},606.4,306.39999999999998]
["Невыясненные поступления","000","1 17 01000 00 0000 180",0,0,0]
["Прочие неналоговые доходы","000","1 17 05000 00 0000 180",{"$f":"D84+D85+D86","v":300},{"$f":"E84+E85+E86","v":606.4},{"$f":"E83-D83","v":306.39999999999998}]
["Прочие неналоговые доходы","907","1 17 05000 00 0000 180",0,3,3]
["Прочие неналоговые доходы","917","1 17 05000 00 0000 180",300,600,300]
["Прочие неналоговые доходы","904","1 17 05000 00 0000 180",0,3.4,3.4]
["БЕЗВОЗМЕЗДНЫЕ ПОСТУПЛЕНИЯ","000","2 00 00000 00 0000 000",{"$f":"D88+D136+D140+D138","v":398931.90114999999},{"$f":"E88+E136+E140+E138","v":510007.50115000003},111075.60000000003]
["БЕЗВОЗМЕЗДНЫЕ ПОСТУПЛЕНИЯ ИЗ ДРУГИХ БЮДЖЕТОВ БЮДЖЕТНОЙ СИСТЕМЫ РФ","000","2 02 00000 00 0000 151",{"$f":"D89+D92+D107+D123","v":399119.82506999996},{"$f":"E89+E92+E107+E123","v":509195.42507},110075.60000000003]
["ДОТАЦИИ БЮДЖЕТАМ МУНИЦИПАЛЬНЫХ ОБРАЗОВАНИЙ","000","2 02 01000 00 0000 151",{"$f":"D90+D91","v":124989},125656,667]
["Дотации муниципальным районам на выравнивание уровня бюджетной  обеспеченности","910","2 02 01001 05 0000 151",124989,124989,0]
["Дотации муниципальным районам на поддержку мер  по обеспечению сбалансированности  бюджетов","910","2 02 01003 05 0000 151",0,667,667]
["СУБСИДИИ БЮДЖЕТАМ МУНИЦИПАЛЬНЫХ ОБРАЗОВАНИЙ","000","2 02 02000 00 0000 151",{"$f":"D93+D95+D96+D97+D94","v":15206.1},{"$f":"E93+E95+E96+E97+E94","v":72438.7},57232.6]
["Федеральная программа \"Молодым семьям - доступное жилье на 2005-2019 годы\"","917","2 02 02051 05 0000 151",0,0,0]
["Субсидии бюджетам муниципальных районов на модернизацию региональных систем общего образования. Модернизация региональных систем общего образования в части развития школьной инфраструктуры (текущий ремонт с целью обеспечения выполнения требований к санитарно-бытовым условиям и охране здоровья обучающихся, а также с целью подготовки помещений для установки оборудования) и (или) проведение капитального ремонта зданий общеобразовательных учреждений в Иркутской области","907","2 02 02145 05 0000 151",0,1600,1600]
["Долгосрочная целевая программа \"Энергосбережение и повышение энергетической эффективности на территории Иркутской области на 2011-2015 годы и на период до 2020 года","910","2 02 02150 05 0000 151",0,761,761]
["Областная государственная социальная программа \"Молодым семьям- доступное жилье\" на 2005-2019 годы\"","917","2 02 02008 05 0000 151",0,230.4,230.4]
["Прочие субсидии","000","2 02 02999 05 0000 151",{"$f":"D98+D99+D102+D103+D105+D104+D100+D101+D106","v":15206.1},{"$f":"E98+E99+E102+E103+E105+E104+E100+E101+E106","v":69847.3},{"$f":"F98+F99+F102+F103+F105+F104+F100+F101+F106","v":54641.2}]
["Субсидии на выплату заработной платы с начислениями на нее педагогическим работникам муниципальных дошкольных образовательных учреждений","907","2 02 02999 05 0000 151",2005.1,32175.3,30170.2]
["Субсидия за счет средств долгосрочной целевой программы Иркутской области \"Повышение эффективности бюджетных расходов Иркутской области на 2011-2013 годы\"","910","2 02 02999 05 0000 151",9372,16827,7455]
["ДЦП \"Развитие автомобильных дорог общего пользования регионального или межмуниципального значения и местного значения в Иркутской области на 2011-2015 годы \"\n","917","2 02 02999 05 0000 151",3829,3829,0]
["Реализация мероприятий перечня проектов народных инициатив","910","2 02 02999 05 0000 151",0,6963.9,6963.9]
["Долгосрочная целевая программа  Иркутской области «Организация и обеспечение отдыха и оздоровления детей в Иркутской области на 2012-2014 годы» ","907","2 02 02999 05 0000 151",0,2352.1,2352.1]
["Подпрограмма \"Подготовка объектов коммунальной инфраструктуры Иркутской области к отопительному сезону в 2011-2013 годах\"","907","2 02 02999 05 0000 151",0,1700,1700]
["Долгосрочная целевая программа «Поддержка и развитие малого и среднего предпринимательства в Иркутской области» на 2011-2012 годы (за счет федерального бюджета)","917","2 02 02999 05 0000 151",0,0,0]
["Долгосрочная целевая программа «Защита окружающией среды в Иркутской области на 2011-2015 годы\" ","918","2 02 02999 05 0000 151",0,5000,5000]
["Долгосрочная целевая программа Иркутской области \"100 модельных домов культуры Приангарью\" на 2011-2014 годы","904","2 02 02999 05 0000 151",0,1000,1000]
["СУБВЕНЦИИ БЮДЖЕТАМ МУНИЦИПАЛЬНЫХ ОБРАЗОВАНИЙ","000","2 02 03000 00 0000 151",{"$f":"D109+D110+D111+D113+D114+D115+D116+D117+D118+D119+D120+D121","v":256144.5},{"$f":"E109+E110+E111+E113+E114+E115+E116+E117+E118+E119+E120+E121","v":304096.5},47952]
["Субвенции бюджетам муниципальных районов на осуществление полномочий по подготовке проведения статистических переписей","917","2 02 03002 05 0000 151",0,0,0]
["Субвенции бюджетам  муниципальных районов на составление списков кандидатов в присяжные заседатели федеральных судов общей юрисдикции в Российской Федерации","917","2 02 03007 05 0000 151",0,0,0]
["Субвенции бюджетам на ежемесячное денежное вознаграждение за классное руководство","907","2 02 03021 05 0000 151",0,5000.1000000000004,5000.1000000000004]
["Субвенции бюджетам муниципальных образований на предоставление гражданам субсидий на оплату жилого помещения и коммунальных услуг","918","2 02 03022 05 0000 151",7534.2,7589.7,55.5]
["Субвенции местным бюджетам на выполнение переданных полномочий субъектов РФ","000","2 02 03024 05 0000 151",{"$f":"D113+D114+D115+D116+D117+D118","v":10028.799999999999},{"$f":"E113+E114+E115+E116+E117+E118","v":10302.6},273.80000000000109]
["Хранение, комплектование,  учет и использование архивных документов, относящихся к областной государственной собственности","917","2 02 03024 05 0000 151",1086,1174,88]
["Государственные    полномочия в области охраны труда","917","2 02 03024 05 0000 151",563.6,604.1,40.5]
["Определение персонального состава и обеспечение деятельности районных (городских), районных в городах комиссий по делам несовершеннолетних и защите их прав","917","2 02 03024 05 0000 151",1078.0999999999999,1155.8,77.700000000000045]
["Лицензирование розничной продажи алкогольной продукции","917","2 02 03024 05 0000 151",375.7,402.8,27.100000000000023]
["Определение персонального состава и обеспечение деятельности административных комиссий","917","2 02 03024 05 0000 151",563.6,604.1,40.5]
[" Предоставление мер социальной поддержки многодетным и малоимущим семьям","907","2 02 03024 05 0000 151",6361.8,6361.8,0]
["Субвенции бюджетам муниципальных районов на обеспечение жилыми помещениями детей-сирот, детей, оставшихся без попечения родителей, а также детей, находящихся под опекой (попечительством), не имеющих закрепленного жилого помещения","913","2 02 03026 05 0000 151",0,0,0]
["Субвенции бюджетам муниципальных районов на обеспечение жилыми помещениями детей-сирот, детей, оставшихся без попечения родителей, а также детей, находящихся под опекой (попечительством), не имеющих закрепленного жилого помещения (федер.)","913","2 02 03026 05 0000 151",0,0,0]
["Прочие субвенции","000","2 02 03999 05 0000 151",{"$f":"D122","v":238581.5},281204.09999999998,42622.599999999977]
["Субвенция на обеспечение государственных гарантий прав граждан на получение общедоступного и бесплатного дошкольного, начального общего, основного общего, среднего (полного) общего образования, а также дополнительного образования в общеобразовательных учреждениях","907","2 02 03999 05 0000 151",238581.5,281204.09999999998,42622.599999999977]
["ИНЫЕ МЕЖБЮДЖЕТНЫЕ ТРАНСФЕРТЫ","000","2 02 04000 00 0000 151",{"$f":"D124+D129+D130+D134","v":2780.22507},{"$f":"E124+E129+E130+E134","v":7004.2250700000004},4224]
["Межбюджетные трансферты, передаваемые бюджетам муниципальных районов из бюджетов поселений на осуществление части полномочий по решению вопросов местного значения в соответствии с заключенными соглашениями","000","2 02 04014 05 0000 151",{"$f":"D125+D126+D127+D128","v":1785.92507},1785.92507,0]
["Межбюджетные трансферты, передаваемые бюджетам муниципальных районов из бюджетов поселений на осуществление части полномочий по решению вопросов местного значения в соответствии с заключенными соглашениями (ФУ)","910","2 02 04014 05 0000 151",921.19104000000004,921.19104000000004,0]
["Межбюджетные трансферты, передаваемые бюджетам муниципальных районов из бюджетов поселений на осуществление части полномочий по решению вопросов местного значения в соответствии с заключенными соглашениями (ГО и ЧС)","917","2 02 04014 05 0000 151",460.59552000000002,460.59552000000002,0]
["Межбюджетные трансферты, передаваемые бюджетам муниципальных районов из бюджетов поселений на осуществление части полномочий по решению вопросов местного значения в соответствии с заключенными соглашениями (генплан)","918","2 02 04014 05 0000 151",30.2,30.2,0]
["Межбюджетные трансферты, передаваемые бюджетам муниципальных районов из бюджетов поселений на осуществление части полномочий по решению вопросов местного значения в соответствии с заключенными соглашениями (КСП )","923","2 02 04014 05 0000 151",373.93851000000001,373.93851000000001,0]
["Межбюджетные трансферты, передаваемые бюджетам муниципальных районов на комплектование книжных фондов библиотек муниципальных образований (областной бюджет)","904","2 02 04025 05 0000 151",162.69999999999999,162.69999999999999,0]
["Межбюджетные трансферты, передаваемые бюджетам муниципальных районов на комплектование книжных фондов библиотек муниципальных образований (федеральный бюджет)","904","2 02 04025 05 0000 151",303.60000000000002,303.60000000000002,0]
["Прочие межбюджетные трансферты, передаваемые бюджетам муниципальных районов","000","2 02 04999 05 0000 151",null,null,0]
["Дотации на возмещ.расходов местных бюджетов в связи с предоставлением льгот по оплате жилого помещения и коммунальных услуг педагогическим работникам, проживающим в сельской местности, рабочих поселках (пгт) и работающим в муниц.образоват.учреждениях","907","2 02 04999 05 0000 151",null,null,0]
["Межбюджетные трансферты в целях финансовой поддержки муниципальных образований Иркутской области, осуществляющих эффективное управление бюджетными средствами ","910","2 02 04999 05 0000 151",null,null,0]
["ПРОЧИЕ МЕЖБЮДЖЕТНЫЕ ТРАНСФЕРТЫ","000","2 02 04999 00 0000 151",{"$f":"D135","v":528},4752,4224]
["Исполнение судебных актов, вступивших в силу до 1 января 2013 года, по обеспечению жилыми помещениями детей-сирот и детей, оставшихся без попечения родителей, лиц из числа детей-сирот и детей, оставшихся без попечения родителей, не имеющих закрепленного жилого помещения","913","2 02 04999 05 0000 151",528,4752,4224]
["ПРОЧИЕ БЕЗВОЗМЕЗДНЫЕ ПОСТУПЛЕНИЯ","000","2 07 00000 00 0000 180",{"$f":"D137","v":14},1014,1000]
["Прочие безвозмездные поступления в бюджеты муниципальных районов","000","2 07 05030 05 0000 180",14,{"$f":"14+1000","v":1014},1000]
["ДОХОДЫ БЮДЖЕТОВ БЮДЖЕТНОЙ СИСТЕМЫ РОССИЙСКОЙ ФЕДЕРАЦИИ ОТ ВОЗВРАТА БЮДЖЕТАМИ БЮДЖЕТНОЙ СИСТЕМЫ РОССИЙСКОЙ ФЕДЕРАЦИИ И ОРГАНИЗАЦИЯМИ ОСТАТКОВ СУБСИДИЙ, СУБВЕНЦИЙ И ИНЫХ МЕЖБЮДЖЕТНЫХ ТРАНСФЕРТОВ, ИМЕЮЩИХ ЦЕЛЕВОЕ НАЗНАЧЕНИЕ, ПРОШЛЫХ ЛЕТ","000","2 18 00000 00 0000 000",{"$f":"D139","v":0},{"$f":"E139","v":3.64},-3.6399999999999864]
["Доходы бюджетов муниципальных районов от возврата бюджетными учреждениями остатков субсидий прошлых лет","917","2 18 05010 05 0000 180",0,3.64,-3.6399999999999864]
["ВОЗВРАТ ОСТАТКОВ СУБСИДИЙ, СУБВЕНЦИЙ И ИНЫХ МЕЖБЮДЖЕТНЫХ ТРАНСФЕРТОВ, ИМЕЮЩИХ ЦЕЛЕВОЕ НАЗНАЧЕНИЕ, ПРОШЛЫХ ЛЕТ","000","2 19 00000 00 0000 000",{"$f":"D141","v":-201.92392000000001},-205.56392,-3.6399999999999864]
["Возврат остатков субсидий и субвенций из бюджетов муниципальных районов","910","2 19 05000 05 0000 180",-201.92392000000001,{"$f":"-201.92392-3.64","v":-205.56392},-3.6399999999999864]
["ИТОГО ДОХОДОВ","000","8 50 00000 00 0000 000",{"$f":"D87+D11","v":480168.83114999998},{"$f":"E87+E11","v":597021.63115000003},116852.80000000005]
[]
["Начальник финансового управления",null,null,null,"Ю.Н. Гайдук"]

{"sheet":"прил 2 (2014-2015)","index":1,"n_rows":143,"n_cols":5,"rows_kept":143,"cut":false,"hidden":false,"merged":[[79,5,79,10],[15,0,15,4],[17,0,18,0],[17,1,17,2],[17,3,17,4],[77,5,77,14]]}
{"$rows_empty":15}
["Прогнозируемые доходы бюджета Черемховского районного муниципального образования на плановый период 2014 и 2015 годов "]
[{"$nulls":4},"(тыс. рублей)"]
["Наименование","Код бюджетной классификации",null,"Сумма"]
[null,"главного администратора доходов","доходов районного бюджета","2014 год","2015 год"]
["НАЛОГОВЫЕ И НЕНАЛОГОВЫЕ ДОХОДЫ","000","1 00 00000 00 0000 000",{"$f":"D21+D26+D36+D40+D43+D48+D53+D60+D65+D84","v":83091.985000000001},86325.15]
["НАЛОГИ НА ПРИБЫЛЬ, ДОХОДЫ","182","1 01 00000 00 0000 000",{"$f":"D22+D23+D24+D25","v":52624.9},55203.5]
["Налог на доходы физических лиц с доходов, источником которых является налоговый агент, за исключением доходов, в отношении которых исчисление и уплата налога осуществляются в соответствии со статьями 227,227¹ и 228 Налогового кодекса Российской Федерации","182","1 01 02010 01 0000 110",52426.8,54995.7]
["Налог на доходы физических лиц с доходов, полученных от осуществления деятельности физическими лицами,зарегистрированными в качестве индивидуальных предпринимателей,нотариусов,занимающихся частной практикой,адвокатов,учредивших адвокатские кабинеты и других лиц, занимающихся частной практикой","182","1 01 02020 01 0000 110",55.9,58.6]
["Налог на доходы физических лиц с доходов,  полученных физическими лицами, не являющимися налоговыми резидентами ","182","1 01 02030 01 0000 110",138.5,145.30000000000001]
["Налог на доходы физических лиц в виде фиксированных авансовых платежей с доходов, полученных физическими лицами, являющимися иностранными гражданами, осуществляющими трудовую деятельность по найму у физических лиц на основании патента ","182","1 01 02040 01 0000 110",3.7,3.9]
["НАЛОГИ НА СОВОКУПНЫЙ ДОХОД","182","1 05 00000 00 0000 000",{"$f":"D27+D34+D35","v":9656},10130]
["Налог, взимаемый в связи с применением упрощенной системы налогообложения ","182","1 05 01000 00 0000 110",{"$f":"D28+D29+D30+D31+D32","v":3966},4161]
["Налог, взимаемый с налогоплательщиков, выбравших в качестве объекта налогообложения  доходы","182","1 05 01010 01 0000 110",1564.3,1641]
["Налог, взимаемый с налогоплательщиков, выбравших в качестве объекта налогообложения доходы, уменьшенные на величину расходов","182","1 05 01020 01 0000 110",1620,1700]
["Налог, взимаемый с налогоплательщиков, выбравших в качестве объекта налогообложения доходы, уменьшенные на величину расходов (за налоговые периоды, истекшие до 1 января 2011 года)","182","1 05 01022 01 0000 110",111.7,117]
["Налог, взимаемый в виде стоимости патента в связи с применением упрощенной системы налогооблажения ","182","1 05 01041 02 0000 110",0,0]
["Минимальный налог, зачисляемый в бюджеты субьектов РФ","182","1 05 01050 01 0000 110",670,703]
["Налог, взимаемый в связи с применением патентной системы налогообложения","182"]
["Единый налог на вмененный доход для отдельных видов деятельности","182","1 05 02000 02 0000 110",5586,5860]
["Единый сельскохозяйственный налог ","182","1 05 03000 01 0000 110",104,109]
["ГОСУДАРСТВЕННАЯ ПОШЛИНА","000","1 08 00000 00 0000 000",{"$f":"D37+D38+D39","v":1044},1080]
["Государственная пошлина по делам, рассматриваемым в судах общей юрисдикции, мировыми судьями (за исключением Верховного Суда Российской Федерации)","182","1 08 03010 01 0000 110",324,340]
["Государственная пошлина за совершение действий, связанных с лицензированием, с проведением аттестации в случаях, если такая аттестация предусмотрена законодательством Российской Федерации, зачисляемая в бюджеты муниципальных районов","917","1 08 07084 01 1000 110",720,740]
["Государственная пошлина за государственную регистрацию транспортных средств и иные юридически значимые действия, связанные с изменениями и выдачей документов на транспортные средства, выдачей регистрационных знаков, приемом квалификационных экзаменов на получение права на управление транспортными средствами","000","1 08 07141 01 0000 110"]
["ЗАДОЛЖЕННОСТЬ И ПЕРЕРАСЧЕТЫ ПО ОТМЕНЕННЫМ НАЛОГАМ, СБОРАМ И ИНЫМ ОБЯЗАТЕЛЬНЫМ ПЛАТЕЖАМ","182","1 09 00000 00 0000 000",{"$f":"D41+D42","v":1},1]
["Налог на имущество предприятий","182","1 09 04010 02 0000 110",0.5,0.5]
["Налог с продаж","182","1 09 06010 02 0000 110",0.5,0.5]
["ДОХОДЫ ОТ ИСПОЛЬЗОВАНИЯ ИМУЩЕСТВА, НАХОДЯЩЕГОСЯ В ГОСУДАРСТВЕННОЙ И МУНИЦИПАЛЬНОЙ СОБСТВЕННОСТИ","000","1 11 00000 00 0000 000",{"$f":"D44+D47","v":10464.5},10451.5]
["Доходы, получаемые в виде арендной  платы за земельные участки,государственная собственность на которые не разграничена и которые расположеныв границах поселений, а также средства от продажи права на заключение договоров аренды указанных земельных участков","000","1 11 05013 10 0000 120",{"$f":"D45+D46","v":5464.5},5351.5]
["Доходы, получаемые в виде арендной платы за земельные участки, государственная собственность на которые не разграничена и которые расположены в границах поселений, а также средства от продажи права на заключение договоров аренды указанных земельных участков","913","1 11 05013 10 0000 120",4714.5,4601.5]
["Доходы, получаемые в виде арендной  платы за земельные участки,государственная собственность на которые не разграничена и которые расположеныв границах поселений, а также средства от продажи права на заключение договоров аренды указанных земельных участков","950","1 11 05013 10 0000 120",750,750]
["Доходы от сдачи в аренду имущества, находящегося в оперативном управлении органов управления муниципальных районов и созданных ими учреждений (за исключением имущества муниципальных автономных учреждений)","913","1 11 05035 05 0000 120",5000,5100]
["ПЛАТЕЖИ ПРИ ПОЛЬЗОВАНИИ ПРИРОДНЫМИ РЕСУРСАМИ","048","1 12 00000 00 0000 000",{"$f":"D49","v":186.285},193.75]
["Плата за негативное воздействие на окружающую среду","048","1 12 01000 01 0000 120",{"$f":"D50+D51+D52","v":186.285},193.75]
["Плата за выбросы загрязняющих веществ в атмосферный воздух стационарными объектами ","048","1 12 01010 01 0000 120",98.69,102.645]
["Плата за выбросы загрязняющих веществ в атмосферный воздух передвижными объектами","048","1 12 01020 01 0000 120",18.645,19.395]
["Плата за размещение отходов производства и потребления","048","1 12 01040 01 0000 120",68.95,71.709999999999994]
["ДОХОДЫ ОТ ОКАЗАНИЯ ПЛАТНЫХ УСЛУГ И КОМПЕНСАЦИИ ЗАТРАТ ГОСУДАРСТВА","000","1 13 00000 00 0000 000",{"$f":"D54+D55","v":7680},7808]
["Прочие доходы от оказания платных услуг (работ) получателями средств бюджетов муниципальных районов","907","113 01995 05 0000 130",7345,7450]
["Прочие доходы от оказания платных услуг (работ) получателями средств бюджетов муниципальных районов ","904","113 01995 05 0000 130",{"$f":"D56+D57+D58+D59","v":335},358]
["Прочие доходы от оказания платных услуг (работ) получателями средств бюджетов муниципальных районов (МКУК МКЦ АЧРМО)","000","113 01995 05 0000 130",60,65]
["Прочие доходы от оказания платных услуг (работ) получателями средств бюджетов муниципальных районов (МКУК РИК МУЗЕЙ)","000","113 01995 05 0000 130",22,23]
["Прочие доходы от оказания платных услуг (работ) получателями средств бюджетов муниципальных районов (МКУК МБЧР)","000","113 01995 05 0000 130",28,43]
["Прочие доходы от оказания платных услуг (работ) получателями средств бюджетов муниципальных районов (МКОУ ДОД ДШИ)","000","113 01995 05 0000 130",225,227]
["ДОХОДЫ ОТ ПРОДАЖИ МАТЕРИАЛЬНЫХ И НЕМАТЕРИАЛЬНЫХ АКТИВОВ","913","1 14 00000 00 0000 000",{"$f":"D61+D63","v":601},601.5]
["Доходы от реализации имущества, находящегося в государственной и муниципальной собственности (за исключением имущества автономных учреждений, а также имущества государственных и муниципальных унитарных предприятий, в том числе казенных)","913","1 14 02000 00 0000 000",{"$f":"D62","v":500},500]
["Доходы от реализации иного имущества, находящегося в собственности муниципальных районов (за исключением имущества муниципальных автономных учреждений, а также имущества муниципальных унитарных предприятий, в том числе казенных), в части реализации основных средств по указанному имуществу","913","1 14 02053 05 0000 410",500,500]
["Доходы от продажи земельных участков, находящихся в  государственной и муниципальной собственности (за исключением земельных участков автономных учреждений)","913","1 14 06000 00 0000 430",{"$f":"D64","v":101},101.5]
["Доходы от продажи земельных участков, государственная собственность на которые не разграничена и которые расположены в границах поселений","913","1 14 06013 10 0000 430",101,101.5]
["ШТРАФЫ, САНКЦИИ, ВОЗМЕЩЕНИЕ УЩЕРБА","000","1 16 00000 00 0000 000",{"$f":"D66+D67+D68+D72+D76+D75","v":534.29999999999995},555.9]
["Денежные взыскания (штрафы) за нарушение законодательства о налогах и сборах","182","1 16 03000 01 0000 140",41,43]
["Денежные взыскания (штрафы) за административные правонарушения в области государственного регулирования производства и оборота этилового спирта, алкогольной и спиртосодержащей продукции","182","1 16 08000 01 0000 140",3.4,3.6]
["Денежные взыскания (штрафы) за нарушение законодательства о недрах, об особо охраняемых природных территориях, об охране и использовании животного мира, об экологической экспертизе, в области охраны окружающей среды, земельного законодательства","000","1 16 25000 01 0000 140",{"$f":"D70+D71+D69","v":38},38]
["Денежные взыскания (штрафы) за нарушение законодательства о недрах","000","1 16 25010 01 6000 140",1,1]
["Денежные взыскания (штрафы) за нарушение законодательства об охране и использовании животного мира","815","1 16 25030 01 6000 140",35,35]
["Денежные взыскания (штрафы) за нарушение земельного законодательства","081","1 16 25060 01 6000 140",2,2]
["Денежные взыскания (штрафы) за правонарушения в области дорожного движения","188","1 16 30000 01 0000 140",{"$f":"D73+D74","v":33.799999999999997},35.9]
["Денежные взыскания (штрафы) за административные правонарушения в области дорожного движения","188","1 16 30014 01 0000 140",2.8,2.9]
["Прочие денежные взыскания (штрафы) за административные правонарушения в области дорожного движения","188","1 16 30030 01 0000 140",31,33]
["Денежные взыскания (штрафы) за нарушение законодательства РФ об административных правонарушениях, предусмотренные статьей 20.25 Кодекса РФ об административных правонарушений","188","1 16 43000 01 0000 140",2.2999999999999998,2.4]
["Прочие поступления от денежных взысканий (штрафов) и иных сумм в возмещение ущерба, зачисляемые в бюджеты муниципальных районов","000","1 16 90050 05 0000 140",{"$f":"D77+D78+D79+D80+D81+D82+D83","v":415.8},433]
["Прочие поступления от денежных взысканий (штрафов) и иных сумм в возмещение ущерба, зачисляемые в бюджеты муниципальных районов","081","1 16 90050 05 0000 140",15,15]
["Прочие поступления от денежных взысканий (штрафов) и иных сумм в возмещение ущерба, зачисляемые в бюджеты муниципальных районов","177","1 16 90050 05 0000 140",40,42]
["Прочие поступления от денежных взысканий (штрафов) и иных сумм в возмещение ущерба, зачисляемые в бюджеты муниципальных районов","188","1 16 90050 05 0000 140",62,65]
["Прочие поступления от денежных взысканий (штрафов) и иных сумм в возмещение ущерба, зачисляемые в бюджеты муниципальных районов","192","1 16 90050 05 0000 140",178,187]
["Прочие поступления от денежных взысканий (штрафов) и иных сумм в возмещение ущерба, зачисляемые в бюджеты муниципальных районов","415","1 16 90050 05 0000 140",63,66]
["Прочие поступления от денежных взысканий (штрафов) и иных сумм в возмещение ущерба, зачисляемые в бюджеты муниципальных районов","809","1 16 90050 05 0000 140",50,50]
["Прочие поступления от денежных взысканий (штрафов) и иных сумм в возмещение ущерба, зачисляемые в бюджеты муниципальных районов","917","1 16 90050 05 0000 140",7.8,8]
["ПРОЧИЕ НЕНАЛОГОВЫЕ ДОХОДЫ","000","1 17 00000 00 0000 000",{"$f":"D85+D86","v":300},300]
["Невыясненные поступления","000","1 17 01000 00 0000 180",0,0]
["Прочие неналоговые доходы","000","1 17 05000 00 0000 180",300,300]
["БЕЗВОЗМЕЗДНЫЕ ПОСТУПЛЕНИЯ","000","2 00 00000 00 0000 000",{"$f":"D88+D137+D139","v":376679.10000000003},{"$f":"E88+E137+E139","v":380999.60000000003}]
["БЕЗВОЗМЕЗДНЫЕ ПОСТУПЛЕНИЯ ИЗ ДРУГИХ БЮДЖЕТОВ БЮДЖЕТНОЙ СИСТЕМЫ РФ","000","2 02 00000 00 0000 151",{"$f":"D89+D92+D108+D124","v":376679.10000000003},{"$f":"E89+E92+E108+E124","v":380999.60000000003}]
["ДОТАЦИИ БЮДЖЕТАМ МУНИЦИПАЛЬНЫХ ОБРАЗОВАНИЙ","000","2 02 01000 00 0000 151",{"$f":"D90+D91","v":116683},121629]
["Дотации муниципальным районам на выравнивание уровня бюджетной  обеспеченности","910","2 02 01001 05 0000 151",116683,121629]
["Дотации муниципальным районам на поддержку мер  по обеспечению сбалансированности  бюджетов","910","2 02 01003 05 0000 151",0,0]
["СУБСИДИИ БЮДЖЕТАМ МУНИЦИПАЛЬНЫХ ОБРАЗОВАНИЙ","000","2 02 02000 00 0000 151",{"$f":"D93+D94+D95+D96","v":3005.1},2005.1]
["Федеральная программа \"Молодым семьям - доступное жилье на 2005-2019 годы\"","917","2 02 02051 05 0000 151",0,0]
["Долгосрочная целевая программа \"Энергосбережение и повышение энергетической эффективности на территории Иркутской области на 2011-2015 годы и на период до 2020 года","910","2 02 02150 05 0000 151",0,0]
["Областная государственная социальная программа \"Молодым семьям- доступное жилье\" на 2005-2019 годы\"","917","2 02 02008 05 0000 151",0,0]
["Прочие субсидии","000","2 02 02999 05 0000 151",{"$f":"D97+D98+D99+D100+D101+D102+D104+D105+D107+D106","v":3005.1},{"$f":"E97+E98+E99+E100+E101+E102+E104+E105+E107+E106","v":2005.1}]
["Субсидии на выплату заработной платы с начислениями на нее педагогическим работникам муниципальных дошкольных образовательных учреждений","907","2 02 02999 05 0000 151",2005.1,2005.1]
["Субсидия за счет средств долгосрочной целевой программы Иркутской области \"Повышение эффективности бюджетных расходов Иркутской области на 2011-2013 годы\"","910","2 02 02999 05 0000 151",0,0]
["Погашение кредиторской задолженности учреждений, находящихся в ведении органов местного самоуправления муниципальных образований Иркутской области, по страховым взносам на обязательное пенсионное страхование, сложившейся за период с 1 января 2002 года до 31 декабря 2009 года, и по страховым взносам на обязательное пенсионное страхование, обязательное медицинское страхование и обязательное социальное страхование на случай временной нетрудоспособности и в связи с материнством за период 2010-2011 годы, а также пеней и штрафов, начисленных на задолженность 2010-2011 годов","910","2 02 02999 05 0000 151",0,0]
["Погашение реструктуризированной кредиторской задолженности учреждений, находящихся в ведении органов местного самоуправления муниципальных образований Иркутской области, по страховым взносам на обязательное пенсионное страхование, сложившейся за период с 1 января 2002 года до 31 декабря 2009 года, и по страховым взносам на обязательное пенсионное страхование, обязательное медицинское страхование и обязательное социальное страхование на случай временной нетрудоспособности и в связи с материнством за период 2010-2011 годы, а также пеней и штрафов, начисленных на задолженность 2010-2011 годов","910","2 02 02999 05 0000 151",0,0]
["Долгосрочная целевая программа \"Социальное развитие села Иркутской области на 2011-2014 годы\"","907","2 02 02999 05 0000 151"]
["Долгосрочная целевая программа Иркутской области \"100 модельных домов культуры Приангарью\" на 2011-2014 годы","904","2 02 02999 05 0000 151",1000,0]
[]
["Долгосрочная целевая программа  Иркутской области «Организация и обеспечение отдыха и оздоровления детей в Иркутской области на 2012-2014 годы» ","907","2 02 02999 05 0000 151",0,0]
["Долгосрочная целевая программа поддержки и развития учреждений дошкольного образования в Иркутской области  на 2009-2014 годы» ","907","2 02 02999 05 0000 151",0,0]
["Долгосрочная целевая программа «Поддержка и развитие малого и среднего предпринимательства в Иркутской области» на 2011-2012 годы (за счет федерального бюджета)","917","2 02 02999 05 0000 151",0,0]
["Долгосрочная целевая программа «Поддержка и развитие малого и среднего предпринимательства в Иркутской области» на 2011-2012 годы (за счет областного бюджета)","917","2 02 02999 05 0000 151",0,0]
["СУБВЕНЦИИ БЮДЖЕТАМ МУНИЦИПАЛЬНЫХ ОБРАЗОВАНИЙ","000","2 02 03000 00 0000 151",{"$f":"D110+D111+D112+D114+D115+D116+D117+D118+D119+D120+D121+D122","v":256524.7},{"$f":"E110+E111+E112+E114+E115+E116+E117+E118+E119+E120+E121+E122","v":256899.20000000001}]
["Субвенции бюджетам муниципальных районов на осуществление полномочий по подготовке проведения статистических переписей","917","2 02 03002 05 0000 151"]
["Субвенции бюджетам  муниципальных районов на составление списков кандидатов в присяжные заседатели федеральных судов общей юрисдикции в Российской Федерации","917","2 02 03007 05 0000 151",0,0]
["Субвенции бюджетам на ежемесячное денежное вознаграждение за классное руководство","907","2 02 03021 05 0000 151",0,0]
["Субвенции бюджетам муниципальных образований на предоставление гражданам субсидий на оплату жилого помещения и коммунальных услуг","918","2 02 03022 05 0000 151",7885.8,8234.4]
["Субвенции местным бюджетам на выполнение переданных полномочий субъектов РФ","000","2 02 03024 05 0000 151",{"$f":"D114+D115+D116+D117+D118+D119","v":10057.4},{"$f":"E114+E115+E116+E117+E118+E119","v":10083.299999999999}]
["Хранение, комплектование,  учет и использование архивных документов, относящихся к областной государственной собственности","917","2 02 03024 05 0000 151",1086,1086]
["Государственные    полномочия в области охраны труда","917","2 02 03024 05 0000 151",563.6,563.6]
["Определение персонального состава и обеспечение деятельности районных (городских), районных в городах комиссий по делам несовершеннолетних и защите их прав","917","2 02 03024 05 0000 151",1078.0999999999999,1078.0999999999999]
["Лицензирование розничной продажи алкогольной продукции","917","2 02 03024 05 0000 151",404.3,430.2]
["Определение персонального состава и обеспечение деятельности административных комиссий","917","2 02 03024 05 0000 151",563.6,563.6]
[" Предоставление мер социальной поддержки многодетным и малоимущим семьям","907","2 02 03024 05 0000 151",6361.8,6361.8]
["Субвенции бюджетам муниципальных районов на обеспечение жилыми помещениями детей-сирот, детей, оставшихся без попечения родителей, а также детей, находящихся под опекой (попечительством), не имеющих закрепленного жилого помещения","913","2 02 03026 05 0000 151",0,0]
["Субвенции бюджетам муниципальных районов на обеспечение жилыми помещениями детей-сирот, детей, оставшихся без попечения родителей, а также детей, находящихся под опекой (попечительством), не имеющих закрепленного жилого помещения (федер.)","913","2 02 03026 05 0000 151",0,0]
["Прочие субвенции","000","2 02 03999 05 0000 151",{"$f":"D123","v":238581.5},238581.5]
["Субвенция на обеспечение государственных гарантий прав граждан на получение общедоступного и бесплатного дошкольного, начального общего, основного общего, среднего (полного) общего образования, а также дополнительного образования в общеобразовательных учреждениях","907","2 02 03999 05 0000 151",238581.5,238581.5]
["ИНЫЕ МЕЖБЮДЖЕТНЫЕ ТРАНСФЕРТЫ","000","2 02 04000 00 0000 151",{"$f":"D125+D130+D131+D135","v":466.3},{"$f":"E125+E130+E131+E135","v":466.3}]
["Межбюджетные трансферты, передаваемые бюджетам муниципальных районов из бюджетов поселений на осуществление части полномочий по решению вопросов местного значения в соответствии с заключенными соглашениями","000","2 02 04014 05 0000 151",{"$f":"D126+D127+D128+D129","v":0},0]
["Межбюджетные трансферты, передаваемые бюджетам муниципальных районов из бюджетов поселений на осуществление части полномочий по решению вопросов местного значения в соответствии с заключенными соглашениями","910","2 02 04014 05 0000 151",0,0]
["Межбюджетные трансферты, передаваемые бюджетам муниципальных районов из бюджетов поселений на осуществление части полномочий по решению вопросов местного значения в соответствии с заключенными соглашениями (правила землепользования)","918","2 02 04014 05 0000 151",0,0]
["Межбюджетные трансферты, передаваемые бюджетам муниципальных районов из бюджетов поселений на осуществление части полномочий по решению вопросов местного значения в соответствии с заключенными соглашениями (генплан 5%)","918","2 02 04014 05 0000 151",0,0]
["Межбюджетные трансферты, передаваемые бюджетам муниципальных районов из бюджетов поселений на осуществление части полномочий по решению вопросов местного значения в соответствии с заключенными соглашениями (генплан )","918","2 02 04014 05 0000 151",0,0]
["Межбюджетные трансферты, передаваемые бюджетам муниципальных районов на комплектование книжных фондов библиотек муниципальных образований (областной бюджет)","910","2 02 04025 05 0000 151",162.69999999999999,162.69999999999999]
["Межбюджетные трансферты, передаваемые бюджетам муниципальных районов на комплектование книжных фондов библиотек муниципальных образований (федеральный бюджет)","910","2 02 04025 05 0000 151",303.60000000000002,303.60000000000002]
["Прочие межбюджетные трансферты, передаваемые бюджетам муниципальных районов","000","2 02 04999 05 0000 151"]
["Дотации на возмещ.расходов местных бюджетов в связи с предоставлением льгот по оплате жилого помещения и коммунальных услуг педагогическим работникам, проживающим в сельской местности, рабочих поселках (пгт) и работающим в муниц.образоват.учреждениях","907","2 02 04999 05 0000 151"]
["Межбюджетные трансферты в целях финансовой поддержки муниципальных образований Иркутской области, осуществляющих эффективное управление бюджетными средствами ","910","2 02 04999 05 0000 151"]
["ПРОЧИЕ МЕЖБЮДЖЕТНЫЕ ТРАНСФЕРТЫ","000","2 02 04999 00 0000 151",{"$f":"D136","v":0},0]
["Резервные фонды исполнительных органов государственной власти субъектов Российской Федерации","917","2 02 04999 05 0000 151",0,0]
["ПРОЧИЕ БЕЗВОЗМЕЗДНЫЕ ПОСТУПЛЕНИЯ","000","2 07 00000 00 0000 180",{"$f":"D138","v":0},0]
["Прочие безвозмездные поступления в бюджеты муниципальных районов","000","2 07 05000 05 0000 180",0,0]
["ВОЗВРАТ ОТСТАКОВ СУБСИДИЙ И СУБВЕНЦИЙ","000","2 19 00000 00 0000 000",{"$f":"D140","v":0},0]
["Возврат остатков субсидий и субвенций из бюджетов муниципальных районов","910","2 19 05000 05 0000 180",0,0]
["ИТОГО ДОХОДОВ","000","8 50 00000 00 0000 000",{"$f":"D87+D20","v":459771.08500000002},467324.75]
[]
["Начальник финансового управления",null,null,"Ю.Н. Гайдук"]

{"sheet":"прил3 (админ)","index":2,"n_rows":92,"n_cols":4,"rows_kept":92,"cut":false,"hidden":false,"merged":[[86,2,86,3],[87,2,87,3],[88,2,88,3],[89,2,89,3],[80,2,80,3],[81,2,81,3],[82,2,82,3],[83,2,83,3],[84,2,84,3],[85,2,85,3],[79,2,79,3],[68,2,68,3],[69,2,69,3],[70,2,70,3],[71,2,71,3],[72,2,72,3],[73,2,73,3],[74,2,74,3],[75,2,75,3],[76,2,76,3],[77,2,77,3],[78,2,78,3],[67,2,67,3],[56,2,56,3],[57,2,57,3],[58,2,58,3],[59,2,59,3],[60,2,60,3],[61,2,61,3],[62,2,62,3],[63,2,63,3],[64,2,64,3],[65,2,65,3],[66,2,66,3],[55,2,55,3],[44,2,44,3],[45,2,45,3],[46,2,46,3],[47,2,47,3],[48,2,48,3],[49,2,49,3],[50,2,50,3],[51,2,51,3],[52,2,52,3],[53,2,53,3],[54,2,54,3],[43,2,43,3],[32,2,32,3],[33,2,33,3],[34,2,34,3],[35,2,35,3],[36,2,36,3],[37,2,37,3],[38,2,38,3],[39,2,39,3],[40,2,40,3],[41,2,41,3],[42,2,42,3],[31,2,31,3],[20,2,20,3],[21,2,21,3],[22,2,22,3],[23,2,23,3],[24,2,24,3],[25,2,25,3],[26,2,26,3],[27,2,27,3],[28,2,28,3],[29,2,29,3],[30,2,30,3],[19,2,19,3],[7,0,8,3],[9,0,9,1],[9,2,10,3],[11,2,11,3],[12,2,12,3],[13,2,13,3],[14,2,14,3],[15,2,15,3],[16,2,16,3],[17,2,17,3],[18,2,18,3]]}
{"$rows_empty":7}
["Перечень главных администраторов доходов бюджета Черемховского районного муниципального образования - органов местного самоуправления Черемховского районного муниципального образования"]
[]
["Код бюджетной классификации РФ",null,"Наименование главного администратора доходов районного бюджета"]
["главного администратора доходов","доходов районного бюджета"]
[904,null,"Отдел по культуре и библиотечному обслуживанию администрации Черемховского районного муниципального образования"]
[904,"1 13 01995 05 0000 130","Прочие доходы от оказания платных услуг получателями средств бюджетов муниципальных районов и компенсации затрат бюджетов муниципальных районов"]
[904,"1 17 01050 05 0000 180","Невыясненные поступления, зачисляемые в бюджеты муниципальных районов"]
[904,"1 17 05050 05 0000 180","Прочие неналоговые доходы бюджетов муниципальных районов"]
[904,"2 02 01999 05 0000 151","Прочие дотации бюджетам муниципальных районов"]
[904,"2 02 02999 05 0000 151","Прочие субсидии бюджетам муниципальных районов"]
[904,"2 02 03999 05 0000 151","Прочие субвенции бюджетам муниципальных районов"]
[904,"2 02 04025 05 0000 151","Межбюджетные трансферты, передаваемые бюджетам муниципальных районов на комплектование книжных фондов библиотек муниципальных образований"]
[904,"2 02 04999 05 0000 151","Прочие межбюджетные трансферты, передаваемые бюджетам муниципальных районов"]
[904,"2 07 05030 05 0000 180","Прочие безвозмездные поступления в бюджеты муниципальных районов"]
[907,null,"Отдел образования администрации Черемховского районного муниципального образования"]
[907,"1 13 01995 05 0000 130","Прочие доходы от оказания платных услуг получателями средств бюджетов муниципальных районов и компенсации затрат бюджетов муниципальных районов"]
[907,"1 17 01050 05 0000 180","Невыясненные поступления, зачисляемые в бюджеты муниципальных районов"]
[907,"1 17 05050 05 0000 180","Прочие неналоговые доходы бюджетов муниципальных районов"]
[907,"2 02 01999 05 0000 151","Прочие дотации бюджетам муниципальных районов"]
[907,"2 02 02022 05 0000 151","Субсидии бюджетам муниципальных образований на внедрение инновационных образовательных программ"]
["907","2 02 02145 05 0000 151","Субсидии бюджетам муниципальных районов на модернизацию региональных систем общего образования "]
[907,"2 02 02999 05 0000 151","Прочие субсидии бюджетам муниципальных районов"]
[907,"2 02 03021 05 0000 151","Субвенции бюджетам муниципальных районов на ежемесячное денежное вознаграждение за классное руководство"]
[907,"2 02 03024 05 0000 151","Субвенции бюджетам муниципальных районов на выполнение передаваемых полномочий субъектов РФ"]
[907,"2 02 03999 05 0000 151","Прочие субвенции бюджетам муниципальных районов"]
[907,"2 02 04999 05 0000 151","Прочие межбюджетные трансферты, передаваемые бюджетам муниципальных районов"]
[907,"2 07 05030 05 0000 180","Прочие безвозмездные поступления в бюджеты муниципальных районов"]
[910,null,"Финансовое управление Администрации Черемховского районного муниципального образования"]
[910,"1 17 01050 05 0000 180","Невыясненные поступления, зачисляемые в бюджеты муниципальных районов"]
[910,"1 17 05050 05 0000 180","Прочие неналоговые доходы бюджетов муниципальных районов"]
[910,"2 02 01001 05 0000 151","Дотации бюджетам муниципальных районов на выравнивание уровня бюджетной обеспеченности"]
[910,"2 02 01003 05 0000 151","Дотации бюджетам муниципальных районов на поддержку мер по обеспечению сбалансированности бюджетов"]
[910,"2 02 01999 05 0000 151","Прочие дотации бюджетам муниципальных районов"]
[910,"2 02 02008 05 0000 151","Субсидии бюджетам муниципальных районов на обеспечение жильем молодых семей"]
[910,"2 02 02999 05 0000 151","Прочие субсидии бюджетам муниципальных районов"]
[910,"2 02 03999 05 0000 151","Прочие субвенции бюджетам муниципальных районов"]
[910,"2 02 04014 05 0000 151","Межбюджетные трансферты, передаваемые бюджетам муниципальных районов из бюджетов поселений на осуществление части полномочий по решению вопросов местного значения в соответствии с заключенными соглашениями"]
[910,"2 02 04999 05 0000 151","Прочие межбюджетные трансферты, передаваемые бюджетам муниципальных районов"]
[910,"2 07 05030 05 0000 180","Прочие безвозмездные поступления в бюджеты муниципальных районов"]
[910,"2 08 05000 05 0000 180","Перечисления из бюджетов муниципальных районов (в бюджеты муниципальных районов) для осуществления возврата (зачета) излишне уплаченных или излишне взысканных сумм налогов, сборов и иных платежей, а также сумм процентов за несвоевременное осуществление такого возврата и процентов, начисленных на излишне взысканные суммы"]
[910,"2 19 05000 05 0000 151","Возврат остатков субсидий и субвенций из бюджетов муниципальных районов"]
[913,null,"Комитет по управлению муниципальным имуществом администрации Черемховского районного муниципального образования"]
[913,"1 11 05013 10 0000 120","Доходы, получаемые в виде арендной платы за земельные участки, государственная собственность на которые не разграничена и которые расположены в границах поселений, а также средства от продажи права на заключение договоров аренды указанных земельных участков"]
[913,"1 11 05035 05 0000 120","Доходы от сдачи в аренду имущества, находящегося в оперативном управлении органов управления муниципальных районов и созданных ими учреждений (за исключением имущества муниципальных автономных учреждений)"]
[913,"1 14 02052 05 0000 410","Доходы от реализации имущества, находящегося в оперативном управлении учреждений, находящихся в ведении органов управления муниципальных районов (за исключением имущества муниципальных автономных учреждений), в части реализации основных средств по указанному имуществу"]
[913,"1 14 02052 05 0000 440","Доходы от реализации имущества, находящегося в оперативном управлении учреждений, находящихся в ведении органов управления муниципальных районов (за исключением имущества муниципальных автономных учреждений), в части реализации материальных запасов по указанному имуществу"]
[913,"1 14 02053 05 0000 410","Доходы от реализации иного имущества, находящегося в собственности муниципальных районов (за исключением имущества муниципальных автономных учреждений, а также имущества муниципальных унитарных предприятий, в том числе казенных), в части реализации основных средств по указанному имуществу"]
[913,"1 14 02053 05 0000 440","Доходы от реализации иного имущества, находящегося в собственности муниципальных районов (за исключением имущества муниципальных автономных учреждений, а также имущества муниципальных унитарных предприятий, в том числе казенных), в части реализации материальных запасов по указанному имуществу"]
[913,"1 14 06013 10 0000 430","Доходы от продажи земельных участков, государственная собственность на которые не разграничена и которые расположены в границах поселений"]
[913,"1 14 06025 05 0000 430","Доходы от продажи земельных участков, находящихся в собственности муниципальных районов (за исключением земельных участков муниципальных автономных учреждений)"]
[913,"1 17 01050 05 0000 180","Невыясненные поступления, зачисляемые в бюджеты муниципальных районов"]
[913,"1 17 05050 05 0000 180","Прочие неналоговые доходы бюджетов муниципальных районов"]
[913,"2 02 03026 05 0000 151","Субвенции бюджетам муниципальных районов на обеспечение жилыми помещениями детей-сирот, детей, оставшихся без попечения родителей, а также детей, находящихся под опекой (попечительством), не имеющих закрепленного жилого помещения"]
[913,"2 02 04999 05 0000 151","Прочие межбюджетные трансферты, передаваемые бюджетам муниципальных районов"]
[917,null,"Администрация Черемховского районного муниципального образования"]
[917,"1 08 07084 01 1000 110","Государственная пошлина за совершение действий, связанных с лицензированием, с проведением аттестации в случаях, если такая аттестация предусмотрена законодательством Российской Федерации, зачисляемая в бюджеты муниципальных районов"]
[917,"1 16 90050 05 0000 140","Прочие поступления от денежных взысканий (штрафов) и иных сумм в возмещение ущерба, зачисляемые в бюджеты муниципальных районов"]
[917,"1 17 01050 05 0000 180","Невыясненные поступления, зачисляемые в бюджеты муниципальных районов"]
[917,"1 17 05050 05 0000 180","Прочие неналоговые доходы бюджетов муниципальных районов"]
[917,"2 02 01999 05 0000 151","Прочие дотации бюджетам муниципальных районов"]
[917,"2 02 02008 05 0000 151","Субсидии бюджетам муниципальных районов на обеспечение жильем молодых семей"]
[917,"2 02 02105 05 0000 151","Субсидии бюджетам муниципальных районов на проведение противоаварийных мероприятий в зданиях государственных и муниципальных общеобразовательных учреждений"]
[917,"2 02 02999 05 0000 151","Прочие субсидии бюджетам муниципальных районов"]
[917,"2 02 03002 05 0000 151","Субвенции бюджетам муниципальных районов на осуществление полномочий по подготовке проведения статистических переписей"]
["917","2 02 03007 05 0000 151","Субвенции бюджетам  муниципальных районов на составление списков кандидатов в присяжные заседатели федеральных судов общей юрисдикции в Российской Федерации"]
[917,"2 02 03024 05 0000 151","Субвенции бюджетам муниципальных районов на выполнение передаваемых полномочий субъектов РФ"]
[917,"2 02 03999 05 0000 151","Прочие субвенции бюджетам муниципальных районов"]
[917,"2 02 04014 05 0000 151","Межбюджетные трансферты, передаваемые бюджетам муниципальных районов из бюджетов поселений на осуществление части полномочий по решению вопросов местного значения в соответствии с заключенными соглашениями"]
[917,"2 02 04999 05 0000 151","Прочие межбюджетные трансферты, передаваемые бюджетам муниципальных районов"]
[917,"2 07 05030 05 0000 180","Прочие безвозмездные поступления в бюджеты муниципальных районов"]
[917,"2 18 05010 05 0000 180","Доходы бюджетов муниципальных районов от возврата бюджетными учреждениями остатков субсидий прошлых лет"]
[918,null,"Управление жилищно-коммунального хозяйства, строительства, транспорта, связи и экологии администрации Черемховского районного муниципального образования"]
[918,"1 16 90050 05 0000 140","Прочие поступления от денежных взысканий (штрафов) и иных сумм в возмещение ущерба, зачисляемые в бюджеты муниципальных районов"]
[918,"1 17 01050 05 0000 180","Невыясненные поступления, зачисляемые в бюджеты муниципальных районов"]
[918,"1 17 05050 05 0000 180","Прочие неналоговые доходы бюджетов муниципальных районов"]
[918,"2 02 02999 05 0000 151","Прочие субсидии бюджетам муниципальных районов"]
["918","2 02 03022 05 0000 151","Субвенции бюджетам муниципальных образований на предоставление гражданам субсидий на оплату жилого помещения и коммунальных услуг"]
["918","2 02 04014 05 0000 151","Межбюджетные трансферты, передаваемые бюджетам муниципальных районов из бюджетов поселений на осуществление части полномочий по решению вопросов местного значения в соответствии с заключенными соглашениями "]
[918,"2 07 05030 05 0000 180","Прочие безвозмездные поступления в бюджеты муниципальных районов"]
[923,null,"Контрольно-счетная палата Черемховского районного муниципального образования"]
[923,"1 17 01050 05 0000 180","Невыясненные поступления, зачисляемые в бюджеты муниципальных районов"]
[923,"1 17 05050 05 0000 180","Прочие неналоговые доходы бюджетов муниципальных районов"]
["923","2 02 04014 05 0000 151","Межбюджетные трансферты, передаваемые бюджетам муниципальных районов из бюджетов поселений на осуществление части полномочий по решению вопросов местного значения в соответствии с заключенными соглашениями "]
[]
["Начальник финансового управления",null,null,"Ю.Н. Гайдук"]

{"sheet":"прил4","index":3,"n_rows":316,"n_cols":6,"rows_kept":316,"cut":false,"hidden":false,"merged":[[315,4,315,5],[15,0,15,5],[18,0,19,0],[18,1,18,4],[18,5,19,5],[313,0,313,4]]}
{"$rows_empty":15}
["Распределение  бюджетных ассигнований   по разделам, подразделам, целевым статьям и видам расходов классификации расходов бюджетов на  2013 год"]
[]
[]
["Наименование показателя","Код",null,null,null,"Сумма , тыс. руб. "]
[null,"раздела","подраздела","целевой статьи","вида расходов"]
[1,2,3,4,5,6]
["ОБЩЕГОСУДАРСТВЕННЫЕ ВОПРОСЫ",1,0,0,0,72193.100000000006]
["Функционирование высшего должностного лица субъекта Российской Федерации и муниципального образования",1,2,0,0,2412]
["Руководство и управление в сфере установленных функций органов государственной власти субъектов Российской Федерации  и органов местного самоуправления",1,2,20000,0,2412]
["Глава муниципального образования",1,2,20300,0,2412]
["Выполнение функций органами местного самоуправления",1,2,20300,"500",2412]
["Функционирование законодательных (представительных) органов государственной власти и представительных органов муниципальных образований",1,3,0,0,1321.1]
["Руководство и управление в сфере установленных функций органов государственной власти субъектов Российской Федерации  и органов местного самоуправления",1,3,20000,0,1321.1]
["Центральный аппарат",1,3,20400,0,401.1]
["Выполнение функций органами местного самоуправления",1,3,20400,"500",401.1]
["Председатель представительного органа муниципального образования",1,3,21100,0,920]
["Выполнение функций органами местного самоуправления",1,3,21100,"500",920]
["Функционирование Правительства Российской Федерации, высших исполнительных органов государственной власти субъектов Российской Федерации, местных администраций",1,4,0,0,26024.3]
["Руководство и управление в сфере установленных функций органов государственной власти субъектов Российской Федерации  и органов местного самоуправления",1,4,20000,0,25963.4]
["Центральный аппарат",1,4,20400,0,25963.4]
["Выполнение функций органами местного самоуправления",1,4,20400,"500",25963.4]
["Региональные целевые программы",1,4,5220000,0,42.6]
["Долгосрочная целевая программа «Энергосбережение и повышение энергетической эффективности на территории Иркутской области на 2011-2015 годы и на период до 2020 года»",1,4,5225400,0,42.6]
["Выполнение функций органами местного самоуправления",1,4,5225400,"500",42.6]
["Целевые программы муниципальных образований",1,4,7950000,0,18.3]
["Долгосрочная целевая программа энергосбережения и повышения энергетической эффективности Черемховского районного муниципального образования на 2010-2015 годы",1,4,7951100,0,18.3]
["Мероприятия по повышению энергетической эффективности",1,4,7951100,"451",18.3]
["Обеспечение деятельности финансовых, налоговых и таможенных органов и органов финансового (финансово-бюджетного) надзора",1,6,0,0,11159.1]
["Руководство и управление в сфере установленных функций органов государственной власти субъектов Российской Федерации  и органов местного самоуправления",1,6,20000,0,10959.1]
["Центральный аппарат",1,6,20400,0,9843.7999999999993]
["Выполнение функций органами местного самоуправления",1,6,20400,"500",9843.7999999999993]
["Руководитель контрольно-счетной палаты муниципального образования и его заместители",1,6,22500,0,1115.3]
["Выполнение функций органами местного самоуправления",1,6,22500,"500",1115.3]
["Целевые программы муниципальных образований",1,6,7950000,0,200]
["Долгосрочная целевая программа Черемховского районного муниципального образования \"Повышение эффективности бюджетных расходов Черемховского районного муниципального образования на 2012-2013 годы\"",1,6,7950200,0,200]
["Выполнение функций органами местного самоуправления",1,6,7950200,"500",200]
["Обеспечение проведения выборов и референдумов",1,7,0,0,0]
["Проведение выборов и референдумов",1,7,200000,0,0]
["Проведение выборов и референдумов",1,7,200000,0,0]
["Проведение выборов в представительные органы муниципального образования",1,7,200002,0,0]
["Выполнение функций органами местного самоуправления",1,7,200002,"500",0]
["Резервные фонды",1,11,0,0,300]
["Резервные фонды",1,11,700000,0,300]
["Резервные фонды местных администраций",1,11,700500,0,300]
["Выполнение функций органами местного самоуправления",1,11,700500,"500",300]
["Другие общегосударственные вопросы",1,13,0,0,30976.6]
["Руководство и управление в сфере установленных функций органов государственной власти субъектов Российской Федерации  и органов местного самоуправления",1,13,20000,0,22096.6]
["Центральный аппарат",1,13,20400,0,3107.1]
["Выполнение функций органами местного самоуправления",1,13,20400,"500",3107.1]
["Осуществление областных государственных полномочий по хранению, комплектованию, учету и использованию архивных документов, относящихся к государственной собственности Иркутской области",1,13,24000,0,1174]
["Выполнение функций органами местного самоуправления",1,13,24000,"500",1174]
["Осуществление областных государственных полномочий по определению персонального состава и обеспечению деятельности административных комиссий",1,13,24300,0,604.1]
["Выполнение функций органами местного самоуправления",1,13,24300,"500",604.1]
["Осуществление отдельных государственных полномочий в области производства и оборота этилового спирта, алкогольной и спиртосодержащей продукции",1,13,24400,0,402.8]
["Выполнение функций органами местного самоуправления",1,13,24400,"500",402.8]
["Осуществление отдельных областных государственных полномочий в области охраны труда",1,13,24500,0,604.1]
["Выполнение функций органами местного самоуправления",1,13,24500,"500",604.1]
["Обеспечение деятельности подведомственных учреждений",1,13,29900,0,16204.5]
["Выполнение функций казенными учреждениями",1,13,29900,"001",15304.5]
["Субсидии бюджетным учреждениям на финансовое обеспечение муниципального задания на оказание муниципальных услуг (выполнение работ)",1,13,29900,"611",900]
["Реализация государственных функций, связанных с общегосударственным управлением",1,13,920000,0,1576.4]
["Выполнение других обязательств государства",1,13,920300,0,1576.4]
["Выполнение функций органами местного самоуправления",1,13,920300,"500",1576.4]
["Учреждения по обеспечению хозяйственного обслуживания",1,13,930000,0,6500]
["Субсидии бюджетным учреждениям на финансовое обеспечение муниципального задания на оказание муниципальных услуг (выполнение работ)",1,13,930000,"611",6500]
["Целевые программы муниципальных образований",1,13,7950000,0,803.6]
["Долгосрочная целевая программа \"Улучшение условий и охраны труда в Черемховском районе на 2011-2013гг.\"",1,13,7951400,0,15]
["Выполнение функций органами местного самоуправления",1,13,7951400,"500",15]
["Долгосрочная целевая программа \"Инвентаризация муниципальных объектов недвижимости Черемховского районного муниципального образования на 2012-2014 годы\"",1,13,7951900,0,648.6]
["Выполнение функций органами местного самоуправления",1,13,7951900,"500",648.6]
["Комплексная программа \"Профилактика правонарушений в Черемховском районном муниципальном образовании на 2013-2016 годы\"",1,13,7952600,0,40]
["Выполнение функций органами местного самоуправления",1,13,7952600,"500",40]
["Долгосрочная целевая программа \"Поддержка молодых педагогов на территории Черемховского районного муниципального образования\" на 2012-2013 годы",1,13,7952700,0,100]
["Выполнение функций органами местного самоуправления",1,13,7952700,"500",100]
["НАЦИОНАЛЬНАЯ ЭКОНОМИКА",4,0,0,0,5981.7]
["Дорожное хозяйство(дорожные фонды)",4,9,0,0,5351.5]
["Региональные целевые программы",4,9,5220000,0,3829]
["Долгосрочная целевая программа \"Развитие автомобильных дорог общего пользования регионального или межмуниципального значения и местного значения в Иркутской области на 2011 - 2014 годы\"",4,9,5224700,0,3829]
["Выполнение функций органами местного самоуправления",4,9,5224700,"500",3829]
["Целевые программы муниципальных образований",4,9,7950000,0,1522.5]
["Долгосрочная целевая программа \"Инвентаризация муниципальных объектов недвижимости Черемховского районного муниципального образования на 2012-2014 годы\"",4,9,7951900,0,1320]
["Выполнение функций органами местного самоуправления",4,9,7951900,"500",1320]
["Долгосрочная целевая программа \"Развитие автомобильных дорог Черемховского районного муниципального образования на 2013-2015 годы\"",4,9,7952300,0,202.5]
["Выполнение функций органами местного самоуправления",4,9,7952300,"500",202.5]
["Другие вопросы в области национальной экономики",4,12,0,0,630.20000000000005]
["Мероприятия в области строительства, архитектуры и градостроительства",4,12,3380000,0,30.2]
["Подготовка проектов правил землепользования и застройки муниципальных образований Черемховского районного муниципального образования",4,12,3380200,0,30.2]
["Выполнение функций органами местного самоуправления",4,12,3380200,"500",30.2]
["Целевые программы муниципальных образований",4,12,7950000,0,600]
["Долгосрочная целевая программа \"Инвентаризация муниципальных объектов недвижимости Черемховского районного муниципального образования на 2012-2014 годы\"",4,12,7951900,0,500]
["Выполнение функций органами местного самоуправления",4,12,7951900,"500",500]
["Долгосрочная целевая программа \"Поддержка и развитие малого и среднего предпринимательства в Черемховском районе\" на 2013-2014 годы",4,12,7952200,0,100]
["Выполнение функций органами местного самоуправления",4,12,7952200,"500",100]
["ЖИЛИЩНО-КОММУНАЛЬНОЕ ХОЗЯЙСТВО",5,0,0,0,6719.8]
["Жилищное хозяйство",5,1,0,0,1353.8]
["Поддержка жилищного хозяйства",5,1,3500000,0,1353.8]
["Мероприятия в области жилищного хозяйства",5,1,3500300,0,1353.8]
["Выполнение функций органами местного самоуправления",5,1,3500300,"500",1353.8]
["Коммунальное хозяйство",5,2,0,0,70]
["Региональные целевые программы",5,2,5220000,0,70]
["Долгосрочная целевая программа «Энергосбережение и повышение энергетической эффективности на территории Иркутской области на 2011-2015 годы и на период до 2020 года»",5,2,5225400,0,70]
["Иные межбюджетные трансферты",5,2,5225400,"017",70]
["Другие вопросы в области жилищно-коммунального хозяйства",5,5,0,0,5296]
["Руководство и управление в сфере установленных функций органов государственной власти субъектов Российской Федерации  и органов местного самоуправления",5,5,20000,0,5296]
["Центральный аппарат",5,5,20400,0,5296]
["Выполнение функций органами местного самоуправления",5,5,20400,"500",5296]
["ОХРАНА ОКРУЖАЮЩЕЙ СРЕДЫ",6,0,0,0,5150]
["Другие вопросы в области охраны окружающей среды",6,5,0,0,5150]
["Состояние окружающей среды и природопользования",6,5,4100000,0,150]
["Природоохранные мероприятия",6,5,4100100,0,150]
["Выполнение функций органами местного самоуправления",6,5,4100100,"500",150]
["Региональные целевые программы",6,5,5220000,0,5000]
["Долгосрочная целевая программа Иркутской области «Защита окружающей среды в Иркутской области на 2011-2015 годы»",6,5,5222500,0,5000]
["Подпрограмма «Отходы производства и потребления в Иркутской области на 2011-2015 годы»",6,5,5222502,0,5000]
["Выполнение функций органами местного самоуправления",6,5,5222502,"500",5000]
["ОБРАЗОВАНИЕ",7,0,0,0,471874.6]
["Дошкольное образование",7,1,0,0,105029.8]
["Детские дошкольные учреждения",7,1,4200000,0,65397.3]
["Обеспечение деятельности подведомственных учреждений",7,1,4209900,0,65397.3]
["Выполнение функций казенными учреждениями",7,1,4209900,"001",65397.3]
["Региональные целевые программы",7,1,5220000,0,3335.8]
["Областная государственная целевая программа поддержки и развития учреждений дошкольного образования в Иркутской области на 2009-2014 годы",7,1,5223700,0,3027.5]
["Выполнение функций казенными учреждениями",7,1,5223700,"001",3027.5]
["Долгосрочная целевая программа «Энергосбережение и повышение энергетической эффективности на территории Иркутской области на 2011-2015 годы и на период до 2020 года»",7,1,5225400,0,308.3]
["Выполнение функций казенными учреждениями",7,1,5225400,"001",308.3]
["Выплата заработной платы с начислениями на нее педагогическим работникам муниципальных дошкольных образовательных учреждений и муниципальных учреждений дополнительного образования",7,1,5890000,0,30529.7]
["Выполнение функций казенными учреждениями",7,1,5890000,"001",30529.7]
["Целевые программы муниципальных образований",7,1,7950000,0,5767]
["Долгосрочная целевая программа Черемховского районного муниципального образования \"Повышение эффективности бюджетных расходов Черемховского районного муниципального образования на 2012-2013 годы\"",7,1,7950200,0,3611]
["Выполнение функций казенными учреждениями",7,1,7950200,"001",3611]
["Долгосрочная целевая программа \"Безопасность образовательных учреждений на 2010-2014 гг.\"",7,1,7951000,0,572]
["Мероприятия по обеспечению пожарной безопасности",7,1,7951000,"450",572]
["Долгосрочная целевая программа энергосбережения и повышения энергетической эффективности Черемховского районного муниципального образования на 2010-2015 годы",7,1,7951100,0,132]
["Мероприятия по повышению энергетической эффективности",7,1,7951100,"451",132]
["Долгосрочная целевая программа \"Развитие дошкольного образования на 2011-2014 гг.\"",7,1,7951700,0,1102]
["Мероприятия в сфере образования",7,1,7951700,"022",1102]
["Долгосрочная целевая программа \"Совершенствование дошкольного образования Черемховского района на 2011-2014 гг.\"",7,1,7951800,0,350]
["Мероприятия в сфере образования",7,1,7951800,"022",350]
["Общее образование",7,2,0,0,355560.1]
["Руководство и управление в сфере установленных функций органов государственной власти субъектов Российской Федерации  и органов местного самоуправления",7,2,20000,0,281204.5]
["Обеспечение государственных гарантий прав граждан на получение общедоступного и бесплатного дошкольного, начального общего, основного общего, среднего (полного) общего образования, а также дополнительного образования в общеобразовательных учреждениях",7,2,25000,0,281204.5]
["Выполнение функций казенными учреждениями",7,2,25000,"001",281204.5]
["Школы - детские сады, школы начальные, неполные средние и средние",7,2,4210000,0,22043.4]
["Обеспечение деятельности подведомственных учреждений",7,2,4219900,0,22043.4]
["Выполнение функций казенными учреждениями",7,2,4219900,"001",22043.4]
["Учреждения по внешкольной работе с детьми",7,2,4230000,0,28842.799999999999]
["Обеспечение деятельности подведомственных учреждений",7,2,4239900,0,28842.799999999999]
["Выполнение функций казенными учреждениями",7,2,4239900,"001",28842.799999999999]
["Мероприятия в области образования",7,2,4360000,0,1600]
["Модернизация региональных систем образования",7,2,4362100,0,1600]
["Модернизация региональных систем образования за счет средств федерального бюджета",7,2,4362101,0,1600]
["Выполнение функций казенными учреждениями",7,2,4362101,"001",1600]
["Иные безвозмездные и безвозвратные перечисления",7,2,5200000,0,5000.1000000000004]
["Ежемесячное денежное вознаграждение за классное руководство",7,2,5200900,0,5000.1000000000004]
["Выполнение функций казенными учреждениями",7,2,5200900,"001",5000.1000000000004]
["Региональные целевые программы",7,2,5220000,0,2040.1]
["Долгосрочная целевая программа «Модернизация объектов коммунальной инфраструктуры Иркутской области на 2011-2013 годы»",7,2,5222000,0,1700]
["Подпрограмма «Подготовка объектов коммунальной инфраструктуры Иркутской области к отопительному сезону в 2011-2013 годах»",7,2,5222001,0,1700]
["Выполнение функций казенными учреждениями",7,2,5222001,"001",1700]
["Долгосрочная целевая программа «Энергосбережение и повышение энергетической эффективности на территории Иркутской области на 2011-2015 годы и на период до 2020 года»",7,2,5225400,0,340.1]
["Выполнение функций казенными учреждениями",7,2,5225400,"001",340.1]
["Выплата заработной платы с начислениями на нее педагогическим работникам муниципальных дошкольных образовательных учреждений и муниципальных учреждений дополнительного образования",7,2,5890000,0,1645.5]
["Выполнение функций казенными учреждениями",7,2,5890000,"001",1645.5]
["Целевые программы муниципальных образований",7,2,7950000,0,13183.7]
["Долгосрочная целевая программа Черемховского районного муниципального образования \"Повышение эффективности бюджетных расходов Черемховского районного муниципального образования на 2012-2013 годы\"",7,2,7950200,0,9594.9]
["Выполнение функций казенными учреждениями",7,2,7950200,"001",9594.9]
["Долгосрочная целевая программа \"Безопасность образовательных учреждений на 2010-2014 гг.\"",7,2,7951000,0,1128]
["Мероприятия по обеспечению пожарной безопасности",7,2,7951000,"450",1128]
["Долгосрочная целевая программа энергосбережения и повышения энергетической эффективности Черемховского районного муниципального образования на 2010-2015 годы",7,2,7951100,0,468]
["Мероприятия по повышению энергетической эффективности",7,2,7951100,"451",468]
["Долгосрочная целевая программа \"Ветхие школы Черемховского района\" на 2011-2013 гг.",7,2,7951500,0,900]
["Мероприятия в сфере образования",7,2,7951500,"022",900]
["Долгосрочная целевая программа \"Совершенствование организации питания в образовательных учреждениях Черемховского района на 2011-2013гг.\"",7,2,7951600,0,1000]
["Мероприятия в сфере образования",7,2,7951600,"022",1000]
["Долгосрочная целевая программа \"Развитие культуры в Черемховском районном муниципальном образовании на период 2012-2016 гг.\"",7,2,7952000,0,92.8]
["Мероприятия по поддержке и развитию культуры, искусства, кинематографии",7,2,7952000,"023",92.8]
["Профессиональная подготовка, переподготовка и повышение квалификации",7,5,0,0,215.5]
["Мероприятия по переподготовке и повышению квалификации",7,5,4340000,0,215.5]
["Выполнение функций казенными учреждениями",7,5,4340000,"001",108.1]
["Выполнение функций органами местного самоуправления",7,5,4340000,"500",107.4]
["Молодежная политика и оздоровление детей",7,7,0,0,2571.9]
["Организационно-воспитательная работа с молодежью",7,7,4310000,0,46]
["Проведение мероприятий для детей и молодежи",7,7,4310100,0,46]
["Проведение мероприятия для детей и молодежи",7,7,4310100,"447",46]
["Мероприятия по проведению оздоровительной кампании детей",7,7,4320000,0,123.8]
["Оплата стоимости набора продуктов питания для детей в организованных органами местного самоуправления оздоровительных лагерях с дневным пребыванием детей за счет средств областного бюджета",7,7,4320300,0,123.8]
["Оплата стоимости набора продуктов питания для детей в организованных органами местного самоуправления оздоровительных лагерях с дневным пребыванием детей за счет средств местного бюджета",7,7,4320302,0,123.8]
["Выполнение функций казенными учреждениями",7,7,4320302,"001",123.8]
["Региональные целевые программы",7,7,5220000,0,2352.1]
["Долгосрочная целевая программа Иркутской области \"Организация и обеспечение отдыха и оздоровления детей в Иркутской области на 2012-2014гг.\"",7,7,5226200,0,2352.1]
["Выполнение функций казенными учреждениями",7,7,5226200,"001",2352.1]
["Целевые программы муниципальных образований",7,7,7950000,0,50]
["Долгосрочная целевая программа \"Комплексные меры профилактики злоупотребления наркотическими средствами и психотропными веществами в Черемховском районном муниципальном образовании на 2011-2013 гг.\"",7,7,7951300,0,10]
["Выполнение функций органами местного самоуправления",7,7,7951300,"500",10]
["Долгосрочная целевая программа \"Молодежная политика в Черемховском районном муниципальном образовании\" на 2013-2015 гг.",7,7,7952500,0,40]
["Проведение мероприятия для детей и молодежи",7,7,7952500,"447",40]
["Другие вопросы в области образования",7,9,0,0,8497.2999999999993]
["Руководство и управление в сфере установленных функций органов государственной власти субъектов Российской Федерации  и органов местного самоуправления",7,9,20000,0,2997.3]
["Центральный аппарат",7,9,20400,0,2997.3]
["Выполнение функций органами местного самоуправления",7,9,20400,"500",2997.3]
["Учебно-методические кабинеты, централизованные бухгалтерии, группы хозяйственного обслуживания, учебные фильмотеки, межшкольные учебно-производственные комбинаты, логопедические пункты",7,9,4520000,0,5500]
["Субсидии бюджетным учреждениям на финансовое обеспечение муниципального задания на оказание муниципальных услуг (выполнение работ)",7,9,4520000,"611",5500]
["КУЛЬТУРА И КИНЕМАТОГРАФИЯ",8,0,0,0,20909]
["Культура",8,1,0,0,19587.3]
["Учреждения культуры и мероприятия в сфере культуры и кинематографии",8,1,4400000,0,6931.2]
["Комплектование книжных фондов библиотек муниципальных образований и государственных библиотек городов Москвы и Санкт-Петербурга",8,1,4400200,0,466.3]
["Комплектование книжных фондов библиотек муниципальных образований и государственных библиотек городов Москвы и Санкт-Петербурга за счет средств федерального бюджета",8,1,4400201,0,303.60000000000002]
["Выполнение функций казенными учреждениями",8,1,4400201,"001",303.60000000000002]
["Комплектование книжных фондов библиотек муниципальных образований и государственных библиотек городов Москвы и Санкт-Петербурга за счет областного бюджета",8,1,4400202,0,162.69999999999999]
["Выполнение функций казенными учреждениями",8,1,4400202,"001",162.69999999999999]
["Обеспечение деятельности подведомственных учреждений",8,1,4409900,0,6464.9]
["Выполнение функций казенными учреждениями",8,1,4409900,"001",6464.9]
["Музеи и постоянные выставки",8,1,4410000,0,1259.9000000000001]
["Обеспечение деятельности подведомственных учреждений",8,1,4419900,0,1259.9000000000001]
["Выполнение функций казенными учреждениями",8,1,4419900,"001",1259.9000000000001]
["Библиотеки",8,1,4420000,0,8636.2000000000007]
["Обеспечение деятельности подведомственных учреждений",8,1,4429900,0,8636.2000000000007]
["Выполнение функций казенными учреждениями",8,1,4429900,"001",8636.2000000000007]
["Региональные целевые программы",8,1,5220000,0,1000]
["Долгосрочная целевая программа Иркутской области «100 модельных домов культуры Приангарью» на 2011-2013 годы",8,1,5225500,0,1000]
["Выполнение функций казенными учреждениями",8,1,5225500,"001",1000]
["Целевые программы муниципальных образований",8,1,7950000,0,1760]
["Долгосрочная целевая программа Черемховского районного муниципального образования \"Повышение эффективности бюджетных расходов Черемховского районного муниципального образования на 2012-2013 годы\"",8,1,7950200,0,547]
["Выполнение функций казенными учреждениями",8,1,7950200,"001",547]
["Долгосрочная целевая программа энергосбережения и повышения энергетической эффективности Черемховского районного муниципального образования на 2010-2015 годы",8,1,7951100,0,282]
["Мероприятия по повышению энергетической эффективности",8,1,7951100,"451",282]
["Долгосрочная целевая программа \"Развитие культуры в Черемховском районном муниципальном образовании на период 2012-2016 гг.\"",8,1,7952000,0,931]
["Мероприятия по поддержке и развитию культуры, искусства, кинематографии",8,1,7952000,"023",931]
["Другие вопросы в области культуры, кинематографии",8,4,0,0,1321.7]
["Руководство и управление в сфере установленных функций органов государственной власти субъектов Российской Федерации  и органов местного самоуправления",8,4,20000,0,1321.7]
["Центральный аппарат",8,4,20400,0,1321.7]
["Выполнение функций органами местного самоуправления",8,4,20400,"500",1321.7]
["ЗДРАВООХРАНЕНИЕ",9,0,0,0,200]
["Другие вопросы в области здравоохранения",9,9,0,0,200]
["Целевые программы муниципальных образований",9,9,7950000,0,200]
["Ведомственная целевая программа \"Обеспечение учреждений здравоохранения Черемховского районного муниципального образования квалифицированными медицинскими кадрами\" на 2013 год",9,9,7952800,0,200]
["Выполнение функций органами местного самоуправления",9,9,7952800,"500",200]
["Социальная политика",10,0,0,0,24388.2]
["Пенсионное обеспечение",10,1,0,0,2980]
["Доплаты к пенсиям, дополнительное пенсионное обеспечение ",10,1,4910000,0,2980]
["Доплаты к пенсиям государственных служащих субъектов Российской Федерации и муниципальных служащих ",10,1,4910100,0,2980]
["Социальные выплаты",10,1,4910100,"005",2980]
["Социальное обеспечение населения",10,3,0,0,15400.4]
["Руководство и управление в сфере установленных функций органов государственной власти субъектов Российской Федерации  и органов местного самоуправления",10,3,20000,0,13951.5]
["Осуществление отдельных областных государственных полномочий по предоставлению мер социальной поддержки многодетным и малоимущим семьям",10,3,24600,0,6361.8]
["Социальные выплаты",10,3,24600,"005",6361.8]
["Осуществление областных государственных полномочий по предоставлению гражданам субсидий на оплату жилых помещений и коммунальных услуг",10,3,24700,0,7589.7]
["Содержание и обеспечение деятельности муниципальных служащих, осуществляющих областные государственные полномочия по предоставлению гражданам субсидий на оплату жилых помещений и коммунальных услуг",10,3,24701,0,827.4]
["Выполнение функций органами местного самоуправления",10,3,24701,"500",827.4]
["Предоставление гражданам субсидий на оплату жилых помещений и коммунальных услуг",10,3,24702,0,6762.3]
["Социальные выплаты",10,3,24702,"005",6762.3]
["Реализация государственных функций в области социальной политики",10,3,5140000,0,854]
["Мероприятия в области социальной политики",10,3,5140100,0,854]
["Социальные выплаты",10,3,5140100,"005",854]
["Региональные целевые программы",10,3,5220000,0,234.9]
["Областная государственная социальная программа \"Молодым семьям - доступное жилье\" на 2005-2019 годы",10,3,5222200,0,234.9]
["Социальные выплаты",10,3,5222200,"005",234.9]
["Целевые программы муниципальных образований",10,3,7950000,0,360]
["Долгосрочная целевая программа \"Молодым семьям-доступное жилье\" на 2012-2019 гг.",10,3,7952100,0,360]
["Социальные выплаты",10,3,7952100,"005",360]
["Охрана семьи и детства",10,4,0,0,4752]
["Исполнение судебных актов по обеспечению жилыми помещениями детей-сирот и детей, оставшихся без попечения родителей, лиц из числа детей-сирот и детей, оставшихся без попечения родителей, вынесенных в соответствии с Законом Иркутской области от 22.06.2010 № 50-ОЗ «О дополнительных гарантиях прав детей-сирот и детей, оставшихся без попечения родителей, на жилое помещение в Иркутской области» и Законом Иркутской области от 29.06.2010 № 52-ОЗ «О наделении органов местного самоуправления областными государственными полномочиями по обеспечению детей-сирот и детей, оставшихся без попечения родителей, лиц из числа детей-сирот и детей, оставшихся без попечения родителей, жилыми помещениями по договорам социального найма в Иркутской области",10,4,6040000,0,4752]
["Бюджетные инвестиции",10,4,6040000,"003",4752]
["Другие вопросы в области социальной политики",10,6,0,0,1255.8]
["Руководство и управление в сфере установленных функций органов государственной власти субъектов Российской Федерации  и органов местного самоуправления",10,6,20000,0,1155.8]
["Осуществление областных государственных полномочий по определению персонального состава и обеспечению деятельности районных (городских), районных в городах комиссий по делам несовершеннолетних и защите их прав",10,6,24100,0,1155.8]
["Выполнение функций органами местного самоуправления",10,6,24100,"500",1155.8]
["Целевые программы муниципальных образований",10,6,7950000,0,100]
["Муниципальная целевая программа \"Поддержка, проводимых мероприятий, посвященных Дням воинской славы, памятным датам России и работе с ветеранами и инвалидами в Черемховском районе на 2013-2015 гг.\"",10,6,7952400,0,100]
["Выполнение функций органами местного самоуправления",10,6,7952400,"500",100]
["ФИЗИЧЕСКАЯ КУЛЬТУРА И СПОРТ",11,0,0,0,182.4]
["Физическая культура",11,1,0,0,182.4]
["Физкультурно-оздоровительная работа и спортивные мероприятия",11,1,5120000,0,82.4]
["Мероприятия в области спорта, физической культуры и туризма",11,1,5129700,0,82.4]
["Выполнение функций органами местного самоуправления",11,1,5129700,"500",82.4]
["Целевые программы муниципальных образований",11,1,7950000,0,100]
["Долгосрочная целевая программа \"Развитие физической культуры, спорта и туризма в Черемховском районном муниципальном образовании на 2011-2013 гг.\"",11,1,7951200,0,100]
["Выполнение функций органами местного самоуправления",11,1,7951200,"500",100]
["СРЕДСТВА МАССОВОЙ ИНФОРМАЦИИ",12,0,0,0,2000]
["Периодическая печать и издательства",12,2,0,0,2000]
["Периодические издания, учрежденные органами законодательной и исполнительной власти",12,2,4570000,0,2000]
["Государственная поддержка в сфере культуры, кинематографии и средств массовой информации",12,2,4578500,0,2000]
["Субсидии юридическим лицам",12,2,4578500,"006",2000]
["ОБСЛУЖИВАНИЕ ГОСУДАРСТВЕННОГО И МУНИЦИПАЛЬНОГО ДОЛГА",13,0,0,0,60]
["Обслуживание внутреннего государственного и муниципального долга",13,1,0,0,60]
["Процентные платежи по долговым обязательствам",13,1,650000,0,60]
["Процентные платежи по муниципальному долгу",13,1,650300,0,60]
["Прочие расходы",13,1,650300,"013",60]
["МЕЖБЮДЖЕТНЫЕ ТРАНСФЕРТЫ ОБЩЕГО ХАРАКТЕРА БЮДЖЕТАМ СУБЪЕКТОВ РОССИЙСКОЙ ФЕДЕРАЦИИ И МУНИЦИПАЛЬНЫХ ОБРАЗОВАНИЙ ",14,0,0,0,6866]
["Дотации на выравнивание бюджетной обеспеченности субъектов Российской Федерации и муниципальных образований",14,1,0,0,3500]
["Выравнивание бюджетной обеспечености",14,1,5160000,0,3500]
["Выравнивание бюджетной обеспеченности",14,1,5160100,0,3500]
["Выравнивание бюджетной обеспеченности поселений из районного фонда финансовой поддержки",14,1,5160130,0,3500]
["Фонд финансовой поддержки",14,1,5160130,"008",3500]
["Прочие межбюджетные трансферты общего характера бюджетам субъектов Российской Федерации и муниципальных образований ",14,3,0,0,3366]
["Целевые программы муниципальных образований",14,3,7950000,0,3366]
["Долгосрочная целевая программа Черемховского районного муниципального образования \"Повышение эффективности бюджетных расходов Черемховского районного муниципального образования на 2012-2013 годы\"",14,3,7950200,0,3366]
["Иные межбюджетные трансферты",14,3,7950200,"017",3366]
["ИТОГО",{"$nulls":4},616524.80000000005]
[]
["Начальник финуправления",null,null,null,"Ю.Н. Гайдук"]

{"sheet":"прил5","index":4,"n_rows":314,"n_cols":7,"rows_kept":314,"cut":false,"hidden":false,"merged":[[311,0,311,4],[313,5,313,6],[14,0,14,6],[16,0,17,0],[16,1,16,4],[16,5,16,6]]}
{"$rows_empty":14}
["Распределение  бюджетных ассигнований   по разделам, подразделам, целевым статьям и видам расходов классификации расходов бюджетов на  плановый период 2014 и 2015 годов"]
[]
["Наименование показателя","Код",null,null,null,"Сумма, тыс.руб."]
[null,"раздела","подраздела","целевой статьи","вида расходов",2014,2015]
[1,2,3,4,5,6,7]
["ОБЩЕГОСУДАРСТВЕННЫЕ ВОПРОСЫ",1,0,0,0,57173.4,56134.3]
["Функционирование высшего должностного лица субъекта Российской Федерации и муниципального образования",1,2,0,0,1403,1472.1]
["Руководство и управление в сфере установленных функций органов государственной власти субъектов Российской Федерации  и органов местного самоуправления",1,2,20000,0,1403,1472.1]
["Глава муниципального образования",1,2,20300,0,1403,1472.1]
["Выполнение функций органами местного самоуправления",1,2,20300,"500",1403,1472.1]
["Функционирование законодательных (представительных) органов государственной власти и представительных органов муниципальных образований",1,3,0,0,940.5,986.3]
["Руководство и управление в сфере установленных функций органов государственной власти субъектов Российской Федерации  и органов местного самоуправления",1,3,20000,0,940.5,986.3]
["Центральный аппарат",1,3,20400,0,289,302]
["Выполнение функций органами местного самоуправления",1,3,20400,"500",289,302]
["Председатель представительного органа муниципального образования",1,3,21100,0,651.5,684.3]
["Выполнение функций органами местного самоуправления",1,3,21100,"500",651.5,684.3]
["Функционирование Правительства Российской Федерации, высших исполнительных органов государственной власти субъектов Российской Федерации, местных администраций",1,4,0,0,20490.599999999999,21389.4]
["Руководство и управление в сфере установленных функций органов государственной власти субъектов Российской Федерации  и органов местного самоуправления",1,4,20000,0,20490.599999999999,21389.4]
["Центральный аппарат",1,4,20400,0,20490.599999999999,21389.4]
["Выполнение функций органами местного самоуправления",1,4,20400,"500",20490.599999999999,21389.4]
["Региональные целевые программы",1,4,5220000,0,0,0]
["Долгосрочная целевая программа «Энергосбережение и повышение энергетической эффективности на территории Иркутской области на 2011-2015 годы и на период до 2020 года»",1,4,5225400,0,0,0]
["Выполнение функций органами местного самоуправления",1,4,5225400,"500",0,0]
["Целевые программы муниципальных образований",1,4,7950000,0,0,0]
["Долгосрочная целевая программа энергосбережения и повышения энергетической эффективности Черемховского районного муниципального образования на 2010-2015 годы",1,4,7951100,0,0,0]
["Мероприятия по повышению энергетической эффективности",1,4,7951100,"451",0,0]
["Обеспечение деятельности финансовых, налоговых и таможенных органов и органов финансового (финансово-бюджетного) надзора",1,6,0,0,7459.3,7789.5]
["Руководство и управление в сфере установленных функций органов государственной власти субъектов Российской Федерации  и органов местного самоуправления",1,6,20000,0,7459.3,7789.5]
["Центральный аппарат",1,6,20400,0,6674.1,6964.3]
["Выполнение функций органами местного самоуправления",1,6,20400,"500",6674.1,6964.3]
["Руководитель контрольно-счетной палаты муниципального образования и его заместители",1,6,22500,0,785.2,825.2]
["Выполнение функций органами местного самоуправления",1,6,22500,"500",785.2,825.2]
["Целевые программы муниципальных образований",1,6,7950000,0,0,0]
["Долгосрочная целевая программа Черемховского районного муниципального образования \"Повышение эффективности бюджетных расходов Черемховского районного муниципального образования на 2012-2013 годы\"",1,6,7950200,0,0,0]
["Выполнение функций органами местного самоуправления",1,6,7950200,"500",0,0]
["Обеспечение проведения выборов и референдумов",1,7,0,0,2500,0]
["Проведение выборов и референдумов",1,7,200000,0,2500,0]
["Проведение выборов и референдумов",1,7,200000,0,2500,0]
["Проведение выборов в представительные органы муниципального образования",1,7,200002,0,2500,0]
["Выполнение функций органами местного самоуправления",1,7,200002,"500",2500,0]
["Резервные фонды",1,11,0,0,300,300]
["Резервные фонды",1,11,700000,0,300,300]
["Резервные фонды местных администраций",1,11,700500,0,300,300]
["Выполнение функций органами местного самоуправления",1,11,700500,"500",300,300]
["Другие общегосударственные вопросы",1,13,0,0,24080,24197]
["Руководство и управление в сфере установленных функций органов государственной власти субъектов Российской Федерации  и органов местного самоуправления",1,13,20000,0,16869.2,17486.2]
["Центральный аппарат",1,13,20400,0,2262.4,2351.6999999999998]
["Выполнение функций органами местного самоуправления",1,13,20400,"500",2262.4,2351.6999999999998]
["Осуществление областных государственных полномочий по хранению, комплектованию, учету и использованию архивных документов, относящихся к государственной собственности Иркутской области",1,13,24000,0,1086,1086]
["Выполнение функций органами местного самоуправления",1,13,24000,"500",1086,1086]
["Осуществление областных государственных полномочий по определению персонального состава и обеспечению деятельности административных комиссий",1,13,24300,0,563.6,563.6]
["Выполнение функций органами местного самоуправления",1,13,24300,"500",563.6,563.6]
["Осуществление отдельных государственных полномочий в области производства и оборота этилового спирта, алкогольной и спиртосодержащей продукции",1,13,24400,0,404.3,430.2]
["Выполнение функций органами местного самоуправления",1,13,24400,"500",404.3,430.2]
["Осуществление отдельных областных государственных полномочий в области охраны труда",1,13,24500,0,563.6,563.6]
["Выполнение функций органами местного самоуправления",1,13,24500,"500",563.6,563.6]
["Обеспечение деятельности подведомственных учреждений",1,13,29900,0,11989.3,12491.1]
["Выполнение функций казенными учреждениями",1,13,29900,"001",11089.3,11591.1]
["Субсидии бюджетным учреждениям на финансовое обеспечение муниципального задания на оказание муниципальных услуг (выполнение работ)",1,13,29900,"611",900,900]
["Реализация государственных функций, связанных с общегосударственным управлением",1,13,920000,0,170.8,170.8]
["Выполнение других обязательств государства",1,13,920300,0,170.8,170.8]
["Выполнение функций органами местного самоуправления",1,13,920300,"500",170.8,170.8]
["Учреждения по обеспечению хозяйственного обслуживания",1,13,930000,0,6500,6500]
["Субсидии бюджетным учреждениям на финансовое обеспечение муниципального задания на оказание муниципальных услуг (выполнение работ)",1,13,930000,"611",6500,6500]
["Целевые программы муниципальных образований",1,13,7950000,0,540,40]
["Долгосрочная целевая программа \"Улучшение условий и охраны труда в Черемховском районе на 2011-2013гг.\"",1,13,7951400,0,0,0]
["Выполнение функций органами местного самоуправления",1,13,7951400,"500",0,0]
["Долгосрочная целевая программа \"Инвентаризация муниципальных объектов недвижимости Черемховского районного муниципального образования на 2012-2014 годы\"",1,13,7951900,0,500,0]
["Выполнение функций органами местного самоуправления",1,13,7951900,"500",500,0]
["Комплексная программа \"Профилактика правонарушений в Черемховском районном муниципальном образовании на 2013-2016 годы\"",1,13,7952600,0,40,40]
["Выполнение функций органами местного самоуправления",1,13,7952600,"500",40,40]
["Долгосрочная целевая программа \"Поддержка молодых педагогов на территории Черемховского районного муниципального образования\" на 2012-2013 годы",1,13,7952700,0,0,0]
["Выполнение функций органами местного самоуправления",1,13,7952700,"500",0,0]
["НАЦИОНАЛЬНАЯ ЭКОНОМИКА",4,0,0,0,3698.1,2406.5]
["Дорожное хозяйство(дорожные фонды)",4,9,0,0,3048.1,2406.5]
["Региональные целевые программы",4,9,5220000,0,0,0]
["Долгосрочная целевая программа \"Развитие автомобильных дорог общего пользования регионального или межмуниципального значения и местного значения в Иркутской области на 2011 - 2014 годы\"",4,9,5224700,0,0,0]
["Выполнение функций органами местного самоуправления",4,9,5224700,"500",0,0]
["Целевые программы муниципальных образований",4,9,7950000,0,3048.1,2406.5]
["Долгосрочная целевая программа \"Инвентаризация муниципальных объектов недвижимости Черемховского районного муниципального образования на 2012-2014 годы\"",4,9,7951900,0,0,0]
["Выполнение функций органами местного самоуправления",4,9,7951900,"500",0,0]
["Долгосрочная целевая программа \"Развитие автомобильных дорог Черемховского районного муниципального образования на 2013-2015 годы\"",4,9,7952300,0,3048.1,2406.5]
["Выполнение функций органами местного самоуправления",4,9,7952300,"500",3048.1,2406.5]
["Другие вопросы в области национальной экономики",4,12,0,0,650,0]
["Мероприятия в области строительства, архитектуры и градостроительства",4,12,3380000,0,0,0]
["Подготовка проектов правил землепользования и застройки муниципальных образований Черемховского районного муниципального образования",4,12,3380200,0,0,0]
["Выполнение функций органами местного самоуправления",4,12,3380200,"500",0,0]
["Целевые программы муниципальных образований",4,12,7950000,0,650,0]
["Долгосрочная целевая программа \"Инвентаризация муниципальных объектов недвижимости Черемховского районного муниципального образования на 2012-2014 годы\"",4,12,7951900,0,500,0]
["Выполнение функций органами местного самоуправления",4,12,7951900,"500",500,0]
["Долгосрочная целевая программа \"Поддержка и развитие малого и среднего предпринимательства в Черемховском районе\" на 2013-2014 годы",4,12,7952200,0,150,0]
["Выполнение функций органами местного самоуправления",4,12,7952200,"500",150,0]
["ЖИЛИЩНО-КОММУНАЛЬНОЕ ХОЗЯЙСТВО",5,0,0,0,4258,4464.7]
["Жилищное хозяйство",5,1,0,0,0,0]
["Поддержка жилищного хозяйства",5,1,3500000,0,0,0]
["Мероприятия в области жилищного хозяйства",5,1,3500300,0,0,0]
["Выполнение функций органами местного самоуправления",5,1,3500300,"500",0,0]
["Коммунальное хозяйство",5,2,0,0,0,0]
["Региональные целевые программы",5,2,5220000,0,0,0]
["Долгосрочная целевая программа «Энергосбережение и повышение энергетической эффективности на территории Иркутской области на 2011-2015 годы и на период до 2020 года»",5,2,5225400,0,0,0]
["Иные межбюджетные трансферты",5,2,5225400,"017",0,0]
["Другие вопросы в области жилищно-коммунального хозяйства",5,5,0,0,4258,4464.7]
["Руководство и управление в сфере установленных функций органов государственной власти субъектов Российской Федерации  и органов местного самоуправления",5,5,20000,0,4258,4464.7]
["Центральный аппарат",5,5,20400,0,4258,4464.7]
["Выполнение функций органами местного самоуправления",5,5,20400,"500",4258,4464.7]
["ОХРАНА ОКРУЖАЮЩЕЙ СРЕДЫ",6,0,0,0,0,0]
["Другие вопросы в области охраны окружающей среды",6,5,0,0,0,0]
["Состояние окружающей среды и природопользования",6,5,4100000,0,0,0]
["Природоохранные мероприятия",6,5,4100100,0,0,0]
["Выполнение функций органами местного самоуправления",6,5,4100100,"500",0,0]
["Региональные целевые программы",6,5,5220000,0,0,0]
["Долгосрочная целевая программа Иркутской области «Защита окружающей среды в Иркутской области на 2011-2015 годы»",6,5,5222500,0,0,0]
["Подпрограмма «Отходы производства и потребления в Иркутской области на 2011-2015 годы»",6,5,5222502,0,0,0]
["Выполнение функций органами местного самоуправления",6,5,5222502,"500",0,0]
["ОБРАЗОВАНИЕ",7,0,0,0,348970.3,346703.1]
["Дошкольное образование",7,1,0,0,64603.4,62906.1]
["Детские дошкольные учреждения",7,1,4200000,0,61308.4,61441.1]
["Обеспечение деятельности подведомственных учреждений",7,1,4209900,0,61308.4,61441.1]
["Выполнение функций казенными учреждениями",7,1,4209900,"001",61308.4,61441.1]
["Региональные целевые программы",7,1,5220000,0,0,0]
["Областная государственная целевая программа поддержки и развития учреждений дошкольного образования в Иркутской области на 2009-2014 годы",7,1,5223700,0,0,0]
["Выполнение функций казенными учреждениями",7,1,5223700,"001",0,0]
["Долгосрочная целевая программа «Энергосбережение и повышение энергетической эффективности на территории Иркутской области на 2011-2015 годы и на период до 2020 года»",7,1,5225400,0,0,0]
["Выполнение функций казенными учреждениями",7,1,5225400,"001",0,0]
["Выплата заработной платы с начислениями на нее педагогическим работникам муниципальных дошкольных образовательных учреждений и муниципальных учреждений дополнительного образования",7,1,5890000,0,1465,1465]
["Выполнение функций казенными учреждениями",7,1,5890000,"001",1465,1465]
["Целевые программы муниципальных образований",7,1,7950000,0,1830,0]
["Долгосрочная целевая программа Черемховского районного муниципального образования \"Повышение эффективности бюджетных расходов Черемховского районного муниципального образования на 2012-2013 годы\"",7,1,7950200,0,0,0]
["Выполнение функций казенными учреждениями",7,1,7950200,"001",0,0]
["Долгосрочная целевая программа \"Безопасность образовательных учреждений на 2010-2014 гг.\"",7,1,7951000,0,830,0]
["Мероприятия по обеспечению пожарной безопасности",7,1,7951000,"450",830,0]
["Долгосрочная целевая программа энергосбережения и повышения энергетической эффективности Черемховского районного муниципального образования на 2010-2015 годы",7,1,7951100,0,600,0]
["Мероприятия по повышению энергетической эффективности",7,1,7951100,"451",600,0]
["Долгосрочная целевая программа \"Развитие дошкольного образования на 2011-2014 гг.\"",7,1,7951700,0,0,0]
["Мероприятия в сфере образования",7,1,7951700,"022",0,0]
["Долгосрочная целевая программа \"Совершенствование дошкольного образования Черемховского района на 2011-2014 гг.\"",7,1,7951800,0,400,0]
["Мероприятия в сфере образования",7,1,7951800,"022",400,0]
["Общее образование",7,2,0,0,276921.3,276261.59999999998]
["Руководство и управление в сфере установленных функций органов государственной власти субъектов Российской Федерации  и органов местного самоуправления",7,2,20000,0,238581.5,238581.5]
["Обеспечение государственных гарантий прав граждан на получение общедоступного и бесплатного дошкольного, начального общего, основного общего, среднего (полного) общего образования, а также дополнительного образования в общеобразовательных учреждениях",7,2,25000,0,238581.5,238581.5]
["Выполнение функций казенными учреждениями",7,2,25000,"001",238581.5,238581.5]
["Школы - детские сады, школы начальные, неполные средние и средние",7,2,4210000,0,15782.6,15808.4]
["Обеспечение деятельности подведомственных учреждений",7,2,4219900,0,15782.6,15808.4]
["Выполнение функций казенными учреждениями",7,2,4219900,"001",15782.6,15808.4]
["Учреждения по внешкольной работе с детьми",7,2,4230000,0,20340.099999999999,21257.8]
["Обеспечение деятельности подведомственных учреждений",7,2,4239900,0,20340.099999999999,21257.8]
["Выполнение функций казенными учреждениями",7,2,4239900,"001",20340.099999999999,21257.8]
["Мероприятия в области образования",7,2,4360000,0,0,0]
["Модернизация региональных систем образования",7,2,4362100,0,0,0]
["Модернизация региональных систем образования за счет средств федерального бюджета",7,2,4362101,0,0,0]
["Выполнение функций казенными учреждениями",7,2,4362101,"001",0,0]
["Иные безвозмездные и безвозвратные перечисления",7,2,5200000,0,0,0]
["Ежемесячное денежное вознаграждение за классное руководство",7,2,5200900,0,0,0]
["Выполнение функций казенными учреждениями",7,2,5200900,"001",0,0]
["Региональные целевые программы",7,2,5220000,0,0,0]
["Долгосрочная целевая программа «Модернизация объектов коммунальной инфраструктуры Иркутской области на 2011-2013 годы»",7,2,5222000,0,0,0]
["Подпрограмма «Подготовка объектов коммунальной инфраструктуры Иркутской области к отопительному сезону в 2011-2013 годах»",7,2,5222001,0,0,0]
["Выполнение функций казенными учреждениями",7,2,5222001,"001",0,0]
["Долгосрочная целевая программа «Энергосбережение и повышение энергетической эффективности на территории Иркутской области на 2011-2015 годы и на период до 2020 года»",7,2,5225400,0,0,0]
["Выполнение функций казенными учреждениями",7,2,5225400,"001",0,0]
["Выплата заработной платы с начислениями на нее педагогическим работникам муниципальных дошкольных образовательных учреждений и муниципальных учреждений дополнительного образования",7,2,5890000,0,540.1,540.1]
["Выполнение функций казенными учреждениями",7,2,5890000,"001",540.1,540.1]
["Целевые программы муниципальных образований",7,2,7950000,0,1677,73.8]
["Долгосрочная целевая программа Черемховского районного муниципального образования \"Повышение эффективности бюджетных расходов Черемховского районного муниципального образования на 2012-2013 годы\"",7,2,7950200,0,0,0]
["Выполнение функций казенными учреждениями",7,2,7950200,"001",0,0]
["Долгосрочная целевая программа \"Безопасность образовательных учреждений на 2010-2014 гг.\"",7,2,7951000,0,970,0]
["Мероприятия по обеспечению пожарной безопасности",7,2,7951000,"450",970,0]
["Долгосрочная целевая программа энергосбережения и повышения энергетической эффективности Черемховского районного муниципального образования на 2010-2015 годы",7,2,7951100,0,0,0]
["Мероприятия по повышению энергетической эффективности",7,2,7951100,"451",0,0]
["Долгосрочная целевая программа \"Ветхие школы Черемховского района\" на 2011-2013 гг.",7,2,7951500,0,0,0]
["Мероприятия в сфере образования",7,2,7951500,"022",0,0]
["Долгосрочная целевая программа \"Совершенствование организации питания в образовательных учреждениях Черемховского района на 2011-2013гг.\"",7,2,7951600,0,600,0]
["Мероприятия в сфере образования",7,2,7951600,"022",600,0]
["Долгосрочная целевая программа \"Развитие культуры в Черемховском районном муниципальном образовании на период 2012-2016 гг.\"",7,2,7952000,0,107,73.8]
["Мероприятия по поддержке и развитию культуры, искусства, кинематографии",7,2,7952000,"023",107,73.8]
["Профессиональная подготовка, переподготовка и повышение квалификации",7,5,0,0,127,127]
["Мероприятия по переподготовке и повышению квалификации",7,5,4340000,0,127,127]
["Выполнение функций казенными учреждениями",7,5,4340000,"001",127,127]
["Выполнение функций органами местного самоуправления",7,5,4340000,"500",0,0]
["Молодежная политика и оздоровление детей",7,7,0,0,212,212]
["Организационно-воспитательная работа с молодежью",7,7,4310000,0,46,46]
["Проведение мероприятий для детей и молодежи",7,7,4310100,0,46,46]
["Проведение мероприятия для детей и молодежи",7,7,4310100,"447",46,46]
["Мероприятия по проведению оздоровительной кампании детей",7,7,4320000,0,126,126]
["Оплата стоимости набора продуктов питания для детей в организованных органами местного самоуправления оздоровительных лагерях с дневным пребыванием детей за счет средств областного бюджета",7,7,4320300,0,126,126]
["Оплата стоимости набора продуктов питания для детей в организованных органами местного самоуправления оздоровительных лагерях с дневным пребыванием детей за счет средств местного бюджета ",7,7,4320302,0,126,126]
["Выполнение функций казенными учреждениями",7,7,4320302,"001",126,126]
["Региональные целевые программы",7,7,5220000,0,0,0]
["Долгосрочная целевая программа Иркутской области \"Организация и обеспечение отдыха и оздоровления детей в Иркутской области на 2012-2014гг.\"",7,7,5226200,0,0,0]
["Выполнение функций казенными учреждениями",7,7,5226200,"001",0,0]
["Целевые программы муниципальных образований",7,7,7950000,0,40,40]
["Долгосрочная целевая программа \"Комплексные меры профилактики злоупотребления наркотическими средствами и психотропными веществами в Черемховском районном муниципальном образовании на 2011-2013 гг.\"",7,7,7951300,0,0,0]
["Выполнение функций органами местного самоуправления",7,7,7951300,"500",0,0]
["Долгосрочная целевая программа \"Молодежная политика в Черемховском районном муниципальном образовании\" на 2013-2015 гг.",7,7,7952500,0,40,40]
["Проведение мероприятия для детей и молодежи",7,7,7952500,"447",40,40]
["Другие вопросы в области образования",7,9,0,0,7106.6,7196.4]
["Руководство и управление в сфере установленных функций органов государственной власти субъектов Российской Федерации  и органов местного самоуправления",7,9,20000,0,2106.6,2196.4]
["Центральный аппарат",7,9,20400,0,2106.6,2196.4]
["Выполнение функций органами местного самоуправления",7,9,20400,"500",2106.6,2196.4]
["Учебно-методические кабинеты, централизованные бухгалтерии, группы хозяйственного обслуживания, учебные фильмотеки, межшкольные учебно-производственные комбинаты, логопедические пункты",7,9,4520000,0,5000,5000]
["Субсидии бюджетным учреждениям на финансовое обеспечение муниципального задания на оказание муниципальных услуг (выполнение работ)",7,9,4520000,"611",5000,5000]
["КУЛЬТУРА И КИНЕМАТОГРАФИЯ",8,0,0,0,13119.4,12743.1]
["Культура",8,1,0,0,12183.5,11762]
["Учреждения культуры и мероприятия в сфере культуры и кинематографии",8,1,4400000,0,3856.1,4010.2]
["Комплектование книжных фондов библиотек муниципальных образований и государственных библиотек городов Москвы и Санкт-Петербурга",8,1,4400200,0,466.3,466.3]
["Комплектование книжных фондов библиотек муниципальных образований и государственных библиотек городов Москвы и Санкт-Петербурга за счет средств федерального бюджета",8,1,4400201,0,303.60000000000002,303.60000000000002]
["Выполнение функций казенными учреждениями",8,1,4400201,"001",303.60000000000002,303.60000000000002]
["Комплектование книжных фондов библиотек муниципальных образований и государственных библиотек городов Москвы и Санкт-Петербурга за счет областного бюджета",8,1,4400202,0,162.69999999999999,162.69999999999999]
["Выполнение функций казенными учреждениями",8,1,4400202,"001",162.69999999999999,162.69999999999999]
["Обеспечение деятельности подведомственных учреждений",8,1,4409900,0,3389.8,3543.9]
["Выполнение функций казенными учреждениями",8,1,4409900,"001",3389.8,3543.9]
["Музеи и постоянные выставки",8,1,4410000,0,899.1,935.8]
["Обеспечение деятельности подведомственных учреждений",8,1,4419900,0,899.1,935.8]
["Выполнение функций казенными учреждениями",8,1,4419900,"001",899.1,935.8]
["Библиотеки",8,1,4420000,0,5424.3,5676.8]
["Обеспечение деятельности подведомственных учреждений",8,1,4429900,0,5424.3,5676.8]
["Выполнение функций казенными учреждениями",8,1,4429900,"001",5424.3,5676.8]
["Региональные целевые программы",8,1,5220000,0,1000,0]
["Долгосрочная целевая программа Иркутской области «100 модельных домов культуры Приангарью» на 2011-2013 годы",8,1,5225500,0,1000,0]
["Выполнение функций казенными учреждениями",8,1,5225500,"001",1000,0]
["Целевые программы муниципальных образований",8,1,7950000,0,1004,1139.2]
["Долгосрочная целевая программа Черемховского районного муниципального образования \"Повышение эффективности бюджетных расходов Черемховского районного муниципального образования на 2012-2013 годы\"",8,1,7950200,0,0,0]
["Выполнение функций казенными учреждениями",8,1,7950200,"001",0,0]
["Долгосрочная целевая программа энергосбережения и повышения энергетической эффективности Черемховского районного муниципального образования на 2010-2015 годы",8,1,7951100,0,100,200]
["Мероприятия по повышению энергетической эффективности",8,1,7951100,"451",100,200]
["Долгосрочная целевая программа \"Развитие культуры в Черемховском районном муниципальном образовании на период 2012-2016 гг.\"",8,1,7952000,0,904,939.2]
["Мероприятия по поддержке и развитию культуры, искусства, кинематографии",8,1,7952000,"023",904,939.2]
["Другие вопросы в области культуры, кинематографии",8,4,0,0,935.9,981.1]
["Руководство и управление в сфере установленных функций органов государственной власти субъектов Российской Федерации  и органов местного самоуправления",8,4,20000,0,935.9,981.1]
["Центральный аппарат",8,4,20400,0,935.9,981.1]
["Выполнение функций органами местного самоуправления",8,4,20400,"500",935.9,981.1]
["ЗДРАВООХРАНЕНИЕ",9,0,0,0,0,0]
["Другие вопросы в области здравоохранения",9,9,0,0,0,0]
["Целевые программы муниципальных образований",9,9,7950000,0,0,0]
["Ведомственная целевая программа \"Обеспечение учреждений здравоохранения Черемховского районного муниципального образования квалифицированными медицинскими кадрами\" на 2013 год",9,9,7952800,0,0,0]
["Выполнение функций органами местного самоуправления",9,9,7952800,"500",0,0]
["Социальная политика",10,0,0,0,19563.2,19960.400000000001]
["Пенсионное обеспечение",10,1,0,0,2980,2980]
["Доплаты к пенсиям, дополнительное пенсионное обеспечение ",10,1,4910000,0,2980,2980]
["Доплаты к пенсиям государственных служащих субъектов Российской Федерации и муниципальных служащих ",10,1,4910100,0,2980,2980]
["Социальные выплаты",10,1,4910100,"005",2980,2980]
["Социальное обеспечение населения",10,3,0,0,15405.1,15802.3]
["Руководство и управление в сфере установленных функций органов государственной власти субъектов Российской Федерации  и органов местного самоуправления",10,3,20000,0,14247.6,14596.2]
["Осуществление отдельных областных государственных полномочий по предоставлению мер социальной поддержки многодетным и малоимущим семьям",10,3,24600,0,6361.8,6361.8]
["Социальные выплаты",10,3,24600,"005",6361.8,6361.8]
["Осуществление областных государственных полномочий по предоставлению гражданам субсидий на оплату жилых помещений и коммунальных услуг",10,3,24700,0,7885.8,8234.4]
["Содержание и обеспечение деятельности муниципальных служащих, осуществляющих областные государственные полномочия по предоставлению гражданам субсидий на оплату жилых помещений и коммунальных услуг",10,3,24701,0,771.9,771.9]
["Выполнение функций органами местного самоуправления",10,3,24701,"500",771.9,771.9]
["Предоставление гражданам субсидий на оплату жилых помещений и коммунальных услуг",10,3,24702,0,7113.9,7462.5]
["Социальные выплаты",10,3,24702,"005",7113.9,7462.5]
["Реализация государственных функций в области социальной политики",10,3,5140000,0,882.1,910]
["Мероприятия в области социальной политики",10,3,5140100,0,882.1,910]
["Социальные выплаты",10,3,5140100,"005",882.1,910]
["Региональные целевые программы",10,3,5220000,0,0,0]
["Областная государственная социальная программа \"Молодым семьям - доступное жилье\" на 2005-2019 годы",10,3,5222200,0,0,0]
["Социальные выплаты",10,3,5222200,"005",0,0]
["Целевые программы муниципальных образований",10,3,7950000,0,275.39999999999998,296.10000000000002]
["Долгосрочная целевая программа \"Молодым семьям-доступное жилье\" на 2012-2019 гг.",10,3,7952100,0,275.39999999999998,296.10000000000002]
["Социальные выплаты",10,3,7952100,"005",275.39999999999998,296.10000000000002]
["Охрана семьи и детства",10,4,0,0,0,0]
["Исполнение судебных актов по обеспечению жилыми помещениями детей-сирот и детей, оставшихся без попечения родителей, лиц из числа детей-сирот и детей, оставшихся без попечения родителей, вынесенных в соответствии с Законом Иркутской области от 22.06.2010 № 50-ОЗ «О дополнительных гарантиях прав детей-сирот и детей, оставшихся без попечения родителей, на жилое помещение в Иркутской области» и Законом Иркутской области от 29.06.2010 № 52-ОЗ «О наделении органов местного самоуправления областными государственными полномочиями по обеспечению детей-сирот и детей, оставшихся без попечения родителей, лиц из числа детей-сирот и детей, оставшихся без попечения родителей, жилыми помещениями по договорам социального найма в Иркутской области",10,4,6040000,0,0,0]
["Бюджетные инвестиции",10,4,6040000,"003",0,0]
["Другие вопросы в области социальной политики",10,6,0,0,1178.0999999999999,1178.0999999999999]
["Руководство и управление в сфере установленных функций органов государственной власти субъектов Российской Федерации  и органов местного самоуправления",10,6,20000,0,1078.0999999999999,1078.0999999999999]
["Осуществление областных государственных полномочий по определению персонального состава и обеспечению деятельности районных (городских), районных в городах комиссий по делам несовершеннолетних и защите их прав",10,6,24100,0,1078.0999999999999,1078.0999999999999]
["Выполнение функций органами местного самоуправления",10,6,24100,"500",1078.0999999999999,1078.0999999999999]
["Целевые программы муниципальных образований",10,6,7950000,0,100,100]
["Муниципальная целевая программа \"Поддержка, проводимых мероприятий, посвященных Дням воинской славы, памятным датам России и работе с ветеранами и инвалидами в Черемховском районе на 2013-2015 гг.\"",10,6,7952400,0,100,100]
["Выполнение функций органами местного самоуправления",10,6,7952400,"500",100,100]
["ФИЗИЧЕСКАЯ КУЛЬТУРА И СПОРТ",11,0,0,0,82.4,82.4]
["Физическая культура",11,1,0,0,82.4,82.4]
["Физкультурно-оздоровительная работа и спортивные мероприятия",11,1,5120000,0,82.4,82.4]
["Мероприятия в области спорта, физической культуры и туризма",11,1,5129700,0,82.4,82.4]
["Выполнение функций органами местного самоуправления",11,1,5129700,"500",82.4,82.4]
["Целевые программы муниципальных образований",11,1,7950000,0,0,0]
["Долгосрочная целевая программа \"Развитие физической культуры, спорта и туризма в Черемховском районном муниципальном образовании на 2011-2013 гг.\"",11,1,7951200,0,0,0]
["Выполнение функций органами местного самоуправления",11,1,7951200,"500",0,0]
["СРЕДСТВА МАССОВОЙ ИНФОРМАЦИИ",12,0,0,0,2000,2000]
["Периодическая печать и издательства",12,2,0,0,2000,2000]
["Периодические издания, учрежденные органами законодательной и исполнительной власти",12,2,4570000,0,2000,2000]
["Государственная поддержка в сфере культуры, кинематографии и средств массовой информации",12,2,4578500,0,2000,2000]
["Субсидии юридическим лицам",12,2,4578500,"006",2000,2000]
["ОБСЛУЖИВАНИЕ ГОСУДАРСТВЕННОГО И МУНИЦИПАЛЬНОГО ДОЛГА",13,0,0,0,61.2,63.5]
["Обслуживание внутреннего государственного и муниципального долга",13,1,0,0,61.2,63.5]
["Процентные платежи по долговым обязательствам",13,1,650000,0,61.2,63.5]
["Процентные платежи по муниципальному долгу",13,1,650300,0,61.2,63.5]
["Прочие расходы",13,1,650300,"013",61.2,63.5]
["МЕЖБЮДЖЕТНЫЕ ТРАНСФЕРТЫ ОБЩЕГО ХАРАКТЕРА БЮДЖЕТАМ СУБЪЕКТОВ РОССИЙСКОЙ ФЕДЕРАЦИИ И МУНИЦИПАЛЬНЫХ ОБРАЗОВАНИЙ ",14,0,0,0,3400,3500]
["Дотации на выравнивание бюджетной обеспеченности субъектов Российской Федерации и муниципальных образований",14,1,0,0,3400,3500]
["Выравнивание бюджетной обеспечености",14,1,5160000,0,3400,3500]
["Выравнивание бюджетной обеспеченности",14,1,5160100,0,3400,3500]
["Выравнивание бюджетной обеспеченности поселений из районного фонда финансовой поддержки",14,1,5160130,0,3400,3500]
["Фонд финансовой поддержки",14,1,5160130,"008",3400,3500]
["Прочие межбюджетные трансферты общего характера бюджетам субъектов Российской Федерации и муниципальных образований ",14,3,0,0,0,0]
["Целевые программы муниципальных образований",14,3,7950000,0,0,0]
["Долгосрочная целевая программа Черемховского районного муниципального образования \"Повышение эффективности бюджетных расходов Черемховского районного муниципального образования на 2012-2013 годы\"",14,3,7950200,0,0,0]
["Иные межбюджетные трансферты",14,3,7950200,"017",0,0]
["ИТОГО",{"$nulls":4},452326,448058]
[]
["Начальник финуправления",{"$nulls":4},"Ю.Н. Гайдук"]

{"sheet":"прил6","index":5,"n_rows":316,"n_cols":6,"rows_kept":316,"cut":false,"hidden":false,"merged":[[315,4,315,5],[15,0,15,5],[18,0,19,0],[18,1,18,4],[18,5,19,5],[313,0,313,4]]}
{"$rows_empty":15}
["Распределение бюджетных ассигнований  по  разделам и подразделам классификации расходов бюджетов Черемховского районного муниципального образования на 2013 год"]
[]
[]
["Наименование показателя","Код",null,null,null,"Сумма , тыс. руб. "]
[null,"раздела","подраздела","целевой статьи","вида расходов"]
[1,2,3,4,5,6]
["ОБЩЕГОСУДАРСТВЕННЫЕ ВОПРОСЫ",1,0,0,0,72193.100000000006]
["Функционирование высшего должностного лица субъекта Российской Федерации и муниципального образования",1,2,0,0,2412]
["Руководство и управление в сфере установленных функций органов государственной власти субъектов Российской Федерации  и органов местного самоуправления",1,2,20000,0,2412]
["Глава муниципального образования",1,2,20300,0,2412]
["Выполнение функций органами местного самоуправления",1,2,20300,"500",2412]
["Функционирование законодательных (представительных) органов государственной власти и представительных органов муниципальных образований",1,3,0,0,1321.1]
["Руководство и управление в сфере установленных функций органов государственной власти субъектов Российской Федерации  и органов местного самоуправления",1,3,20000,0,1321.1]
["Центральный аппарат",1,3,20400,0,401.1]
["Выполнение функций органами местного самоуправления",1,3,20400,"500",401.1]
["Председатель представительного органа муниципального образования",1,3,21100,0,920]
["Выполнение функций органами местного самоуправления",1,3,21100,"500",920]
["Функционирование Правительства Российской Федерации, высших исполнительных органов государственной власти субъектов Российской Федерации, местных администраций",1,4,0,0,26024.3]
["Руководство и управление в сфере установленных функций органов государственной власти субъектов Российской Федерации  и органов местного самоуправления",1,4,20000,0,25963.4]
["Центральный аппарат",1,4,20400,0,25963.4]
["Выполнение функций органами местного самоуправления",1,4,20400,"500",25963.4]
["Региональные целевые программы",1,4,5220000,0,42.6]
["Долгосрочная целевая программа «Энергосбережение и повышение энергетической эффективности на территории Иркутской области на 2011-2015 годы и на период до 2020 года»",1,4,5225400,0,42.6]
["Выполнение функций органами местного самоуправления",1,4,5225400,"500",42.6]
["Целевые программы муниципальных образований",1,4,7950000,0,18.3]
["Долгосрочная целевая программа энергосбережения и повышения энергетической эффективности Черемховского районного муниципального образования на 2010-2015 годы",1,4,7951100,0,18.3]
["Мероприятия по повышению энергетической эффективности",1,4,7951100,"451",18.3]
["Обеспечение деятельности финансовых, налоговых и таможенных органов и органов финансового (финансово-бюджетного) надзора",1,6,0,0,11159.1]
["Руководство и управление в сфере установленных функций органов государственной власти субъектов Российской Федерации  и органов местного самоуправления",1,6,20000,0,10959.1]
["Центральный аппарат",1,6,20400,0,9843.7999999999993]
["Выполнение функций органами местного самоуправления",1,6,20400,"500",9843.7999999999993]
["Руководитель контрольно-счетной палаты муниципального образования и его заместители",1,6,22500,0,1115.3]
["Выполнение функций органами местного самоуправления",1,6,22500,"500",1115.3]
["Целевые программы муниципальных образований",1,6,7950000,0,200]
["Долгосрочная целевая программа Черемховского районного муниципального образования \"Повышение эффективности бюджетных расходов Черемховского районного муниципального образования на 2012-2013 годы\"",1,6,7950200,0,200]
["Выполнение функций органами местного самоуправления",1,6,7950200,"500",200]
["Обеспечение проведения выборов и референдумов",1,7,0,0,0]
["Проведение выборов и референдумов",1,7,200000,0,0]
["Проведение выборов и референдумов",1,7,200000,0,0]
["Проведение выборов в представительные органы муниципального образования",1,7,200002,0,0]
["Выполнение функций органами местного самоуправления",1,7,200002,"500",0]
["Резервные фонды",1,11,0,0,300]
["Резервные фонды",1,11,700000,0,300]
["Резервные фонды местных администраций",1,11,700500,0,300]
["Выполнение функций органами местного самоуправления",1,11,700500,"500",300]
["Другие общегосударственные вопросы",1,13,0,0,30976.6]
["Руководство и управление в сфере установленных функций органов государственной власти субъектов Российской Федерации  и органов местного самоуправления",1,13,20000,0,22096.6]
["Центральный аппарат",1,13,20400,0,3107.1]
["Выполнение функций органами местного самоуправления",1,13,20400,"500",3107.1]
["Осуществление областных государственных полномочий по хранению, комплектованию, учету и использованию архивных документов, относящихся к государственной собственности Иркутской области",1,13,24000,0,1174]
["Выполнение функций органами местного самоуправления",1,13,24000,"500",1174]
["Осуществление областных государственных полномочий по определению персонального состава и обеспечению деятельности административных комиссий",1,13,24300,0,604.1]
["Выполнение функций органами местного самоуправления",1,13,24300,"500",604.1]
["Осуществление отдельных государственных полномочий в области производства и оборота этилового спирта, алкогольной и спиртосодержащей продукции",1,13,24400,0,402.8]
["Выполнение функций органами местного самоуправления",1,13,24400,"500",402.8]
["Осуществление отдельных областных государственных полномочий в области охраны труда",1,13,24500,0,604.1]
["Выполнение функций органами местного самоуправления",1,13,24500,"500",604.1]
["Обеспечение деятельности подведомственных учреждений",1,13,29900,0,16204.5]
["Выполнение функций казенными учреждениями",1,13,29900,"001",15304.5]
["Субсидии бюджетным учреждениям на финансовое обеспечение муниципального задания на оказание муниципальных услуг (выполнение работ)",1,13,29900,"611",900]
["Реализация государственных функций, связанных с общегосударственным управлением",1,13,920000,0,1576.4]
["Выполнение других обязательств государства",1,13,920300,0,1576.4]
["Выполнение функций органами местного самоуправления",1,13,920300,"500",1576.4]
["Учреждения по обеспечению хозяйственного обслуживания",1,13,930000,0,6500]
["Субсидии бюджетным учреждениям на финансовое обеспечение муниципального задания на оказание муниципальных услуг (выполнение работ)",1,13,930000,"611",6500]
["Целевые программы муниципальных образований",1,13,7950000,0,803.6]
["Долгосрочная целевая программа \"Улучшение условий и охраны труда в Черемховском районе на 2011-2013гг.\"",1,13,7951400,0,15]
["Выполнение функций органами местного самоуправления",1,13,7951400,"500",15]
["Долгосрочная целевая программа \"Инвентаризация муниципальных объектов недвижимости Черемховского районного муниципального образования на 2012-2014 годы\"",1,13,7951900,0,648.6]
["Выполнение функций органами местного самоуправления",1,13,7951900,"500",648.6]
["Комплексная программа \"Профилактика правонарушений в Черемховском районном муниципальном образовании на 2013-2016 годы\"",1,13,7952600,0,40]
["Выполнение функций органами местного самоуправления",1,13,7952600,"500",40]
["Долгосрочная целевая программа \"Поддержка молодых педагогов на территории Черемховского районного муниципального образования\" на 2012-2013 годы",1,13,7952700,0,100]
["Выполнение функций органами местного самоуправления",1,13,7952700,"500",100]
["НАЦИОНАЛЬНАЯ ЭКОНОМИКА",4,0,0,0,5981.7]
["Дорожное хозяйство(дорожные фонды)",4,9,0,0,5351.5]
["Региональные целевые программы",4,9,5220000,0,3829]
["Долгосрочная целевая программа \"Развитие автомобильных дорог общего пользования регионального или межмуниципального значения и местного значения в Иркутской области на 2011 - 2014 годы\"",4,9,5224700,0,3829]
["Выполнение функций органами местного самоуправления",4,9,5224700,"500",3829]
["Целевые программы муниципальных образований",4,9,7950000,0,1522.5]
["Долгосрочная целевая программа \"Инвентаризация муниципальных объектов недвижимости Черемховского районного муниципального образования на 2012-2014 годы\"",4,9,7951900,0,1320]
["Выполнение функций органами местного самоуправления",4,9,7951900,"500",1320]
["Долгосрочная целевая программа \"Развитие автомобильных дорог Черемховского районного муниципального образования на 2013-2015 годы\"",4,9,7952300,0,202.5]
["Выполнение функций органами местного самоуправления",4,9,7952300,"500",202.5]
["Другие вопросы в области национальной экономики",4,12,0,0,630.20000000000005]
["Мероприятия в области строительства, архитектуры и градостроительства",4,12,3380000,0,30.2]
["Подготовка проектов правил землепользования и застройки муниципальных образований Черемховского районного муниципального образования",4,12,3380200,0,30.2]
["Выполнение функций органами местного самоуправления",4,12,3380200,"500",30.2]
["Целевые программы муниципальных образований",4,12,7950000,0,600]
["Долгосрочная целевая программа \"Инвентаризация муниципальных объектов недвижимости Черемховского районного муниципального образования на 2012-2014 годы\"",4,12,7951900,0,500]
["Выполнение функций органами местного самоуправления",4,12,7951900,"500",500]
["Долгосрочная целевая программа \"Поддержка и развитие малого и среднего предпринимательства в Черемховском районе\" на 2013-2014 годы",4,12,7952200,0,100]
["Выполнение функций органами местного самоуправления",4,12,7952200,"500",100]
["ЖИЛИЩНО-КОММУНАЛЬНОЕ ХОЗЯЙСТВО",5,0,0,0,6719.8]
["Жилищное хозяйство",5,1,0,0,1353.8]
["Поддержка жилищного хозяйства",5,1,3500000,0,1353.8]
["Мероприятия в области жилищного хозяйства",5,1,3500300,0,1353.8]
["Выполнение функций органами местного самоуправления",5,1,3500300,"500",1353.8]
["Коммунальное хозяйство",5,2,0,0,70]
["Региональные целевые программы",5,2,5220000,0,70]
["Долгосрочная целевая программа «Энергосбережение и повышение энергетической эффективности на территории Иркутской области на 2011-2015 годы и на период до 2020 года»",5,2,5225400,0,70]
["Иные межбюджетные трансферты",5,2,5225400,"017",70]
["Другие вопросы в области жилищно-коммунального хозяйства",5,5,0,0,5296]
["Руководство и управление в сфере установленных функций органов государственной власти субъектов Российской Федерации  и органов местного самоуправления",5,5,20000,0,5296]
["Центральный аппарат",5,5,20400,0,5296]
["Выполнение функций органами местного самоуправления",5,5,20400,"500",5296]
["ОХРАНА ОКРУЖАЮЩЕЙ СРЕДЫ",6,0,0,0,5150]
["Другие вопросы в области охраны окружающей среды",6,5,0,0,5150]
["Состояние окружающей среды и природопользования",6,5,4100000,0,150]
["Природоохранные мероприятия",6,5,4100100,0,150]
["Выполнение функций органами местного самоуправления",6,5,4100100,"500",150]
["Региональные целевые программы",6,5,5220000,0,5000]
["Долгосрочная целевая программа Иркутской области «Защита окружающей среды в Иркутской области на 2011-2015 годы»",6,5,5222500,0,5000]
["Подпрограмма «Отходы производства и потребления в Иркутской области на 2011-2015 годы»",6,5,5222502,0,5000]
["Выполнение функций органами местного самоуправления",6,5,5222502,"500",5000]
["ОБРАЗОВАНИЕ",7,0,0,0,471874.6]
["Дошкольное образование",7,1,0,0,105029.8]
["Детские дошкольные учреждения",7,1,4200000,0,65397.3]
["Обеспечение деятельности подведомственных учреждений",7,1,4209900,0,65397.3]
["Выполнение функций казенными учреждениями",7,1,4209900,"001",65397.3]
["Региональные целевые программы",7,1,5220000,0,3335.8]
["Областная государственная целевая программа поддержки и развития учреждений дошкольного образования в Иркутской области на 2009-2014 годы",7,1,5223700,0,3027.5]
["Выполнение функций казенными учреждениями",7,1,5223700,"001",3027.5]
["Долгосрочная целевая программа «Энергосбережение и повышение энергетической эффективности на территории Иркутской области на 2011-2015 годы и на период до 2020 года»",7,1,5225400,0,308.3]
["Выполнение функций казенными учреждениями",7,1,5225400,"001",308.3]
["Выплата заработной платы с начислениями на нее педагогическим работникам муниципальных дошкольных образовательных учреждений и муниципальных учреждений дополнительного образования",7,1,5890000,0,30529.7]
["Выполнение функций казенными учреждениями",7,1,5890000,"001",30529.7]
["Целевые программы муниципальных образований",7,1,7950000,0,5767]
["Долгосрочная целевая программа Черемховского районного муниципального образования \"Повышение эффективности бюджетных расходов Черемховского районного муниципального образования на 2012-2013 годы\"",7,1,7950200,0,3611]
["Выполнение функций казенными учреждениями",7,1,7950200,"001",3611]
["Долгосрочная целевая программа \"Безопасность образовательных учреждений на 2010-2014 гг.\"",7,1,7951000,0,572]
["Мероприятия по обеспечению пожарной безопасности",7,1,7951000,"450",572]
["Долгосрочная целевая программа энергосбережения и повышения энергетической эффективности Черемховского районного муниципального образования на 2010-2015 годы",7,1,7951100,0,132]
["Мероприятия по повышению энергетической эффективности",7,1,7951100,"451",132]
["Долгосрочная целевая программа \"Развитие дошкольного образования на 2011-2014 гг.\"",7,1,7951700,0,1102]
["Мероприятия в сфере образования",7,1,7951700,"022",1102]
["Долгосрочная целевая программа \"Совершенствование дошкольного образования Черемховского района на 2011-2014 гг.\"",7,1,7951800,0,350]
["Мероприятия в сфере образования",7,1,7951800,"022",350]
["Общее образование",7,2,0,0,355560.1]
["Руководство и управление в сфере установленных функций органов государственной власти субъектов Российской Федерации  и органов местного самоуправления",7,2,20000,0,281204.5]
["Обеспечение государственных гарантий прав граждан на получение общедоступного и бесплатного дошкольного, начального общего, основного общего, среднего (полного) общего образования, а также дополнительного образования в общеобразовательных учреждениях",7,2,25000,0,281204.5]
["Выполнение функций казенными учреждениями",7,2,25000,"001",281204.5]
["Школы - детские сады, школы начальные, неполные средние и средние",7,2,4210000,0,22043.4]
["Обеспечение деятельности подведомственных учреждений",7,2,4219900,0,22043.4]
["Выполнение функций казенными учреждениями",7,2,4219900,"001",22043.4]
["Учреждения по внешкольной работе с детьми",7,2,4230000,0,28842.799999999999]
["Обеспечение деятельности подведомственных учреждений",7,2,4239900,0,28842.799999999999]
["Выполнение функций казенными учреждениями",7,2,4239900,"001",28842.799999999999]
["Мероприятия в области образования",7,2,4360000,0,1600]
["Модернизация региональных систем образования",7,2,4362100,0,1600]
["Модернизация региональных систем образования за счет средств федерального бюджета",7,2,4362101,0,1600]
["Выполнение функций казенными учреждениями",7,2,4362101,"001",1600]
["Иные безвозмездные и безвозвратные перечисления",7,2,5200000,0,5000.1000000000004]
["Ежемесячное денежное вознаграждение за классное руководство",7,2,5200900,0,5000.1000000000004]
["Выполнение функций казенными учреждениями",7,2,5200900,"001",5000.1000000000004]
["Региональные целевые программы",7,2,5220000,0,2040.1]
["Долгосрочная целевая программа «Модернизация объектов коммунальной инфраструктуры Иркутской области на 2011-2013 годы»",7,2,5222000,0,1700]
["Подпрограмма «Подготовка объектов коммунальной инфраструктуры Иркутской области к отопительному сезону в 2011-2013 годах»",7,2,5222001,0,1700]
["Выполнение функций казенными учреждениями",7,2,5222001,"001",1700]
["Долгосрочная целевая программа «Энергосбережение и повышение энергетической эффективности на территории Иркутской области на 2011-2015 годы и на период до 2020 года»",7,2,5225400,0,340.1]
["Выполнение функций казенными учреждениями",7,2,5225400,"001",340.1]
["Выплата заработной платы с начислениями на нее педагогическим работникам муниципальных дошкольных образовательных учреждений и муниципальных учреждений дополнительного образования",7,2,5890000,0,1645.5]
["Выполнение функций казенными учреждениями",7,2,5890000,"001",1645.5]
["Целевые программы муниципальных образований",7,2,7950000,0,13183.7]
["Долгосрочная целевая программа Черемховского районного муниципального образования \"Повышение эффективности бюджетных расходов Черемховского районного муниципального образования на 2012-2013 годы\"",7,2,7950200,0,9594.9]
["Выполнение функций казенными учреждениями",7,2,7950200,"001",9594.9]
["Долгосрочная целевая программа \"Безопасность образовательных учреждений на 2010-2014 гг.\"",7,2,7951000,0,1128]
["Мероприятия по обеспечению пожарной безопасности",7,2,7951000,"450",1128]
["Долгосрочная целевая программа энергосбережения и повышения энергетической эффективности Черемховского районного муниципального образования на 2010-2015 годы",7,2,7951100,0,468]
["Мероприятия по повышению энергетической эффективности",7,2,7951100,"451",468]
["Долгосрочная целевая программа \"Ветхие школы Черемховского района\" на 2011-2013 гг.",7,2,7951500,0,900]
["Мероприятия в сфере образования",7,2,7951500,"022",900]
["Долгосрочная целевая программа \"Совершенствование организации питания в образовательных учреждениях Черемховского района на 2011-2013гг.\"",7,2,7951600,0,1000]
["Мероприятия в сфере образования",7,2,7951600,"022",1000]
["Долгосрочная целевая программа \"Развитие культуры в Черемховском районном муниципальном образовании на период 2012-2016 гг.\"",7,2,7952000,0,92.8]
["Мероприятия по поддержке и развитию культуры, искусства, кинематографии",7,2,7952000,"023",92.8]
["Профессиональная подготовка, переподготовка и повышение квалификации",7,5,0,0,215.5]
["Мероприятия по переподготовке и повышению квалификации",7,5,4340000,0,215.5]
["Выполнение функций казенными учреждениями",7,5,4340000,"001",108.1]
["Выполнение функций органами местного самоуправления",7,5,4340000,"500",107.4]
["Молодежная политика и оздоровление детей",7,7,0,0,2571.9]
["Организационно-воспитательная работа с молодежью",7,7,4310000,0,46]
["Проведение мероприятий для детей и молодежи",7,7,4310100,0,46]
["Проведение мероприятия для детей и молодежи",7,7,4310100,"447",46]
["Мероприятия по проведению оздоровительной кампании детей",7,7,4320000,0,123.8]
["Оплата стоимости набора продуктов питания для детей в организованных органами местного самоуправления оздоровительных лагерях с дневным пребыванием детей за счет средств областного бюджета",7,7,4320300,0,123.8]
["Оплата стоимости набора продуктов питания для детей в организованных органами местного самоуправления оздоровительных лагерях с дневным пребыванием детей за счет средств местного бюджета",7,7,4320302,0,123.8]
["Выполнение функций казенными учреждениями",7,7,4320302,"001",123.8]
["Региональные целевые программы",7,7,5220000,0,2352.1]
["Долгосрочная целевая программа Иркутской области \"Организация и обеспечение отдыха и оздоровления детей в Иркутской области на 2012-2014гг.\"",7,7,5226200,0,2352.1]
["Выполнение функций казенными учреждениями",7,7,5226200,"001",2352.1]
["Целевые программы муниципальных образований",7,7,7950000,0,50]
["Долгосрочная целевая программа \"Комплексные меры профилактики злоупотребления наркотическими средствами и психотропными веществами в Черемховском районном муниципальном образовании на 2011-2013 гг.\"",7,7,7951300,0,10]
["Выполнение функций органами местного самоуправления",7,7,7951300,"500",10]
["Долгосрочная целевая программа \"Молодежная политика в Черемховском районном муниципальном образовании\" на 2013-2015 гг.",7,7,7952500,0,40]
["Проведение мероприятия для детей и молодежи",7,7,7952500,"447",40]
["Другие вопросы в области образования",7,9,0,0,8497.2999999999993]
["Руководство и управление в сфере установленных функций органов государственной власти субъектов Российской Федерации  и органов местного самоуправления",7,9,20000,0,2997.3]
["Центральный аппарат",7,9,20400,0,2997.3]
["Выполнение функций органами местного самоуправления",7,9,20400,"500",2997.3]
["Учебно-методические кабинеты, централизованные бухгалтерии, группы хозяйственного обслуживания, учебные фильмотеки, межшкольные учебно-производственные комбинаты, логопедические пункты",7,9,4520000,0,5500]
["Субсидии бюджетным учреждениям на финансовое обеспечение муниципального задания на оказание муниципальных услуг (выполнение работ)",7,9,4520000,"611",5500]
["КУЛЬТУРА И КИНЕМАТОГРАФИЯ",8,0,0,0,20909]
["Культура",8,1,0,0,19587.3]
["Учреждения культуры и мероприятия в сфере культуры и кинематографии",8,1,4400000,0,6931.2]
["Комплектование книжных фондов библиотек муниципальных образований и государственных библиотек городов Москвы и Санкт-Петербурга",8,1,4400200,0,466.3]
["Комплектование книжных фондов библиотек муниципальных образований и государственных библиотек городов Москвы и Санкт-Петербурга за счет средств федерального бюджета",8,1,4400201,0,303.60000000000002]
["Выполнение функций казенными учреждениями",8,1,4400201,"001",303.60000000000002]
["Комплектование книжных фондов библиотек муниципальных образований и государственных библиотек городов Москвы и Санкт-Петербурга за счет областного бюджета",8,1,4400202,0,162.69999999999999]
["Выполнение функций казенными учреждениями",8,1,4400202,"001",162.69999999999999]
["Обеспечение деятельности подведомственных учреждений",8,1,4409900,0,6464.9]
["Выполнение функций казенными учреждениями",8,1,4409900,"001",6464.9]
["Музеи и постоянные выставки",8,1,4410000,0,1259.9000000000001]
["Обеспечение деятельности подведомственных учреждений",8,1,4419900,0,1259.9000000000001]
["Выполнение функций казенными учреждениями",8,1,4419900,"001",1259.9000000000001]
["Библиотеки",8,1,4420000,0,8636.2000000000007]
["Обеспечение деятельности подведомственных учреждений",8,1,4429900,0,8636.2000000000007]
["Выполнение функций казенными учреждениями",8,1,4429900,"001",8636.2000000000007]
["Региональные целевые программы",8,1,5220000,0,1000]
["Долгосрочная целевая программа Иркутской области «100 модельных домов культуры Приангарью» на 2011-2013 годы",8,1,5225500,0,1000]
["Выполнение функций казенными учреждениями",8,1,5225500,"001",1000]
["Целевые программы муниципальных образований",8,1,7950000,0,1760]
["Долгосрочная целевая программа Черемховского районного муниципального образования \"Повышение эффективности бюджетных расходов Черемховского районного муниципального образования на 2012-2013 годы\"",8,1,7950200,0,547]
["Выполнение функций казенными учреждениями",8,1,7950200,"001",547]
["Долгосрочная целевая программа энергосбережения и повышения энергетической эффективности Черемховского районного муниципального образования на 2010-2015 годы",8,1,7951100,0,282]
["Мероприятия по повышению энергетической эффективности",8,1,7951100,"451",282]
["Долгосрочная целевая программа \"Развитие культуры в Черемховском районном муниципальном образовании на период 2012-2016 гг.\"",8,1,7952000,0,931]
["Мероприятия по поддержке и развитию культуры, искусства, кинематографии",8,1,7952000,"023",931]
["Другие вопросы в области культуры, кинематографии",8,4,0,0,1321.7]
["Руководство и управление в сфере установленных функций органов государственной власти субъектов Российской Федерации  и органов местного самоуправления",8,4,20000,0,1321.7]
["Центральный аппарат",8,4,20400,0,1321.7]
["Выполнение функций органами местного самоуправления",8,4,20400,"500",1321.7]
["ЗДРАВООХРАНЕНИЕ",9,0,0,0,200]
["Другие вопросы в области здравоохранения",9,9,0,0,200]
["Целевые программы муниципальных образований",9,9,7950000,0,200]
["Ведомственная целевая программа \"Обеспечение учреждений здравоохранения Черемховского районного муниципального образования квалифицированными медицинскими кадрами\" на 2013 год",9,9,7952800,0,200]
["Выполнение функций органами местного самоуправления",9,9,7952800,"500",200]
["Социальная политика",10,0,0,0,24388.2]
["Пенсионное обеспечение",10,1,0,0,2980]
["Доплаты к пенсиям, дополнительное пенсионное обеспечение ",10,1,4910000,0,2980]
["Доплаты к пенсиям государственных служащих субъектов Российской Федерации и муниципальных служащих ",10,1,4910100,0,2980]
["Социальные выплаты",10,1,4910100,"005",2980]
["Социальное обеспечение населения",10,3,0,0,15400.4]
["Руководство и управление в сфере установленных функций органов государственной власти субъектов Российской Федерации  и органов местного самоуправления",10,3,20000,0,13951.5]
["Осуществление отдельных областных государственных полномочий по предоставлению мер социальной поддержки многодетным и малоимущим семьям",10,3,24600,0,6361.8]
["Социальные выплаты",10,3,24600,"005",6361.8]
["Осуществление областных государственных полномочий по предоставлению гражданам субсидий на оплату жилых помещений и коммунальных услуг",10,3,24700,0,7589.7]
["Содержание и обеспечение деятельности муниципальных служащих, осуществляющих областные государственные полномочия по предоставлению гражданам субсидий на оплату жилых помещений и коммунальных услуг",10,3,24701,0,827.4]
["Выполнение функций органами местного самоуправления",10,3,24701,"500",827.4]
["Предоставление гражданам субсидий на оплату жилых помещений и коммунальных услуг",10,3,24702,0,6762.3]
["Социальные выплаты",10,3,24702,"005",6762.3]
["Реализация государственных функций в области социальной политики",10,3,5140000,0,854]
["Мероприятия в области социальной политики",10,3,5140100,0,854]
["Социальные выплаты",10,3,5140100,"005",854]
["Региональные целевые программы",10,3,5220000,0,234.9]
["Областная государственная социальная программа \"Молодым семьям - доступное жилье\" на 2005-2019 годы",10,3,5222200,0,234.9]
["Социальные выплаты",10,3,5222200,"005",234.9]
["Целевые программы муниципальных образований",10,3,7950000,0,360]
["Долгосрочная целевая программа \"Молодым семьям-доступное жилье\" на 2012-2019 гг.",10,3,7952100,0,360]
["Социальные выплаты",10,3,7952100,"005",360]
["Охрана семьи и детства",10,4,0,0,4752]
["Исполнение судебных актов по обеспечению жилыми помещениями детей-сирот и детей, оставшихся без попечения родителей, лиц из числа детей-сирот и детей, оставшихся без попечения родителей, вынесенных в соответствии с Законом Иркутской области от 22.06.2010 № 50-ОЗ «О дополнительных гарантиях прав детей-сирот и детей, оставшихся без попечения родителей, на жилое помещение в Иркутской области» и Законом Иркутской области от 29.06.2010 № 52-ОЗ «О наделении органов местного самоуправления областными государственными полномочиями по обеспечению детей-сирот и детей, оставшихся без попечения родителей, лиц из числа детей-сирот и детей, оставшихся без попечения родителей, жилыми помещениями по договорам социального найма в Иркутской области",10,4,6040000,0,4752]
["Бюджетные инвестиции",10,4,6040000,"003",4752]
["Другие вопросы в области социальной политики",10,6,0,0,1255.8]
["Руководство и управление в сфере установленных функций органов государственной власти субъектов Российской Федерации  и органов местного самоуправления",10,6,20000,0,1155.8]
["Осуществление областных государственных полномочий по определению персонального состава и обеспечению деятельности районных (городских), районных в городах комиссий по делам несовершеннолетних и защите их прав",10,6,24100,0,1155.8]
["Выполнение функций органами местного самоуправления",10,6,24100,"500",1155.8]
["Целевые программы муниципальных образований",10,6,7950000,0,100]
["Муниципальная целевая программа \"Поддержка, проводимых мероприятий, посвященных Дням воинской славы, памятным датам России и работе с ветеранами и инвалидами в Черемховском районе на 2013-2015 гг.\"",10,6,7952400,0,100]
["Выполнение функций органами местного самоуправления",10,6,7952400,"500",100]
["ФИЗИЧЕСКАЯ КУЛЬТУРА И СПОРТ",11,0,0,0,182.4]
["Физическая культура",11,1,0,0,182.4]
["Физкультурно-оздоровительная работа и спортивные мероприятия",11,1,5120000,0,82.4]
["Мероприятия в области спорта, физической культуры и туризма",11,1,5129700,0,82.4]
["Выполнение функций органами местного самоуправления",11,1,5129700,"500",82.4]
["Целевые программы муниципальных образований",11,1,7950000,0,100]
["Долгосрочная целевая программа \"Развитие физической культуры, спорта и туризма в Черемховском районном муниципальном образовании на 2011-2013 гг.\"",11,1,7951200,0,100]
["Выполнение функций органами местного самоуправления",11,1,7951200,"500",100]
["СРЕДСТВА МАССОВОЙ ИНФОРМАЦИИ",12,0,0,0,2000]
["Периодическая печать и издательства",12,2,0,0,2000]
["Периодические издания, учрежденные органами законодательной и исполнительной власти",12,2,4570000,0,2000]
["Государственная поддержка в сфере культуры, кинематографии и средств массовой информации",12,2,4578500,0,2000]
["Субсидии юридическим лицам",12,2,4578500,"006",2000]
["ОБСЛУЖИВАНИЕ ГОСУДАРСТВЕННОГО И МУНИЦИПАЛЬНОГО ДОЛГА",13,0,0,0,60]
["Обслуживание внутреннего государственного и муниципального долга",13,1,0,0,60]
["Процентные платежи по долговым обязательствам",13,1,650000,0,60]
["Процентные платежи по муниципальному долгу",13,1,650300,0,60]
["Прочие расходы",13,1,650300,"013",60]
["МЕЖБЮДЖЕТНЫЕ ТРАНСФЕРТЫ ОБЩЕГО ХАРАКТЕРА БЮДЖЕТАМ СУБЪЕКТОВ РОССИЙСКОЙ ФЕДЕРАЦИИ И МУНИЦИПАЛЬНЫХ ОБРАЗОВАНИЙ ",14,0,0,0,6866]
["Дотации на выравнивание бюджетной обеспеченности субъектов Российской Федерации и муниципальных образований",14,1,0,0,3500]
["Выравнивание бюджетной обеспечености",14,1,5160000,0,3500]
["Выравнивание бюджетной обеспеченности",14,1,5160100,0,3500]
["Выравнивание бюджетной обеспеченности поселений из районного фонда финансовой поддержки",14,1,5160130,0,3500]
["Фонд финансовой поддержки",14,1,5160130,"008",3500]
["Прочие межбюджетные трансферты общего характера бюджетам субъектов Российской Федерации и муниципальных образований ",14,3,0,0,3366]
["Целевые программы муниципальных образований",14,3,7950000,0,3366]
["Долгосрочная целевая программа Черемховского районного муниципального образования \"Повышение эффективности бюджетных расходов Черемховского районного муниципального образования на 2012-2013 годы\"",14,3,7950200,0,3366]
["Иные межбюджетные трансферты",14,3,7950200,"017",3366]
["ИТОГО",{"$nulls":4},616524.80000000005]
[]
["Начальник финуправления",null,null,null,"Ю.Н. Гайдук"]

{"sheet":"прил7","index":6,"n_rows":314,"n_cols":7,"rows_kept":314,"cut":false,"hidden":false,"merged":[[313,5,313,6],[13,0,13,6],[16,0,17,0],[16,1,16,4],[16,5,16,6],[311,0,311,4]]}
{"$rows_empty":13}
["Распределение  бюджетных ассигнований   по разделам, подразделам классификации расходов бюджетов на  плановый период 2014 и 2015 годов"]
[]
[]
["Наименование показателя","Код",null,null,null,"Сумма, тыс.руб."]
[null,"раздела","подраздела","целевой статьи","вида расходов",2014,2015]
[1,2,3,4,5,6,7]
["ОБЩЕГОСУДАРСТВЕННЫЕ ВОПРОСЫ",1,0,0,0,57173.4,56134.3]
["Функционирование высшего должностного лица субъекта Российской Федерации и муниципального образования",1,2,0,0,1403,1472.1]
["Руководство и управление в сфере установленных функций органов государственной власти субъектов Российской Федерации  и органов местного самоуправления",1,2,20000,0,1403,1472.1]
["Глава муниципального образования",1,2,20300,0,1403,1472.1]
["Выполнение функций органами местного самоуправления",1,2,20300,"500",1403,1472.1]
["Функционирование законодательных (представительных) органов государственной власти и представительных органов муниципальных образований",1,3,0,0,940.5,986.3]
["Руководство и управление в сфере установленных функций органов государственной власти субъектов Российской Федерации  и органов местного самоуправления",1,3,20000,0,940.5,986.3]
["Центральный аппарат",1,3,20400,0,289,302]
["Выполнение функций органами местного самоуправления",1,3,20400,"500",289,302]
["Председатель представительного органа муниципального образования",1,3,21100,0,651.5,684.3]
["Выполнение функций органами местного самоуправления",1,3,21100,"500",651.5,684.3]
["Функционирование Правительства Российской Федерации, высших исполнительных органов государственной власти субъектов Российской Федерации, местных администраций",1,4,0,0,20490.599999999999,21389.4]
["Руководство и управление в сфере установленных функций органов государственной власти субъектов Российской Федерации  и органов местного самоуправления",1,4,20000,0,20490.599999999999,21389.4]
["Центральный аппарат",1,4,20400,0,20490.599999999999,21389.4]
["Выполнение функций органами местного самоуправления",1,4,20400,"500",20490.599999999999,21389.4]
["Региональные целевые программы",1,4,5220000,0,0,0]
["Долгосрочная целевая программа «Энергосбережение и повышение энергетической эффективности на территории Иркутской области на 2011-2015 годы и на период до 2020 года»",1,4,5225400,0,0,0]
["Выполнение функций органами местного самоуправления",1,4,5225400,"500",0,0]
["Целевые программы муниципальных образований",1,4,7950000,0,0,0]
["Долгосрочная целевая программа энергосбережения и повышения энергетической эффективности Черемховского районного муниципального образования на 2010-2015 годы",1,4,7951100,0,0,0]
["Мероприятия по повышению энергетической эффективности",1,4,7951100,"451",0,0]
["Обеспечение деятельности финансовых, налоговых и таможенных органов и органов финансового (финансово-бюджетного) надзора",1,6,0,0,7459.3,7789.5]
["Руководство и управление в сфере установленных функций органов государственной власти субъектов Российской Федерации  и органов местного самоуправления",1,6,20000,0,7459.3,7789.5]
["Центральный аппарат",1,6,20400,0,6674.1,6964.3]
["Выполнение функций органами местного самоуправления",1,6,20400,"500",6674.1,6964.3]
["Руководитель контрольно-счетной палаты муниципального образования и его заместители",1,6,22500,0,785.2,825.2]
["Выполнение функций органами местного самоуправления",1,6,22500,"500",785.2,825.2]
["Целевые программы муниципальных образований",1,6,7950000,0,0,0]
["Долгосрочная целевая программа Черемховского районного муниципального образования \"Повышение эффективности бюджетных расходов Черемховского районного муниципального образования на 2012-2013 годы\"",1,6,7950200,0,0,0]
["Выполнение функций органами местного самоуправления",1,6,7950200,"500",0,0]
["Обеспечение проведения выборов и референдумов",1,7,0,0,2500,0]
["Проведение выборов и референдумов",1,7,200000,0,2500,0]
["Проведение выборов и референдумов",1,7,200000,0,2500,0]
["Проведение выборов в представительные органы муниципального образования",1,7,200002,0,2500,0]
["Выполнение функций органами местного самоуправления",1,7,200002,"500",2500,0]
["Резервные фонды",1,11,0,0,300,300]
["Резервные фонды",1,11,700000,0,300,300]
["Резервные фонды местных администраций",1,11,700500,0,300,300]
["Выполнение функций органами местного самоуправления",1,11,700500,"500",300,300]
["Другие общегосударственные вопросы",1,13,0,0,24080,24197]
["Руководство и управление в сфере установленных функций органов государственной власти субъектов Российской Федерации  и органов местного самоуправления",1,13,20000,0,16869.2,17486.2]
["Центральный аппарат",1,13,20400,0,2262.4,2351.6999999999998]
["Выполнение функций органами местного самоуправления",1,13,20400,"500",2262.4,2351.6999999999998]
["Осуществление областных государственных полномочий по хранению, комплектованию, учету и использованию архивных документов, относящихся к государственной собственности Иркутской области",1,13,24000,0,1086,1086]
["Выполнение функций органами местного самоуправления",1,13,24000,"500",1086,1086]
["Осуществление областных государственных полномочий по определению персонального состава и обеспечению деятельности административных комиссий",1,13,24300,0,563.6,563.6]
["Выполнение функций органами местного самоуправления",1,13,24300,"500",563.6,563.6]
["Осуществление отдельных государственных полномочий в области производства и оборота этилового спирта, алкогольной и спиртосодержащей продукции",1,13,24400,0,404.3,430.2]
["Выполнение функций органами местного самоуправления",1,13,24400,"500",404.3,430.2]
["Осуществление отдельных областных государственных полномочий в области охраны труда",1,13,24500,0,563.6,563.6]
["Выполнение функций органами местного самоуправления",1,13,24500,"500",563.6,563.6]
["Обеспечение деятельности подведомственных учреждений",1,13,29900,0,11989.3,12491.1]
["Выполнение функций казенными учреждениями",1,13,29900,"001",11089.3,11591.1]
["Субсидии бюджетным учреждениям на финансовое обеспечение муниципального задания на оказание муниципальных услуг (выполнение работ)",1,13,29900,"611",900,900]
["Реализация государственных функций, связанных с общегосударственным управлением",1,13,920000,0,170.8,170.8]
["Выполнение других обязательств государства",1,13,920300,0,170.8,170.8]
["Выполнение функций органами местного самоуправления",1,13,920300,"500",170.8,170.8]
["Учреждения по обеспечению хозяйственного обслуживания",1,13,930000,0,6500,6500]
["Субсидии бюджетным учреждениям на финансовое обеспечение муниципального задания на оказание муниципальных услуг (выполнение работ)",1,13,930000,"611",6500,6500]
["Целевые программы муниципальных образований",1,13,7950000,0,540,40]
["Долгосрочная целевая программа \"Улучшение условий и охраны труда в Черемховском районе на 2011-2013гг.\"",1,13,7951400,0,0,0]
["Выполнение функций органами местного самоуправления",1,13,7951400,"500",0,0]
["Долгосрочная целевая программа \"Инвентаризация муниципальных объектов недвижимости Черемховского районного муниципального образования на 2012-2014 годы\"",1,13,7951900,0,500,0]
["Выполнение функций органами местного самоуправления",1,13,7951900,"500",500,0]
["Комплексная программа \"Профилактика правонарушений в Черемховском районном муниципальном образовании на 2013-2016 годы\"",1,13,7952600,0,40,40]
["Выполнение функций органами местного самоуправления",1,13,7952600,"500",40,40]
["Долгосрочная целевая программа \"Поддержка молодых педагогов на территории Черемховского районного муниципального образования\" на 2012-2013 годы",1,13,7952700,0,0,0]
["Выполнение функций органами местного самоуправления",1,13,7952700,"500",0,0]
["НАЦИОНАЛЬНАЯ ЭКОНОМИКА",4,0,0,0,3698.1,2406.5]
["Дорожное хозяйство(дорожные фонды)",4,9,0,0,3048.1,2406.5]
["Региональные целевые программы",4,9,5220000,0,0,0]
["Долгосрочная целевая программа \"Развитие автомобильных дорог общего пользования регионального или межмуниципального значения и местного значения в Иркутской области на 2011 - 2014 годы\"",4,9,5224700,0,0,0]
["Выполнение функций органами местного самоуправления",4,9,5224700,"500",0,0]
["Целевые программы муниципальных образований",4,9,7950000,0,3048.1,2406.5]
["Долгосрочная целевая программа \"Инвентаризация муниципальных объектов недвижимости Черемховского районного муниципального образования на 2012-2014 годы\"",4,9,7951900,0,0,0]
["Выполнение функций органами местного самоуправления",4,9,7951900,"500",0,0]
["Долгосрочная целевая программа \"Развитие автомобильных дорог Черемховского районного муниципального образования на 2013-2015 годы\"",4,9,7952300,0,3048.1,2406.5]
["Выполнение функций органами местного самоуправления",4,9,7952300,"500",3048.1,2406.5]
["Другие вопросы в области национальной экономики",4,12,0,0,650,0]
["Мероприятия в области строительства, архитектуры и градостроительства",4,12,3380000,0,0,0]
["Подготовка проектов правил землепользования и застройки муниципальных образований Черемховского районного муниципального образования",4,12,3380200,0,0,0]
["Выполнение функций органами местного самоуправления",4,12,3380200,"500",0,0]
["Целевые программы муниципальных образований",4,12,7950000,0,650,0]
["Долгосрочная целевая программа \"Инвентаризация муниципальных объектов недвижимости Черемховского районного муниципального образования на 2012-2014 годы\"",4,12,7951900,0,500,0]
["Выполнение функций органами местного самоуправления",4,12,7951900,"500",500,0]
["Долгосрочная целевая программа \"Поддержка и развитие малого и среднего предпринимательства в Черемховском районе\" на 2013-2014 годы",4,12,7952200,0,150,0]
["Выполнение функций органами местного самоуправления",4,12,7952200,"500",150,0]
["ЖИЛИЩНО-КОММУНАЛЬНОЕ ХОЗЯЙСТВО",5,0,0,0,4258,4464.7]
["Жилищное хозяйство",5,1,0,0,0,0]
["Поддержка жилищного хозяйства",5,1,3500000,0,0,0]
["Мероприятия в области жилищного хозяйства",5,1,3500300,0,0,0]
["Выполнение функций органами местного самоуправления",5,1,3500300,"500",0,0]
["Коммунальное хозяйство",5,2,0,0,0,0]
["Региональные целевые программы",5,2,5220000,0,0,0]
["Долгосрочная целевая программа «Энергосбережение и повышение энергетической эффективности на территории Иркутской области на 2011-2015 годы и на период до 2020 года»",5,2,5225400,0,0,0]
["Иные межбюджетные трансферты",5,2,5225400,"017",0,0]
["Другие вопросы в области жилищно-коммунального хозяйства",5,5,0,0,4258,4464.7]
["Руководство и управление в сфере установленных функций органов государственной власти субъектов Российской Федерации  и органов местного самоуправления",5,5,20000,0,4258,4464.7]
["Центральный аппарат",5,5,20400,0,4258,4464.7]
["Выполнение функций органами местного самоуправления",5,5,20400,"500",4258,4464.7]
["ОХРАНА ОКРУЖАЮЩЕЙ СРЕДЫ",6,0,0,0,0,0]
["Другие вопросы в области охраны окружающей среды",6,5,0,0,0,0]
["Состояние окружающей среды и природопользования",6,5,4100000,0,0,0]
["Природоохранные мероприятия",6,5,4100100,0,0,0]
["Выполнение функций органами местного самоуправления",6,5,4100100,"500",0,0]
["Региональные целевые программы",6,5,5220000,0,0,0]
["Долгосрочная целевая программа Иркутской области «Защита окружающей среды в Иркутской области на 2011-2015 годы»",6,5,5222500,0,0,0]
["Подпрограмма «Отходы производства и потребления в Иркутской области на 2011-2015 годы»",6,5,5222502,0,0,0]
["Выполнение функций органами местного самоуправления",6,5,5222502,"500",0,0]
["ОБРАЗОВАНИЕ",7,0,0,0,348970.3,346703.1]
["Дошкольное образование",7,1,0,0,64603.4,62906.1]
["Детские дошкольные учреждения",7,1,4200000,0,61308.4,61441.1]
["Обеспечение деятельности подведомственных учреждений",7,1,4209900,0,61308.4,61441.1]
["Выполнение функций казенными учреждениями",7,1,4209900,"001",61308.4,61441.1]
["Региональные целевые программы",7,1,5220000,0,0,0]
["Областная государственная целевая программа поддержки и развития учреждений дошкольного образования в Иркутской области на 2009-2014 годы",7,1,5223700,0,0,0]
["Выполнение функций казенными учреждениями",7,1,5223700,"001",0,0]
["Долгосрочная целевая программа «Энергосбережение и повышение энергетической эффективности на территории Иркутской области на 2011-2015 годы и на период до 2020 года»",7,1,5225400,0,0,0]
["Выполнение функций казенными учреждениями",7,1,5225400,"001",0,0]
["Выплата заработной платы с начислениями на нее педагогическим работникам муниципальных дошкольных образовательных учреждений и муниципальных учреждений дополнительного образования",7,1,5890000,0,1465,1465]
["Выполнение функций казенными учреждениями",7,1,5890000,"001",1465,1465]
["Целевые программы муниципальных образований",7,1,7950000,0,1830,0]
["Долгосрочная целевая программа Черемховского районного муниципального образования \"Повышение эффективности бюджетных расходов Черемховского районного муниципального образования на 2012-2013 годы\"",7,1,7950200,0,0,0]
["Выполнение функций казенными учреждениями",7,1,7950200,"001",0,0]
["Долгосрочная целевая программа \"Безопасность образовательных учреждений на 2010-2014 гг.\"",7,1,7951000,0,830,0]
["Мероприятия по обеспечению пожарной безопасности",7,1,7951000,"450",830,0]
["Долгосрочная целевая программа энергосбережения и повышения энергетической эффективности Черемховского районного муниципального образования на 2010-2015 годы",7,1,7951100,0,600,0]
["Мероприятия по повышению энергетической эффективности",7,1,7951100,"451",600,0]
["Долгосрочная целевая программа \"Развитие дошкольного образования на 2011-2014 гг.\"",7,1,7951700,0,0,0]
["Мероприятия в сфере образования",7,1,7951700,"022",0,0]
["Долгосрочная целевая программа \"Совершенствование дошкольного образования Черемховского района на 2011-2014 гг.\"",7,1,7951800,0,400,0]
["Мероприятия в сфере образования",7,1,7951800,"022",400,0]
["Общее образование",7,2,0,0,276921.3,276261.59999999998]
["Руководство и управление в сфере установленных функций органов государственной власти субъектов Российской Федерации  и органов местного самоуправления",7,2,20000,0,238581.5,238581.5]
["Обеспечение государственных гарантий прав граждан на получение общедоступного и бесплатного дошкольного, начального общего, основного общего, среднего (полного) общего образования, а также дополнительного образования в общеобразовательных учреждениях",7,2,25000,0,238581.5,238581.5]
["Выполнение функций казенными учреждениями",7,2,25000,"001",238581.5,238581.5]
["Школы - детские сады, школы начальные, неполные средние и средние",7,2,4210000,0,15782.6,15808.4]
["Обеспечение деятельности подведомственных учреждений",7,2,4219900,0,15782.6,15808.4]
["Выполнение функций казенными учреждениями",7,2,4219900,"001",15782.6,15808.4]
["Учреждения по внешкольной работе с детьми",7,2,4230000,0,20340.099999999999,21257.8]
["Обеспечение деятельности подведомственных учреждений",7,2,4239900,0,20340.099999999999,21257.8]
["Выполнение функций казенными учреждениями",7,2,4239900,"001",20340.099999999999,21257.8]
["Мероприятия в области образования",7,2,4360000,0,0,0]
["Модернизация региональных систем образования",7,2,4362100,0,0,0]
["Модернизация региональных систем образования за счет средств федерального бюджета",7,2,4362101,0,0,0]
["Выполнение функций казенными учреждениями",7,2,4362101,"001",0,0]
["Иные безвозмездные и безвозвратные перечисления",7,2,5200000,0,0,0]
["Ежемесячное денежное вознаграждение за классное руководство",7,2,5200900,0,0,0]
["Выполнение функций казенными учреждениями",7,2,5200900,"001",0,0]
["Региональные целевые программы",7,2,5220000,0,0,0]
["Долгосрочная целевая программа «Модернизация объектов коммунальной инфраструктуры Иркутской области на 2011-2013 годы»",7,2,5222000,0,0,0]
["Подпрограмма «Подготовка объектов коммунальной инфраструктуры Иркутской области к отопительному сезону в 2011-2013 годах»",7,2,5222001,0,0,0]
["Выполнение функций казенными учреждениями",7,2,5222001,"001",0,0]
["Долгосрочная целевая программа «Энергосбережение и повышение энергетической эффективности на территории Иркутской области на 2011-2015 годы и на период до 2020 года»",7,2,5225400,0,0,0]
["Выполнение функций казенными учреждениями",7,2,5225400,"001",0,0]
["Выплата заработной платы с начислениями на нее педагогическим работникам муниципальных дошкольных образовательных учреждений и муниципальных учреждений дополнительного образования",7,2,5890000,0,540.1,540.1]
["Выполнение функций казенными учреждениями",7,2,5890000,"001",540.1,540.1]
["Целевые программы муниципальных образований",7,2,7950000,0,1677,73.8]
["Долгосрочная целевая программа Черемховского районного муниципального образования \"Повышение эффективности бюджетных расходов Черемховского районного муниципального образования на 2012-2013 годы\"",7,2,7950200,0,0,0]
["Выполнение функций казенными учреждениями",7,2,7950200,"001",0,0]
["Долгосрочная целевая программа \"Безопасность образовательных учреждений на 2010-2014 гг.\"",7,2,7951000,0,970,0]
["Мероприятия по обеспечению пожарной безопасности",7,2,7951000,"450",970,0]
["Долгосрочная целевая программа энергосбережения и повышения энергетической эффективности Черемховского районного муниципального образования на 2010-2015 годы",7,2,7951100,0,0,0]
["Мероприятия по повышению энергетической эффективности",7,2,7951100,"451",0,0]
["Долгосрочная целевая программа \"Ветхие школы Черемховского района\" на 2011-2013 гг.",7,2,7951500,0,0,0]
["Мероприятия в сфере образования",7,2,7951500,"022",0,0]
["Долгосрочная целевая программа \"Совершенствование организации питания в образовательных учреждениях Черемховского района на 2011-2013гг.\"",7,2,7951600,0,600,0]
["Мероприятия в сфере образования",7,2,7951600,"022",600,0]
["Долгосрочная целевая программа \"Развитие культуры в Черемховском районном муниципальном образовании на период 2012-2016 гг.\"",7,2,7952000,0,107,73.8]
["Мероприятия по поддержке и развитию культуры, искусства, кинематографии",7,2,7952000,"023",107,73.8]
["Профессиональная подготовка, переподготовка и повышение квалификации",7,5,0,0,127,127]
["Мероприятия по переподготовке и повышению квалификации",7,5,4340000,0,127,127]
["Выполнение функций казенными учреждениями",7,5,4340000,"001",127,127]
["Выполнение функций органами местного самоуправления",7,5,4340000,"500",0,0]
["Молодежная политика и оздоровление детей",7,7,0,0,212,212]
["Организационно-воспитательная работа с молодежью",7,7,4310000,0,46,46]
["Проведение мероприятий для детей и молодежи",7,7,4310100,0,46,46]
["Проведение мероприятия для детей и молодежи",7,7,4310100,"447",46,46]
["Мероприятия по проведению оздоровительной кампании детей",7,7,4320000,0,126,126]
["Оплата стоимости набора продуктов питания для детей в организованных органами местного самоуправления оздоровительных лагерях с дневным пребыванием детей за счет средств областного бюджета",7,7,4320300,0,126,126]
["Оплата стоимости набора продуктов питания для детей в организованных органами местного самоуправления оздоровительных лагерях с дневным пребыванием детей за счет средств местного бюджета ",7,7,4320302,0,126,126]
["Выполнение функций казенными учреждениями",7,7,4320302,"001",126,126]
["Региональные целевые программы",7,7,5220000,0,0,0]
["Долгосрочная целевая программа Иркутской области \"Организация и обеспечение отдыха и оздоровления детей в Иркутской области на 2012-2014гг.\"",7,7,5226200,0,0,0]
["Выполнение функций казенными учреждениями",7,7,5226200,"001",0,0]
["Целевые программы муниципальных образований",7,7,7950000,0,40,40]
["Долгосрочная целевая программа \"Комплексные меры профилактики злоупотребления наркотическими средствами и психотропными веществами в Черемховском районном муниципальном образовании на 2011-2013 гг.\"",7,7,7951300,0,0,0]
["Выполнение функций органами местного самоуправления",7,7,7951300,"500",0,0]
["Долгосрочная целевая программа \"Молодежная политика в Черемховском районном муниципальном образовании\" на 2013-2015 гг.",7,7,7952500,0,40,40]
["Проведение мероприятия для детей и молодежи",7,7,7952500,"447",40,40]
["Другие вопросы в области образования",7,9,0,0,7106.6,7196.4]
["Руководство и управление в сфере установленных функций органов государственной власти субъектов Российской Федерации  и органов местного самоуправления",7,9,20000,0,2106.6,2196.4]
["Центральный аппарат",7,9,20400,0,2106.6,2196.4]
["Выполнение функций органами местного самоуправления",7,9,20400,"500",2106.6,2196.4]
["Учебно-методические кабинеты, централизованные бухгалтерии, группы хозяйственного обслуживания, учебные фильмотеки, межшкольные учебно-производственные комбинаты, логопедические пункты",7,9,4520000,0,5000,5000]
["Субсидии бюджетным учреждениям на финансовое обеспечение муниципального задания на оказание муниципальных услуг (выполнение работ)",7,9,4520000,"611",5000,5000]
["КУЛЬТУРА И КИНЕМАТОГРАФИЯ",8,0,0,0,13119.4,12743.1]
["Культура",8,1,0,0,12183.5,11762]
["Учреждения культуры и мероприятия в сфере культуры и кинематографии",8,1,4400000,0,3856.1,4010.2]
["Комплектование книжных фондов библиотек муниципальных образований и государственных библиотек городов Москвы и Санкт-Петербурга",8,1,4400200,0,466.3,466.3]
["Комплектование книжных фондов библиотек муниципальных образований и государственных библиотек городов Москвы и Санкт-Петербурга за счет средств федерального бюджета",8,1,4400201,0,303.60000000000002,303.60000000000002]
["Выполнение функций казенными учреждениями",8,1,4400201,"001",303.60000000000002,303.60000000000002]
["Комплектование книжных фондов библиотек муниципальных образований и государственных библиотек городов Москвы и Санкт-Петербурга за счет областного бюджета",8,1,4400202,0,162.69999999999999,162.69999999999999]
["Выполнение функций казенными учреждениями",8,1,4400202,"001",162.69999999999999,162.69999999999999]
["Обеспечение деятельности подведомственных учреждений",8,1,4409900,0,3389.8,3543.9]
["Выполнение функций казенными учреждениями",8,1,4409900,"001",3389.8,3543.9]
["Музеи и постоянные выставки",8,1,4410000,0,899.1,935.8]
["Обеспечение деятельности подведомственных учреждений",8,1,4419900,0,899.1,935.8]
["Выполнение функций казенными учреждениями",8,1,4419900,"001",899.1,935.8]
["Библиотеки",8,1,4420000,0,5424.3,5676.8]
["Обеспечение деятельности подведомственных учреждений",8,1,4429900,0,5424.3,5676.8]
["Выполнение функций казенными учреждениями",8,1,4429900,"001",5424.3,5676.8]
["Региональные целевые программы",8,1,5220000,0,1000,0]
["Долгосрочная целевая программа Иркутской области «100 модельных домов культуры Приангарью» на 2011-2013 годы",8,1,5225500,0,1000,0]
["Выполнение функций казенными учреждениями",8,1,5225500,"001",1000,0]
["Целевые программы муниципальных образований",8,1,7950000,0,1004,1139.2]
["Долгосрочная целевая программа Черемховского районного муниципального образования \"Повышение эффективности бюджетных расходов Черемховского районного муниципального образования на 2012-2013 годы\"",8,1,7950200,0,0,0]
["Выполнение функций казенными учреждениями",8,1,7950200,"001",0,0]
["Долгосрочная целевая программа энергосбережения и повышения энергетической эффективности Черемховского районного муниципального образования на 2010-2015 годы",8,1,7951100,0,100,200]
["Мероприятия по повышению энергетической эффективности",8,1,7951100,"451",100,200]
["Долгосрочная целевая программа \"Развитие культуры в Черемховском районном муниципальном образовании на период 2012-2016 гг.\"",8,1,7952000,0,904,939.2]
["Мероприятия по поддержке и развитию культуры, искусства, кинематографии",8,1,7952000,"023",904,939.2]
["Другие вопросы в области культуры, кинематографии",8,4,0,0,935.9,981.1]
["Руководство и управление в сфере установленных функций органов государственной власти субъектов Российской Федерации  и органов местного самоуправления",8,4,20000,0,935.9,981.1]
["Центральный аппарат",8,4,20400,0,935.9,981.1]
["Выполнение функций органами местного самоуправления",8,4,20400,"500",935.9,981.1]
["ЗДРАВООХРАНЕНИЕ",9,0,0,0,0,0]
["Другие вопросы в области здравоохранения",9,9,0,0,0,0]
["Целевые программы муниципальных образований",9,9,7950000,0,0,0]
["Ведомственная целевая программа \"Обеспечение учреждений здравоохранения Черемховского районного муниципального образования квалифицированными медицинскими кадрами\" на 2013 год",9,9,7952800,0,0,0]
["Выполнение функций органами местного самоуправления",9,9,7952800,"500",0,0]
["Социальная политика",10,0,0,0,19563.2,19960.400000000001]
["Пенсионное обеспечение",10,1,0,0,2980,2980]
["Доплаты к пенсиям, дополнительное пенсионное обеспечение ",10,1,4910000,0,2980,2980]
["Доплаты к пенсиям государственных служащих субъектов Российской Федерации и муниципальных служащих ",10,1,4910100,0,2980,2980]
["Социальные выплаты",10,1,4910100,"005",2980,2980]
["Социальное обеспечение населения",10,3,0,0,15405.1,15802.3]
["Руководство и управление в сфере установленных функций органов государственной власти субъектов Российской Федерации  и органов местного самоуправления",10,3,20000,0,14247.6,14596.2]
["Осуществление отдельных областных государственных полномочий по предоставлению мер социальной поддержки многодетным и малоимущим семьям",10,3,24600,0,6361.8,6361.8]
["Социальные выплаты",10,3,24600,"005",6361.8,6361.8]
["Осуществление областных государственных полномочий по предоставлению гражданам субсидий на оплату жилых помещений и коммунальных услуг",10,3,24700,0,7885.8,8234.4]
["Содержание и обеспечение деятельности муниципальных служащих, осуществляющих областные государственные полномочия по предоставлению гражданам субсидий на оплату жилых помещений и коммунальных услуг",10,3,24701,0,771.9,771.9]
["Выполнение функций органами местного самоуправления",10,3,24701,"500",771.9,771.9]
["Предоставление гражданам субсидий на оплату жилых помещений и коммунальных услуг",10,3,24702,0,7113.9,7462.5]
["Социальные выплаты",10,3,24702,"005",7113.9,7462.5]
["Реализация государственных функций в области социальной политики",10,3,5140000,0,882.1,910]
["Мероприятия в области социальной политики",10,3,5140100,0,882.1,910]
["Социальные выплаты",10,3,5140100,"005",882.1,910]
["Региональные целевые программы",10,3,5220000,0,0,0]
["Областная государственная социальная программа \"Молодым семьям - доступное жилье\" на 2005-2019 годы",10,3,5222200,0,0,0]
["Социальные выплаты",10,3,5222200,"005",0,0]
["Целевые программы муниципальных образований",10,3,7950000,0,275.39999999999998,296.10000000000002]
["Долгосрочная целевая программа \"Молодым семьям-доступное жилье\" на 2012-2019 гг.",10,3,7952100,0,275.39999999999998,296.10000000000002]
["Социальные выплаты",10,3,7952100,"005",275.39999999999998,296.10000000000002]
["Охрана семьи и детства",10,4,0,0,0,0]
["Исполнение судебных актов по обеспечению жилыми помещениями детей-сирот и детей, оставшихся без попечения родителей, лиц из числа детей-сирот и детей, оставшихся без попечения родителей, вынесенных в соответствии с Законом Иркутской области от 22.06.2010 № 50-ОЗ «О дополнительных гарантиях прав детей-сирот и детей, оставшихся без попечения родителей, на жилое помещение в Иркутской области» и Законом Иркутской области от 29.06.2010 № 52-ОЗ «О наделении органов местного самоуправления областными государственными полномочиями по обеспечению детей-сирот и детей, оставшихся без попечения родителей, лиц из числа детей-сирот и детей, оставшихся без попечения родителей, жилыми помещениями по договорам социального найма в Иркутской области",10,4,6040000,0,0,0]
["Бюджетные инвестиции",10,4,6040000,"003",0,0]
["Другие вопросы в области социальной политики",10,6,0,0,1178.0999999999999,1178.0999999999999]
["Руководство и управление в сфере установленных функций органов государственной власти субъектов Российской Федерации  и органов местного самоуправления",10,6,20000,0,1078.0999999999999,1078.0999999999999]
["Осуществление областных государственных полномочий по определению персонального состава и обеспечению деятельности районных (городских), районных в городах комиссий по делам несовершеннолетних и защите их прав",10,6,24100,0,1078.0999999999999,1078.0999999999999]
["Выполнение функций органами местного самоуправления",10,6,24100,"500",1078.0999999999999,1078.0999999999999]
["Целевые программы муниципальных образований",10,6,7950000,0,100,100]
["Муниципальная целевая программа \"Поддержка, проводимых мероприятий, посвященных Дням воинской славы, памятным датам России и работе с ветеранами и инвалидами в Черемховском районе на 2013-2015 гг.\"",10,6,7952400,0,100,100]
["Выполнение функций органами местного самоуправления",10,6,7952400,"500",100,100]
["ФИЗИЧЕСКАЯ КУЛЬТУРА И СПОРТ",11,0,0,0,82.4,82.4]
["Физическая культура",11,1,0,0,82.4,82.4]
["Физкультурно-оздоровительная работа и спортивные мероприятия",11,1,5120000,0,82.4,82.4]
["Мероприятия в области спорта, физической культуры и туризма",11,1,5129700,0,82.4,82.4]
["Выполнение функций органами местного самоуправления",11,1,5129700,"500",82.4,82.4]
["Целевые программы муниципальных образований",11,1,7950000,0,0,0]
["Долгосрочная целевая программа \"Развитие физической культуры, спорта и туризма в Черемховском районном муниципальном образовании на 2011-2013 гг.\"",11,1,7951200,0,0,0]
["Выполнение функций органами местного самоуправления",11,1,7951200,"500",0,0]
["СРЕДСТВА МАССОВОЙ ИНФОРМАЦИИ",12,0,0,0,2000,2000]
["Периодическая печать и издательства",12,2,0,0,2000,2000]
["Периодические издания, учрежденные органами законодательной и исполнительной власти",12,2,4570000,0,2000,2000]
["Государственная поддержка в сфере культуры, кинематографии и средств массовой информации",12,2,4578500,0,2000,2000]
["Субсидии юридическим лицам",12,2,4578500,"006",2000,2000]
["ОБСЛУЖИВАНИЕ ГОСУДАРСТВЕННОГО И МУНИЦИПАЛЬНОГО ДОЛГА",13,0,0,0,61.2,63.5]
["Обслуживание внутреннего государственного и муниципального долга",13,1,0,0,61.2,63.5]
["Процентные платежи по долговым обязательствам",13,1,650000,0,61.2,63.5]
["Процентные платежи по муниципальному долгу",13,1,650300,0,61.2,63.5]
["Прочие расходы",13,1,650300,"013",61.2,63.5]
["МЕЖБЮДЖЕТНЫЕ ТРАНСФЕРТЫ ОБЩЕГО ХАРАКТЕРА БЮДЖЕТАМ СУБЪЕКТОВ РОССИЙСКОЙ ФЕДЕРАЦИИ И МУНИЦИПАЛЬНЫХ ОБРАЗОВАНИЙ ",14,0,0,0,3400,3500]
["Дотации на выравнивание бюджетной обеспеченности субъектов Российской Федерации и муниципальных образований",14,1,0,0,3400,3500]
["Выравнивание бюджетной обеспечености",14,1,5160000,0,3400,3500]
["Выравнивание бюджетной обеспеченности",14,1,5160100,0,3400,3500]
["Выравнивание бюджетной обеспеченности поселений из районного фонда финансовой поддержки",14,1,5160130,0,3400,3500]
["Фонд финансовой поддержки",14,1,5160130,"008",3400,3500]
["Прочие межбюджетные трансферты общего характера бюджетам субъектов Российской Федерации и муниципальных образований ",14,3,0,0,0,0]
["Целевые программы муниципальных образований",14,3,7950000,0,0,0]
["Долгосрочная целевая программа Черемховского районного муниципального образования \"Повышение эффективности бюджетных расходов Черемховского районного муниципального образования на 2012-2013 годы\"",14,3,7950200,0,0,0]
["Иные межбюджетные трансферты",14,3,7950200,"017",0,0]
["ИТОГО",{"$nulls":4},452326,448058]
[]
["Начальник финуправления",{"$nulls":4},"Ю.Н. Гайдук"]

{"sheet":"прил8","index":7,"n_rows":399,"n_cols":7,"rows_kept":399,"cut":false,"hidden":false,"merged":[[398,5,398,6],[17,0,17,6],[20,0,21,0],[20,1,20,5],[20,6,21,6],[396,0,396,5]]}
{"$rows_empty":17}
["Распределение  бюджетных ассигнований по разделам, подразделам, целевым статьям и видам расходов классификации расходов бюджетов в ведомственной структуре расходов бюджета Черемховского районного муниципального образования на 2013 год"]
[]
[]
["Наименование показателя","Код",{"$nulls":4},"Сумма , тыс. руб. "]
[null,"ГРБС","раздела","подраздела","целевой статьи","вида расходов"]
[1,2,3,4,5,6,7]
["Отдел по культуре и библиотечному обслуживанию АЧРМО",904,0,0,0,0,26152.400000000001]
["ОБРАЗОВАНИЕ",904,7,0,0,0,5243.4]
["Общее образование",904,7,2,0,0,5235.3]
["Учреждения по внешкольной работе с детьми",904,7,2,4230000,0,4831.5]
["Обеспечение деятельности подведомственных учреждений",904,7,2,4239900,0,4831.5]
["Выполнение функций казенными учреждениями",904,7,2,4239900,"001",4831.5]
["Целевые программы муниципальных образований",904,7,2,7950000,0,403.8]
["Долгосрочная целевая программа Черемховского районного муниципального образования \"Повышение эффективности бюджетных расходов Черемховского районного муниципального образования на 2012-2013 годы\"",904,7,2,7950200,0,311]
["Выполнение функций казенными учреждениями",904,7,2,7950200,"001",311]
["Долгосрочная целевая программа \"Развитие культуры в Черемховском районном муниципальном образовании на период 2012-2016 гг.\"",904,7,2,7952000,0,92.8]
["Мероприятия по поддержке и развитию культуры, искусства, кинематографии",904,7,2,7952000,"023",92.8]
["Профессиональная подготовка, переподготовка и повышение квалификации",904,7,5,0,0,8.1]
["Мероприятия по переподготовке и повышению квалификации",904,7,5,4340000,0,8.1]
["Выполнение функций казенными учреждениями",904,7,5,4340000,"001",8.1]
["КУЛЬТУРА И КИНЕМАТОГРАФИЯ",904,8,0,0,0,20909]
["Культура",904,8,1,0,0,19587.3]
["Учреждения культуры и мероприятия в сфере культуры и кинематографии",904,8,1,4400000,0,6931.2]
["Комплектование книжных фондов библиотек муниципальных образований и государственных библиотек городов Москвы и Санкт-Петербурга",904,8,1,4400200,0,466.3]
["Комплектование книжных фондов библиотек муниципальных образований и государственных библиотек городов Москвы и Санкт-Петербурга за счет средств федерального бюджета",904,8,1,4400201,0,303.60000000000002]
["Выполнение функций казенными учреждениями",904,8,1,4400201,"001",303.60000000000002]
["Комплектование книжных фондов библиотек муниципальных образований и государственных библиотек городов Москвы и Санкт-Петербурга за счет областного бюджета",904,8,1,4400202,0,162.69999999999999]
["Выполнение функций казенными учреждениями",904,8,1,4400202,"001",162.69999999999999]
["Обеспечение деятельности подведомственных учреждений",904,8,1,4409900,0,6464.9]
["Выполнение функций казенными учреждениями",904,8,1,4409900,"001",6464.9]
["Музеи и постоянные выставки",904,8,1,4410000,0,1259.9000000000001]
["Обеспечение деятельности подведомственных учреждений",904,8,1,4419900,0,1259.9000000000001]
["Выполнение функций казенными учреждениями",904,8,1,4419900,"001",1259.9000000000001]
["Библиотеки",904,8,1,4420000,0,8636.2000000000007]
["Обеспечение деятельности подведомственных учреждений",904,8,1,4429900,0,8636.2000000000007]
["Выполнение функций казенными учреждениями",904,8,1,4429900,"001",8636.2000000000007]
["Региональные целевые программы",904,8,1,5220000,0,1000]
["Долгосрочная целевая программа Иркутской области «100 модельных домов культуры Приангарью» на 2011-2013 годы",904,8,1,5225500,0,1000]
["Выполнение функций казенными учреждениями",904,8,1,5225500,"001",1000]
["Целевые программы муниципальных образований",904,8,1,7950000,0,1760]
["Долгосрочная целевая программа Черемховского районного муниципального образования \"Повышение эффективности бюджетных расходов Черемховского районного муниципального образования на 2012-2013 годы\"",904,8,1,7950200,0,547]
["Выполнение функций казенными учреждениями",904,8,1,7950200,"001",547]
["Долгосрочная целевая программа энергосбережения и повышения энергетической эффективности Черемховского районного муниципального образования на 2010-2015 годы",904,8,1,7951100,0,282]
["Мероприятия по повышению энергетической эффективности",904,8,1,7951100,"451",282]
["Долгосрочная целевая программа \"Развитие культуры в Черемховском районном муниципальном образовании на период 2012-2016 гг.\"",904,8,1,7952000,0,931]
["Мероприятия по поддержке и развитию культуры, искусства, кинематографии",904,8,1,7952000,"023",931]
["Другие вопросы в области культуры, кинематографии",904,8,4,0,0,1321.7]
["Руководство и управление в сфере установленных функций органов государственной власти субъектов Российской Федерации  и органов местного самоуправления",904,8,4,20000,0,1321.7]
["Центральный аппарат",904,8,4,20400,0,1321.7]
["Выполнение функций органами местного самоуправления",904,8,4,20400,"500",1321.7]
["Отдел образования АЧРМО",907,0,0,0,0,472789.6]
["ОБРАЗОВАНИЕ",907,7,0,0,0,466427.8]
["Дошкольное образование",907,7,1,0,0,105029.9]
["Детские дошкольные учреждения",907,7,1,4200000,0,65397.3]
["Обеспечение деятельности подведомственных учреждений",907,7,1,4209900,0,65397.3]
["Выполнение функций казенными учреждениями",907,7,1,4209900,"001",65397.3]
["Региональные целевые программы",907,7,1,5220000,0,3335.8]
["Областная государственная целевая программа поддержки и развития учреждений дошкольного образования в Иркутской области на 2009-2014 годы",907,7,1,5223700,0,3027.5]
["Выполнение функций казенными учреждениями",907,7,1,5223700,"001",3027.5]
["Долгосрочная целевая программа «Энергосбережение и повышение энергетической эффективности на территории Иркутской области на 2011-2015 годы и на период до 2020 года»",907,7,1,5225400,0,308.3]
["Выполнение функций казенными учреждениями",907,7,1,5225400,"001",308.3]
["Выплата заработной платы с начислениями на нее педагогическим работникам муниципальных дошкольных образовательных учреждений и муниципальных учреждений дополнительного образования",907,7,1,5890000,0,30529.8]
["Выполнение функций казенными учреждениями",907,7,1,5890000,"001",30529.8]
["Целевые программы муниципальных образований",907,7,1,7950000,0,5767]
["Долгосрочная целевая программа Черемховского районного муниципального образования \"Повышение эффективности бюджетных расходов Черемховского районного муниципального образования на 2012-2013 годы\"",907,7,1,7950200,0,3611]
["Выполнение функций казенными учреждениями",907,7,1,7950200,"001",3611]
["Долгосрочная целевая программа \"Безопасность образовательных учреждений на 2010-2014 гг.\"",907,7,1,7951000,0,572]
["Мероприятия по обеспечению пожарной безопасности",907,7,1,7951000,"450",572]
["Долгосрочная целевая программа энергосбережения и повышения энергетической эффективности Черемховского районного муниципального образования на 2010-2015 годы",907,7,1,7951100,0,132]
["Мероприятия по повышению энергетической эффективности",907,7,1,7951100,"451",132]
["Долгосрочная целевая программа \"Развитие дошкольного образования на 2011-2014 гг.\"",907,7,1,7951700,0,1102]
["Мероприятия в сфере образования",907,7,1,7951700,"022",1102]
["Долгосрочная целевая программа \"Совершенствование дошкольного образования Черемховского района на 2011-2014 гг.\"",907,7,1,7951800,0,350]
["Мероприятия в сфере образования",907,7,1,7951800,"022",350]
["Общее образование",907,7,2,0,0,350324.7]
["Руководство и управление в сфере установленных функций органов государственной власти субъектов Российской Федерации  и органов местного самоуправления",907,7,2,20000,0,281204.40000000002]
["Обеспечение государственных гарантий прав граждан на получение общедоступного и бесплатного дошкольного, начального общего, основного общего, среднего (полного) общего образования, а также дополнительного образования в общеобразовательных учреждениях",907,7,2,25000,0,281204.40000000002]
["Выполнение функций казенными учреждениями",907,7,2,25000,"001",281204.40000000002]
["Школы - детские сады, школы начальные, неполные средние и средние",907,7,2,4210000,0,22043.4]
["Обеспечение деятельности подведомственных учреждений",907,7,2,4219900,0,22043.4]
["Выполнение функций казенными учреждениями",907,7,2,4219900,"001",22043.4]
["Учреждения по внешкольной работе с детьми",907,7,2,4230000,0,24011.3]
["Обеспечение деятельности подведомственных учреждений",907,7,2,4239900,0,24011.3]
["Выполнение функций казенными учреждениями",907,7,2,4239900,"001",24011.3]
["Мероприятия в области образования",907,7,2,4360000,0,1600]
["Модернизация региональных систем образования",907,7,2,4362100,0,1600]
["Модернизация региональных систем образования за счет средств федерального бюджета",907,7,2,4362101,0,1600]
["Выполнение функций казенными учреждениями",907,7,2,4362101,"001",1600]
["Иные безвозмездные и безвозвратные перечисления",907,7,2,5200000,0,5000.1000000000004]
["Ежемесячное денежное вознаграждение за классное руководство",907,7,2,5200900,0,5000.1000000000004]
["Выполнение функций казенными учреждениями",907,7,2,5200900,"001",5000.1000000000004]
["Региональные целевые программы",907,7,2,5220000,0,2040.1]
["Долгосрочная целевая программа «Модернизация объектов коммунальной инфраструктуры Иркутской области на 2011-2013 годы»",907,7,2,5222000,0,1700]
["Подпрограмма «Подготовка объектов коммунальной инфраструктуры Иркутской области к отопительному сезону в 2011-2013 годах»",907,7,2,5222001,0,1700]
["Выполнение функций казенными учреждениями",907,7,2,5222001,"001",1700]
["Долгосрочная целевая программа «Энергосбережение и повышение энергетической эффективности на территории Иркутской области на 2011-2015 годы и на период до 2020 года»",907,7,2,5225400,0,340.1]
["Выполнение функций казенными учреждениями",907,7,2,5225400,"001",340.1]
["Выплата заработной платы с начислениями на нее педагогическим работникам муниципальных дошкольных образовательных учреждений и муниципальных учреждений дополнительного образования",907,7,2,5890000,0,1645.5]
["Выполнение функций казенными учреждениями",907,7,2,5890000,"001",1645.5]
["Целевые программы муниципальных образований",907,7,2,7950000,0,12779.9]
["Долгосрочная целевая программа Черемховского районного муниципального образования \"Повышение эффективности бюджетных расходов Черемховского районного муниципального образования на 2012-2013 годы\"",907,7,2,7950200,0,9283.9]
["Выполнение функций казенными учреждениями",907,7,2,7950200,"001",9283.9]
["Долгосрочная целевая программа \"Безопасность образовательных учреждений на 2010-2014 гг.\"",907,7,2,7951000,0,1128]
["Мероприятия по обеспечению пожарной безопасности",907,7,2,7951000,"450",1128]
["Долгосрочная целевая программа энергосбережения и повышения энергетической эффективности Черемховского районного муниципального образования на 2010-2015 годы",907,7,2,7951100,0,468]
["Мероприятия по повышению энергетической эффективности",907,7,2,7951100,"451",468]
["Долгосрочная целевая программа \"Ветхие школы Черемховского района\" на 2011-2013 гг.",907,7,2,7951500,0,900]
["Мероприятия в сфере образования",907,7,2,7951500,"022",900]
["Долгосрочная целевая программа \"Совершенствование организации питания в образовательных учреждениях Черемховского района на 2011-2013гг.\"",907,7,2,7951600,0,1000]
["Мероприятия в сфере образования",907,7,2,7951600,"022",1000]
["Профессиональная подготовка, переподготовка и повышение квалификации",907,7,5,0,0,100]
["Мероприятия по переподготовке и повышению квалификации",907,7,5,4340000,0,100]
["Выполнение функций казенными учреждениями",907,7,5,4340000,"001",100]
["Молодежная политика и оздоровление детей",907,7,7,0,0,2475.9]
["Мероприятия по проведению оздоровительной кампании детей",907,7,7,4320000,0,123.8]
["Оплата стоимости набора продуктов питания для детей в организованных органами местного самоуправления оздоровительных лагерях с дневным пребыванием детей за счет средств областного бюджета",907,7,7,4320300,0,123.8]
["Оплата стоимости набора продуктов питания для детей в организованных органами местного самоуправления оздоровительных лагерях с дневным пребыванием детей за счет средств местного бюджета ",907,7,7,4320302,0,123.8]
["Выполнение функций казенными учреждениями",907,7,7,4320302,"001",123.8]
["Региональные целевые программы",907,7,7,5220000,0,2352.1]
["Долгосрочная целевая программа Иркутской области \"Организация и обеспечение отдыха и оздоровления детей в Иркутской области на 2012-2014гг.\"",907,7,7,5226200,0,2352.1]
["Выполнение функций казенными учреждениями",907,7,7,5226200,"001",2352.1]
["Другие вопросы в области образования",907,7,9,0,0,8497.2999999999993]
["Руководство и управление в сфере установленных функций органов государственной власти субъектов Российской Федерации  и органов местного самоуправления",907,7,9,20000,0,2997.3]
["Центральный аппарат",907,7,9,20400,0,2997.3]
["Выполнение функций органами местного самоуправления",907,7,9,20400,"500",2997.3]
["Учебно-методические кабинеты, централизованные бухгалтерии, группы хозяйственного обслуживания, учебные фильмотеки, межшкольные учебно-производственные комбинаты, логопедические пункты",907,7,9,4520000,0,5500]
["Субсидии бюджетным учреждениям на финансовое обеспечение муниципального задания на оказание муниципальных услуг (выполнение работ)",907,7,9,4520000,"611",5500]
["Социальная политика",907,10,0,0,0,6361.8]
["Социальное обеспечение населения",907,10,3,0,0,6361.8]
["Руководство и управление в сфере установленных функций органов государственной власти субъектов Российской Федерации  и органов местного самоуправления",907,10,3,20000,0,6361.8]
["Осуществление отдельных областных государственных полномочий по предоставлению мер социальной поддержки многодетным и малоимущим семьям",907,10,3,24600,0,6361.8]
["Социальные выплаты",907,10,3,24600,"005",6361.8]
["Финансовое управление администрации ЧРМО",910,0,0,0,0,30842.7]
["ОБЩЕГОСУДАРСТВЕННЫЕ ВОПРОСЫ",910,1,0,0,0,23786.7]
["Обеспечение деятельности финансовых, налоговых и таможенных органов и органов финансового (финансово-бюджетного) надзора",910,1,6,0,0,8482.2000000000007]
["Руководство и управление в сфере установленных функций органов государственной власти субъектов Российской Федерации  и органов местного самоуправления",910,1,6,20000,0,8282.2000000000007]
["Центральный аппарат",910,1,6,20400,0,8282.2000000000007]
["Выполнение функций органами местного самоуправления",910,1,6,20400,"500",8282.2000000000007]
["Целевые программы муниципальных образований",910,1,6,7950000,0,200]
["Долгосрочная целевая программа Черемховского районного муниципального образования \"Повышение эффективности бюджетных расходов Черемховского районного муниципального образования на 2012-2013 годы\"",910,1,6,7950200,0,200]
["Выполнение функций органами местного самоуправления",910,1,6,7950200,"500",200]
["Другие общегосударственные вопросы",910,1,13,0,0,15304.5]
["Руководство и управление в сфере установленных функций органов государственной власти субъектов Российской Федерации  и органов местного самоуправления",910,1,13,20000,0,15304.5]
["Обеспечение деятельности подведомственных учреждений",910,1,13,29900,0,15304.5]
["Выполнение функций казенными учреждениями",910,1,13,29900,"001",15304.5]
["ЖИЛИЩНО-КОММУНАЛЬНОЕ ХОЗЯЙСТВО",910,5,0,0,0,70]
["Коммунальное хозяйство",910,5,2,0,0,70]
["Региональные целевые программы",910,5,2,5220000,0,70]
["Долгосрочная целевая программа «Энергосбережение и повышение энергетической эффективности на территории Иркутской области на 2011-2015 годы и на период до 2020 года»",910,5,2,5225400,0,70]
["Иные межбюджетные трансферты",910,5,2,5225400,"017",70]
["ОБРАЗОВАНИЕ",910,7,0,0,0,60]
["Профессиональная подготовка, переподготовка и повышение квалификации",910,7,5,0,0,60]
["Мероприятия по переподготовке и повышению квалификации",910,7,5,4340000,0,60]
["Выполнение функций органами местного самоуправления",910,7,5,4340000,"500",60]
["ОБСЛУЖИВАНИЕ ГОСУДАРСТВЕННОГО И МУНИЦИПАЛЬНОГО ДОЛГА",910,13,0,0,0,60]
["Обслуживание внутреннего государственного и муниципального долга",910,13,1,0,0,60]
["Процентные платежи по долговым обязательствам",910,13,1,650000,0,60]
["Процентные платежи по муниципальному долгу",910,13,1,650300,0,60]
["Прочие расходы",910,13,1,650300,"013",60]
["МЕЖБЮДЖЕТНЫЕ ТРАНСФЕРТЫ ОБЩЕГО ХАРАКТЕРА БЮДЖЕТАМ СУБЪЕКТОВ РОССИЙСКОЙ ФЕДЕРАЦИИ И МУНИЦИПАЛЬНЫХ ОБРАЗОВАНИЙ ",910,14,0,0,0,6866]
["Дотации на выравнивание бюджетной обеспеченности субъектов Российской Федерации и муниципальных образований",910,14,1,0,0,3500]
["Выравнивание бюджетной обеспечености",910,14,1,5160000,0,3500]
["Выравнивание бюджетной обеспеченности",910,14,1,5160100,0,3500]
["Выравнивание бюджетной обеспеченности поселений из районного фонда финансовой поддержки",910,14,1,5160130,0,3500]
["Фонд финансовой поддержки",910,14,1,5160130,"008",3500]
["Прочие межбюджетные трансферты общего характера бюджетам субъектов Российской Федерации и муниципальных образований ",910,14,3,0,0,3366]
["Целевые программы муниципальных образований",910,14,3,7950000,0,3366]
["Долгосрочная целевая программа Черемховского районного муниципального образования \"Повышение эффективности бюджетных расходов Черемховского районного муниципального образования на 2012-2013 годы\"",910,14,3,7950200,0,3366]
["Иные межбюджетные трансферты",910,14,3,7950200,"017",3366]
["Комитет по управлению муниципальным имуществом ЧРМО",913,0,0,0,0,20439.900000000001]
["ОБЩЕГОСУДАРСТВЕННЫЕ ВОПРОСЫ",913,1,0,0,0,11802.5]
["Другие общегосударственные вопросы",913,1,13,0,0,11802.5]
["Руководство и управление в сфере установленных функций органов государственной власти субъектов Российской Федерации  и органов местного самоуправления",913,1,13,20000,0,4007.1]
["Центральный аппарат",913,1,13,20400,0,3107.1]
["Выполнение функций органами местного самоуправления",913,1,13,20400,"500",3107.1]
["Обеспечение деятельности подведомственных учреждений",913,1,13,29900,0,900]
["Субсидии бюджетным учреждениям на финансовое обеспечение муниципального задания на оказание муниципальных услуг (выполнение работ)",913,1,13,29900,"611",900]
["Реализация государственных функций, связанных с общегосударственным управлением",913,1,13,920000,0,646.79999999999995]
["Выполнение других обязательств государства",913,1,13,920300,0,646.79999999999995]
["Выполнение функций органами местного самоуправления",913,1,13,920300,"500",646.79999999999995]
["Учреждения по обеспечению хозяйственного обслуживания",913,1,13,930000,0,6500]
["Субсидии бюджетным учреждениям на финансовое обеспечение муниципального задания на оказание муниципальных услуг (выполнение работ)",913,1,13,930000,"611",6500]
["Целевые программы муниципальных образований",913,1,13,7950000,0,648.6]
["Долгосрочная целевая программа \"Инвентаризация муниципальных объектов недвижимости Черемховского районного муниципального образования на 2012-2014 годы\"",913,1,13,7951900,0,648.6]
["Выполнение функций органами местного самоуправления",913,1,13,7951900,"500",648.6]
["НАЦИОНАЛЬНАЯ ЭКОНОМИКА",913,4,0,0,0,1820]
["Дорожное хозяйство(дорожные фонды)",913,4,9,0,0,1320]
["Целевые программы муниципальных образований",913,4,9,7950000,0,1320]
["Долгосрочная целевая программа \"Инвентаризация муниципальных объектов недвижимости Черемховского районного муниципального образования на 2012-2014 годы\"",913,4,9,7951900,0,1320]
["Выполнение функций органами местного самоуправления",913,4,9,7951900,"500",1320]
["Другие вопросы в области национальной экономики",913,4,12,0,0,500]
["Целевые программы муниципальных образований",913,4,12,7950000,0,500]
["Долгосрочная целевая программа \"Инвентаризация муниципальных объектов недвижимости Черемховского районного муниципального образования на 2012-2014 годы\"",913,4,12,7951900,0,500]
["Выполнение функций органами местного самоуправления",913,4,12,7951900,"500",500]
["ЖИЛИЩНО-КОММУНАЛЬНОЕ ХОЗЯЙСТВО",913,5,0,0,0,54]
["Жилищное хозяйство",913,5,1,0,0,54]
["Поддержка жилищного хозяйства",913,5,1,3500000,0,54]
["Мероприятия в области жилищного хозяйства",913,5,1,3500300,0,54]
["Выполнение функций органами местного самоуправления",913,5,1,3500300,"500",54]
["ОБРАЗОВАНИЕ",913,7,0,0,0,11.4]
["Профессиональная подготовка, переподготовка и повышение квалификации",913,7,5,0,0,11.4]
["Мероприятия по переподготовке и повышению квалификации",913,7,5,4340000,0,11.4]
["Выполнение функций органами местного самоуправления",913,7,5,4340000,"500",11.4]
["Социальная политика",913,10,0,0,0,4752]
["Охрана семьи и детства",913,10,4,0,0,4752]
["Исполнение судебных актов по обеспечению жилыми помещениями детей-сирот и детей, оставшихся без попечения родителей, лиц из числа детей-сирот и детей, оставшихся без попечения родителей, вынесенных в соответствии с Законом Иркутской области от 22.06.2010 № 50-ОЗ «О дополнительных гарантиях прав детей-сирот и детей, оставшихся без попечения родителей, на жилое помещение в Иркутской области» и Законом Иркутской области от 29.06.2010 № 52-ОЗ «О наделении органов местного самоуправления областными государственными полномочиями по обеспечению детей-сирот и детей, оставшихся без попечения родителей, лиц из числа детей-сирот и детей, оставшихся без попечения родителей, жилыми помещениями по договорам социального найма в Иркутской области",913,10,4,6040000,0,4752]
["Бюджетные инвестиции",913,10,4,6040000,"003",4752]
["СРЕДСТВА МАССОВОЙ ИНФОРМАЦИИ",913,12,0,0,0,2000]
["Периодическая печать и издательства",913,12,2,0,0,2000]
["Периодические издания, учрежденные органами законодательной и исполнительной власти",913,12,2,4570000,0,2000]
["Государственная поддержка в сфере культуры, кинематографии и средств массовой информации",913,12,2,4578500,0,2000]
["Субсидии юридическим лицам",913,12,2,4578500,"006",2000]
["Дума ЧРМО",916,0,0,0,0,1321.1]
["ОБЩЕГОСУДАРСТВЕННЫЕ ВОПРОСЫ",916,1,0,0,0,1321.1]
["Функционирование законодательных (представительных) органов государственной власти и представительных органов муниципальных образований",916,1,3,0,0,1321.1]
["Руководство и управление в сфере установленных функций органов государственной власти субъектов Российской Федерации  и органов местного самоуправления",916,1,3,20000,0,1321.1]
["Центральный аппарат",916,1,3,20400,0,401.1]
["Выполнение функций органами местного самоуправления",916,1,3,20400,"500",401.1]
["Председатель представительного органа муниципального образования",916,1,3,21100,0,920]
["Выполнение функций органами местного самоуправления",916,1,3,21100,"500",920]
["Администрация ЧРМО",917,0,0,0,0,43475.8]
["ОБЩЕГОСУДАРСТВЕННЫЕ ВОПРОСЫ",917,1,0,0,0,31857.4]
["Функционирование высшего должностного лица субъекта Российской Федерации и муниципального образования",917,1,2,0,0,2412]
["Руководство и управление в сфере установленных функций органов государственной власти субъектов Российской Федерации  и органов местного самоуправления",917,1,2,20000,0,2412]
["Глава муниципального образования",917,1,2,20300,0,2412]
["Выполнение функций органами местного самоуправления",917,1,2,20300,"500",2412]
["Функционирование Правительства Российской Федерации, высших исполнительных органов государственной власти субъектов Российской Федерации, местных администраций",917,1,4,0,0,26024.400000000001]
["Руководство и управление в сфере установленных функций органов государственной власти субъектов Российской Федерации  и органов местного самоуправления",917,1,4,20000,0,25963.4]
["Центральный аппарат",917,1,4,20400,0,25963.4]
["Выполнение функций органами местного самоуправления",917,1,4,20400,"500",25963.4]
["Региональные целевые программы",917,1,4,5220000,0,42.7]
["Долгосрочная целевая программа «Энергосбережение и повышение энергетической эффективности на территории Иркутской области на 2011-2015 годы и на период до 2020 года»",917,1,4,5225400,0,42.7]
["Выполнение функций органами местного самоуправления",917,1,4,5225400,"500",42.7]
["Целевые программы муниципальных образований",917,1,4,7950000,0,18.3]
["Долгосрочная целевая программа энергосбережения и повышения энергетической эффективности Черемховского районного муниципального образования на 2010-2015 годы",917,1,4,7951100,0,18.3]
["Мероприятия по повышению энергетической эффективности",917,1,4,7951100,"451",18.3]
["Обеспечение проведения выборов и референдумов",917,1,7,0,0,0]
["Проведение выборов и референдумов",917,1,7,200000,0,0]
["Проведение выборов и референдумов",917,1,7,200000,0,0]
["Проведение выборов в представительные органы муниципального образования",917,1,7,200002,0,0]
["Выполнение функций органами местного самоуправления",917,1,7,200002,"500",0]
["Резервные фонды",917,1,11,0,0,300]
["Резервные фонды",917,1,11,700000,0,300]
["Резервные фонды местных администраций",917,1,11,700500,0,300]
["Выполнение функций органами местного самоуправления",917,1,11,700500,"500",300]
["Другие общегосударственные вопросы",917,1,13,0,0,3121]
["Руководство и управление в сфере установленных функций органов государственной власти субъектов Российской Федерации  и органов местного самоуправления",917,1,13,20000,0,2785]
["Осуществление областных государственных полномочий по хранению, комплектованию, учету и использованию архивных документов, относящихся к государственной собственности Иркутской области",917,1,13,24000,0,1174]
["Выполнение функций органами местного самоуправления",917,1,13,24000,"500",1174]
["Осуществление областных государственных полномочий по определению персонального состава и обеспечению деятельности административных комиссий",917,1,13,24300,0,604.1]
["Выполнение функций органами местного самоуправления",917,1,13,24300,"500",604.1]
["Осуществление отдельных государственных полномочий в области производства и оборота этилового спирта, алкогольной и спиртосодержащей продукции",917,1,13,24400,0,402.8]
["Выполнение функций органами местного самоуправления",917,1,13,24400,"500",402.8]
["Осуществление отдельных областных государственных полномочий в области охраны труда",917,1,13,24500,0,604.1]
["Выполнение функций органами местного самоуправления",917,1,13,24500,"500",604.1]
["Реализация государственных функций, связанных с общегосударственным управлением",917,1,13,920000,0,181]
["Выполнение других обязательств государства",917,1,13,920300,0,181]
["Выполнение функций органами местного самоуправления",917,1,13,920300,"500",181]
["Целевые программы муниципальных образований",917,1,13,7950000,0,155]
["Долгосрочная целевая программа \"Улучшение условий и охраны труда в Черемховском районе на 2011-2013гг.\"",917,1,13,7951400,0,15]
["Выполнение функций органами местного самоуправления",917,1,13,7951400,"500",15]
["Комплексная программа \"Профилактика правонарушений в Черемховском районном муниципальном образовании на 2013-2016 годы\"",917,1,13,7952600,0,40]
["Выполнение функций органами местного самоуправления",917,1,13,7952600,"500",40]
["Долгосрочная целевая программа \"Поддержка молодых педагогов на территории Черемховского районного муниципального образования\" на 2012-2013 годы",917,1,13,7952700,0,100]
["Выполнение функций органами местного самоуправления",917,1,13,7952700,"500",100]
["НАЦИОНАЛЬНАЯ ЭКОНОМИКА",917,4,0,0,0,4131.5]
["Дорожное хозяйство(дорожные фонды)",917,4,9,0,0,4031.5]
["Региональные целевые программы",917,4,9,5220000,0,3829]
["Долгосрочная целевая программа \"Развитие автомобильных дорог общего пользования регионального или межмуниципального значения и местного значения в Иркутской области на 2011 - 2014 годы\"",917,4,9,5224700,0,3829]
["Выполнение функций органами местного самоуправления",917,4,9,5224700,"500",3829]
["Целевые программы муниципальных образований",917,4,9,7950000,0,202.5]
["Долгосрочная целевая программа \"Развитие автомобильных дорог Черемховского районного муниципального образования на 2013-2015 годы\"",917,4,9,7952300,0,202.5]
["Выполнение функций органами местного самоуправления",917,4,9,7952300,"500",202.5]
["Другие вопросы в области национальной экономики",917,4,12,0,0,100]
["Целевые программы муниципальных образований",917,4,12,7950000,0,100]
["Долгосрочная целевая программа \"Поддержка и развитие малого и среднего предпринимательства в Черемховском районе\" на 2013-2014 годы",917,4,12,7952200,0,100]
["Выполнение функций органами местного самоуправления",917,4,12,7952200,"500",100]
["ЖИЛИЩНО-КОММУНАЛЬНОЕ ХОЗЯЙСТВО",917,5,0,0,0,1299.8]
["Жилищное хозяйство",917,5,1,0,0,1299.8]
["Поддержка жилищного хозяйства",917,5,1,3500000,0,1299.8]
["Мероприятия в области жилищного хозяйства",917,5,1,3500300,0,1299.8]
["Выполнение функций органами местного самоуправления",917,5,1,3500300,"500",1299.8]
["ОБРАЗОВАНИЕ",917,7,0,0,0,120]
["Профессиональная подготовка, переподготовка и повышение квалификации",917,7,5,0,0,24]
["Мероприятия по переподготовке и повышению квалификации",917,7,5,4340000,0,24]
["Выполнение функций органами местного самоуправления",917,7,5,4340000,"500",24]
["Молодежная политика и оздоровление детей",917,7,7,0,0,96]
["Организационно-воспитательная работа с молодежью",917,7,7,4310000,0,46]
["Проведение мероприятий для детей и молодежи",917,7,7,4310100,0,46]
["Проведение мероприятия для детей и молодежи",917,7,7,4310100,"447",46]
["Целевые программы муниципальных образований",917,7,7,7950000,0,50]
["Долгосрочная целевая программа \"Комплексные меры профилактики злоупотребления наркотическими средствами и психотропными веществами в Черемховском районном муниципальном образовании на 2011-2013 гг.\"",917,7,7,7951300,0,10]
["Выполнение функций органами местного самоуправления",917,7,7,7951300,"500",10]
["Долгосрочная целевая программа \"Молодежная политика в Черемховском районном муниципальном образовании\" на 2013-2015 гг.",917,7,7,7952500,0,40]
["Проведение мероприятия для детей и молодежи",917,7,7,7952500,"447",40]
["ЗДРАВООХРАНЕНИЕ",917,9,0,0,0,200]
["Другие вопросы в области здравоохранения",917,9,9,0,0,200]
["Целевые программы муниципальных образований",917,9,9,7950000,0,200]
["Ведомственная целевая программа \"Обеспечение учреждений здравоохранения Черемховского районного муниципального образования квалифицированными медицинскими кадрами\" на 2013 год",917,9,9,7952800,0,200]
["Выполнение функций органами местного самоуправления",917,9,9,7952800,"500",200]
["Социальная политика",917,10,0,0,0,5684.7]
["Пенсионное обеспечение",917,10,1,0,0,2980]
["Доплаты к пенсиям, дополнительное пенсионное обеспечение ",917,10,1,4910000,0,2980]
["Доплаты к пенсиям государственных служащих субъектов Российской Федерации и муниципальных служащих ",917,10,1,4910100,0,2980]
["Социальные выплаты",917,10,1,4910100,"005",2980]
["Социальное обеспечение населения",917,10,3,0,0,1448.9]
["Реализация государственных функций в области социальной политики",917,10,3,5140000,0,854]
["Мероприятия в области социальной политики",917,10,3,5140100,0,854]
["Социальные выплаты",917,10,3,5140100,"005",854]
["Региональные целевые программы",917,10,3,5220000,0,234.9]
["Областная государственная социальная программа \"Молодым семьям - доступное жилье\" на 2005-2019 годы",917,10,3,5222200,0,234.9]
["Социальные выплаты",917,10,3,5222200,"005",234.9]
["Целевые программы муниципальных образований",917,10,3,7950000,0,360]
["Долгосрочная целевая программа \"Молодым семьям-доступное жилье\" на 2012-2019 гг.",917,10,3,7952100,0,360]
["Социальные выплаты",917,10,3,7952100,"005",360]
["Другие вопросы в области социальной политики",917,10,6,0,0,1255.8]
["Руководство и управление в сфере установленных функций органов государственной власти субъектов Российской Федерации  и органов местного самоуправления",917,10,6,20000,0,1155.8]
["Осуществление областных государственных полномочий по определению персонального состава и обеспечению деятельности районных (городских), районных в городах комиссий по делам несовершеннолетних и защите их прав",917,10,6,24100,0,1155.8]
["Выполнение функций органами местного самоуправления",917,10,6,24100,"500",1155.8]
["Целевые программы муниципальных образований",917,10,6,7950000,0,100]
["Муниципальная целевая программа \"Поддержка, проводимых мероприятий, посвященных Дням воинской славы, памятным датам России и работе с ветеранами и инвалидами в Черемховском районе на 2013-2015 гг.\"",917,10,6,7952400,0,100]
["Выполнение функций органами местного самоуправления",917,10,6,7952400,"500",100]
["ФИЗИЧЕСКАЯ КУЛЬТУРА И СПОРТ",917,11,0,0,0,182.4]
["Физическая культура",917,11,1,0,0,182.4]
["Физкультурно-оздоровительная работа и спортивные мероприятия",917,11,1,5120000,0,82.4]
["Мероприятия в области спорта, физической культуры и туризма",917,11,1,5129700,0,82.4]
["Выполнение функций органами местного самоуправления",917,11,1,5129700,"500",82.4]
["Целевые программы муниципальных образований",917,11,1,7950000,0,100]
["Долгосрочная целевая программа \"Развитие физической культуры, спорта и туризма в Черемховском районном муниципальном образовании на 2011-2013 гг.\"",917,11,1,7951200,0,100]
["Выполнение функций органами местного самоуправления",917,11,1,7951200,"500",100]
["Управление жилищно-коммунального хозяйства, строительства, транспорта, связи и экологии АЧРМО",918,0,0,0,0,18824.400000000001]
["ОБЩЕГОСУДАРСТВЕННЫЕ ВОПРОСЫ",918,1,0,0,0,748.6]
["Другие общегосударственные вопросы",918,1,13,0,0,748.6]
["Реализация государственных функций, связанных с общегосударственным управлением",918,1,13,920000,0,748.6]
["Выполнение других обязательств государства",918,1,13,920300,0,748.6]
["Выполнение функций органами местного самоуправления",918,1,13,920300,"500",748.6]
["НАЦИОНАЛЬНАЯ ЭКОНОМИКА",918,4,0,0,0,30.2]
["Другие вопросы в области национальной экономики",918,4,12,0,0,30.2]
["Мероприятия в области строительства, архитектуры и градостроительства",918,4,12,3380000,0,30.2]
["Подготовка проектов правил землепользования и застройки муниципальных образований Черемховского районного муниципального образования",918,4,12,3380200,0,30.2]
["Выполнение функций органами местного самоуправления",918,4,12,3380200,"500",30.2]
["ЖИЛИЩНО-КОММУНАЛЬНОЕ ХОЗЯЙСТВО",918,5,0,0,0,5295.9]
["Другие вопросы в области жилищно-коммунального хозяйства",918,5,5,0,0,5295.9]
["Руководство и управление в сфере установленных функций органов государственной власти субъектов Российской Федерации  и органов местного самоуправления",918,5,5,20000,0,5295.9]
["Центральный аппарат",918,5,5,20400,0,5295.9]
["Выполнение функций органами местного самоуправления",918,5,5,20400,"500",5295.9]
["Охрана окружающей среды",918,6,0,0,0,5150]
["Другие вопросы в области охраны окружающей среды",918,6,5,0,0,5150]
["Состояние окружающей среды и природопользования",918,6,5,4100000,0,150]
["Природоохранные мероприятия",918,6,5,4100100,0,150]
["Выполнение функций органами местного самоуправления",918,6,5,4100100,"500",150]
["Региональные целевые программы",918,6,5,5220000,0,5000]
["Долгосрочная целевая программа Иркутской области «Защита окружающей среды в Иркутской области на 2011-2015 годы»",918,6,5,5222500,0,5000]
["Подпрограмма «Отходы производства и потребления в Иркутской области на 2011-2015 годы»",918,6,5,5222502,0,5000]
["Выполнение функций органами местного самоуправления",918,6,5,5222502,"500",5000]
["ОБРАЗОВАНИЕ",918,7,0,0,0,10]
["Профессиональная подготовка, переподготовка и повышение квалификации",918,7,5,0,0,10]
["Мероприятия по переподготовке и повышению квалификации",918,7,5,4340000,0,10]
["Выполнение функций органами местного самоуправления",918,7,5,4340000,"500",10]
["Социальная политика",918,10,0,0,0,7589.7]
["Социальное обеспечение населения",918,10,3,0,0,7589.7]
["Руководство и управление в сфере установленных функций органов государственной власти субъектов Российской Федерации  и органов местного самоуправления",918,10,3,20000,0,7589.7]
["Осуществление областных государственных полномочий по предоставлению гражданам субсидий на оплату жилых помещений и коммунальных услуг",918,10,3,24700,0,7589.7]
["Содержание и обеспечение деятельности муниципальных служащих, осуществляющих областные государственные полномочия по предоставлению гражданам субсидий на оплату жилых помещений и коммунальных услуг",918,10,3,24701,0,827.4]
["Выполнение функций органами местного самоуправления",918,10,3,24701,"500",827.4]
["Предоставление гражданам субсидий на оплату жилых помещений и коммунальных услуг",918,10,3,24702,0,6762.3]
["Социальные выплаты",918,10,3,24702,"005",6762.3]
["Контрольно-счетная палата ЧРМО",923,0,0,0,0,2678.9]
["ОБЩЕГОСУДАРСТВЕННЫЕ ВОПРОСЫ",923,1,0,0,0,2676.9]
["Обеспечение деятельности финансовых, налоговых и таможенных органов и органов финансового (финансово-бюджетного) надзора",923,1,6,0,0,2676.9]
["Руководство и управление в сфере установленных функций органов государственной власти субъектов Российской Федерации  и органов местного самоуправления",923,1,6,20000,0,2676.9]
["Центральный аппарат",923,1,6,20400,0,1561.6]
["Выполнение функций органами местного самоуправления",923,1,6,20400,"500",1561.6]
["Руководитель контрольно-счетной палаты муниципального образования и его заместители",923,1,6,22500,0,1115.3]
["Выполнение функций органами местного самоуправления",923,1,6,22500,"500",1115.3]
["ОБРАЗОВАНИЕ",923,7,0,0,0,2]
["Профессиональная подготовка, переподготовка и повышение квалификации",923,7,5,0,0,2]
["Мероприятия по переподготовке и повышению квалификации",923,7,5,4340000,0,2]
["Выполнение функций органами местного самоуправления",923,7,5,4340000,"500",2]
["ИТОГО",{"$nulls":5},616524.80000000005]
[]
["Начальник финуправления ",{"$nulls":4},"Ю.Н. Гайдук"]

{"sheet":"прил9","index":8,"n_rows":396,"n_cols":8,"rows_kept":396,"cut":false,"hidden":false,"merged":[[395,6,395,7],[14,0,14,7],[17,0,18,0],[17,1,17,5],[17,6,17,7],[393,0,393,5]]}
{"$rows_empty":14}
["Распределение  бюджетных ассигнований по разделам, подразделам, целевым статьям и видам расходов классификации расходов бюджетов в ведомственной структуре расходов бюджета Черемховского районного муниципального образования на плановый период 2014 и 2015 годов"]
[]
[]
["Наименование показателя","Код",{"$nulls":4},"Сумма, тыс. руб."]
[null,"ГРБС","раздела","подраздела","целевой статьи","вида расходов",2014,2015]
[1,2,3,4,5,6,7,8]
["Отдел по культуре и библиотечному обслуживанию АЧРМО",904,0,0,0,0,17104.7,16855.8]
["ОБРАЗОВАНИЕ",904,7,0,0,0,3985.3,4112.7]
["Общее образование",904,7,2,0,0,3958.3,4085.7]
["Учреждения по внешкольной работе с детьми",904,7,2,4230000,0,3851.3,4011.9]
["Обеспечение деятельности подведомственных учреждений",904,7,2,4239900,0,3851.3,4011.9]
["Выполнение функций казенными учреждениями",904,7,2,4239900,"001",3851.3,4011.9]
["Целевые программы муниципальных образований",904,7,2,7950000,0,107,73.8]
["Долгосрочная целевая программа Черемховского районного муниципального образования \"Повышение эффективности бюджетных расходов Черемховского районного муниципального образования на 2012-2013 годы\"",904,7,2,7950200,0,0,0]
["Выполнение функций казенными учреждениями",904,7,2,7950200,"001",0,0]
["Долгосрочная целевая программа \"Развитие культуры в Черемховском районном муниципальном образовании на период 2012-2016 гг.\"",904,7,2,7952000,0,107,73.8]
["Мероприятия по поддержке и развитию культуры, искусства, кинематографии",904,7,2,7952000,"023",107,73.8]
["Профессиональная подготовка, переподготовка и повышение квалификации",904,7,5,0,0,27,27]
["Мероприятия по переподготовке и повышению квалификации",904,7,5,4340000,0,27,27]
["Выполнение функций казенными учреждениями",904,7,5,4340000,"001",27,27]
["КУЛЬТУРА И КИНЕМАТОГРАФИЯ",904,8,0,0,0,13119.4,12743.1]
["Культура",904,8,1,0,0,12183.5,11762]
["Учреждения культуры и мероприятия в сфере культуры и кинематографии",904,8,1,4400000,0,3856.1,4010.2]
["Комплектование книжных фондов библиотек муниципальных образований и государственных библиотек городов Москвы и Санкт-Петербурга",904,8,1,4400200,0,466.3,466.3]
["Комплектование книжных фондов библиотек муниципальных образований и государственных библиотек городов Москвы и Санкт-Петербурга за счет средств федерального бюджета",904,8,1,4400201,0,303.60000000000002,303.60000000000002]
["Выполнение функций казенными учреждениями",904,8,1,4400201,"001",303.60000000000002,303.60000000000002]
["Комплектование книжных фондов библиотек муниципальных образований и государственных библиотек городов Москвы и Санкт-Петербурга за счет областного бюджета",904,8,1,4400202,0,162.69999999999999,162.69999999999999]
["Выполнение функций казенными учреждениями",904,8,1,4400202,"001",162.69999999999999,162.69999999999999]
["Обеспечение деятельности подведомственных учреждений",904,8,1,4409900,0,3389.8,3543.9]
["Выполнение функций казенными учреждениями",904,8,1,4409900,"001",3389.8,3543.9]
["Музеи и постоянные выставки",904,8,1,4410000,0,899.1,935.8]
["Обеспечение деятельности подведомственных учреждений",904,8,1,4419900,0,899.1,935.8]
["Выполнение функций казенными учреждениями",904,8,1,4419900,"001",899.1,935.8]
["Библиотеки",904,8,1,4420000,0,5424.3,5676.8]
["Обеспечение деятельности подведомственных учреждений",904,8,1,4429900,0,5424.3,5676.8]
["Выполнение функций казенными учреждениями",904,8,1,4429900,"001",5424.3,5676.8]
["Региональные целевые программы",904,8,1,5220000,0,1000,0]
["Долгосрочная целевая программа Иркутской области «100 модельных домов культуры Приангарью» на 2011-2013 годы",904,8,1,5225500,0,1000,0]
["Выполнение функций казенными учреждениями",904,8,1,5225500,"001",1000,0]
["Целевые программы муниципальных образований",904,8,1,7950000,0,1004,1139.2]
["Долгосрочная целевая программа Черемховского районного муниципального образования \"Повышение эффективности бюджетных расходов Черемховского районного муниципального образования на 2012-2013 годы\"",904,8,1,7950200,0,0,0]
["Выполнение функций казенными учреждениями",904,8,1,7950200,"001",0,0]
["Долгосрочная целевая программа энергосбережения и повышения энергетической эффективности Черемховского районного муниципального образования на 2010-2015 годы",904,8,1,7951100,0,100,200]
["Мероприятия по повышению энергетической эффективности",904,8,1,7951100,"451",100,200]
["Долгосрочная целевая программа \"Развитие культуры в Черемховском районном муниципальном образовании на период 2012-2016 гг.\"",904,8,1,7952000,0,904,939.2]
["Мероприятия по поддержке и развитию культуры, искусства, кинематографии",904,8,1,7952000,"023",904,939.2]
["Другие вопросы в области культуры, кинематографии",904,8,4,0,0,935.9,981.1]
["Руководство и управление в сфере установленных функций органов государственной власти субъектов Российской Федерации  и органов местного самоуправления",904,8,4,20000,0,935.9,981.1]
["Центральный аппарат",904,8,4,20400,0,935.9,981.1]
["Выполнение функций органами местного самоуправления",904,8,4,20400,"500",935.9,981.1]
["Отдел образования АЧРМО",907,0,0,0,0,351260.8,348866.2]
["ОБРАЗОВАНИЕ",907,7,0,0,0,344899,342504.4]
["Дошкольное образование",907,7,1,0,0,64603.4,62906.1]
["Детские дошкольные учреждения",907,7,1,4200000,0,61308.4,61441.1]
["Обеспечение деятельности подведомственных учреждений",907,7,1,4209900,0,61308.4,61441.1]
["Выполнение функций казенными учреждениями",907,7,1,4209900,"001",61308.4,61441.1]
["Региональные целевые программы",907,7,1,5220000,0,0,0]
["Областная государственная целевая программа поддержки и развития учреждений дошкольного образования в Иркутской области на 2009-2014 годы",907,7,1,5223700,0,0,0]
["Выполнение функций казенными учреждениями",907,7,1,5223700,"001",0,0]
["Долгосрочная целевая программа «Энергосбережение и повышение энергетической эффективности на территории Иркутской области на 2011-2015 годы и на период до 2020 года»",907,7,1,5225400,0,0,0]
["Выполнение функций казенными учреждениями",907,7,1,5225400,"001",0,0]
["Выплата заработной платы с начислениями на нее педагогическим работникам муниципальных дошкольных образовательных учреждений и муниципальных учреждений дополнительного образования",907,7,1,5890000,0,1465,1465]
["Выполнение функций казенными учреждениями",907,7,1,5890000,"001",1465,1465]
["Целевые программы муниципальных образований",907,7,1,7950000,0,1830,0]
["Долгосрочная целевая программа Черемховского районного муниципального образования \"Повышение эффективности бюджетных расходов Черемховского районного муниципального образования на 2012-2013 годы\"",907,7,1,7950200,0,0,0]
["Выполнение функций казенными учреждениями",907,7,1,7950200,"001",0,0]
["Долгосрочная целевая программа \"Безопасность образовательных учреждений на 2010-2014 гг.\"",907,7,1,7951000,0,830,0]
["Мероприятия по обеспечению пожарной безопасности",907,7,1,7951000,"450",830,0]
["Долгосрочная целевая программа энергосбережения и повышения энергетической эффективности Черемховского районного муниципального образования на 2010-2015 годы",907,7,1,7951100,0,600,0]
["Мероприятия по повышению энергетической эффективности",907,7,1,7951100,"451",600,0]
["Долгосрочная целевая программа \"Развитие дошкольного образования на 2011-2014 гг.\"",907,7,1,7951700,0,0,0]
["Мероприятия в сфере образования",907,7,1,7951700,"022",0,0]
["Долгосрочная целевая программа \"Совершенствование дошкольного образования Черемховского района на 2011-2014 гг.\"",907,7,1,7951800,0,400,0]
["Мероприятия в сфере образования",907,7,1,7951800,"022",400,0]
["Общее образование",907,7,2,0,0,272963,272175.90000000002]
["Руководство и управление в сфере установленных функций органов государственной власти субъектов Российской Федерации  и органов местного самоуправления",907,7,2,20000,0,238581.5,238581.5]
["Обеспечение государственных гарантий прав граждан на получение общедоступного и бесплатного дошкольного, начального общего, основного общего, среднего (полного) общего образования, а также дополнительного образования в общеобразовательных учреждениях",907,7,2,25000,0,238581.5,238581.5]
["Выполнение функций казенными учреждениями",907,7,2,25000,"001",238581.5,238581.5]
["Школы - детские сады, школы начальные, неполные средние и средние",907,7,2,4210000,0,15782.6,15808.4]
["Обеспечение деятельности подведомственных учреждений",907,7,2,4219900,0,15782.6,15808.4]
["Выполнение функций казенными учреждениями",907,7,2,4219900,"001",15782.6,15808.4]
["Учреждения по внешкольной работе с детьми",907,7,2,4230000,0,16488.8,17245.900000000001]
["Обеспечение деятельности подведомственных учреждений",907,7,2,4239900,0,16488.8,17245.900000000001]
["Выполнение функций казенными учреждениями",907,7,2,4239900,"001",16488.8,17245.900000000001]
["Мероприятия в области образования",907,7,2,4360000,0,0,0]
["Модернизация региональных систем образования",907,7,2,4362100,0,0,0]
["Модернизация региональных систем образования за счет средств федерального бюджета",907,7,2,4362101,0,0,0]
["Выполнение функций казенными учреждениями",907,7,2,4362101,"001",0,0]
["Иные безвозмездные и безвозвратные перечисления",907,7,2,5200000,0,0,0]
["Ежемесячное денежное вознаграждение за классное руководство",907,7,2,5200900,0,0,0]
["Выполнение функций казенными учреждениями",907,7,2,5200900,"001",0,0]
["Региональные целевые программы",907,7,2,5220000,0,0,0]
["Долгосрочная целевая программа «Модернизация объектов коммунальной инфраструктуры Иркутской области на 2011-2013 годы»",907,7,2,5222000,0,0,0]
["Подпрограмма «Подготовка объектов коммунальной инфраструктуры Иркутской области к отопительному сезону в 2011-2013 годах»",907,7,2,5222001,0,0,0]
["Выполнение функций казенными учреждениями",907,7,2,5222001,"001",0,0]
["Долгосрочная целевая программа «Энергосбережение и повышение энергетической эффективности на территории Иркутской области на 2011-2015 годы и на период до 2020 года»",907,7,2,5225400,0,0,0]
["Выполнение функций казенными учреждениями",907,7,2,5225400,"001",0,0]
["Выплата заработной платы с начислениями на нее педагогическим работникам муниципальных дошкольных образовательных учреждений и муниципальных учреждений дополнительного образования",907,7,2,5890000,0,540.1,540.1]
["Выполнение функций казенными учреждениями",907,7,2,5890000,"001",540.1,540.1]
["Целевые программы муниципальных образований",907,7,2,7950000,0,1570,0]
["Долгосрочная целевая программа Черемховского районного муниципального образования \"Повышение эффективности бюджетных расходов Черемховского районного муниципального образования на 2012-2013 годы\"",907,7,2,7950200,0,0,0]
["Выполнение функций казенными учреждениями",907,7,2,7950200,"001",0,0]
["Долгосрочная целевая программа \"Безопасность образовательных учреждений на 2010-2014 гг.\"",907,7,2,7951000,0,970,0]
["Мероприятия по обеспечению пожарной безопасности",907,7,2,7951000,"450",970,0]
["Долгосрочная целевая программа энергосбережения и повышения энергетической эффективности Черемховского районного муниципального образования на 2010-2015 годы",907,7,2,7951100,0,0,0]
["Мероприятия по повышению энергетической эффективности",907,7,2,7951100,"451",0,0]
["Долгосрочная целевая программа \"Ветхие школы Черемховского района\" на 2011-2013 гг.",907,7,2,7951500,0,0,0]
["Мероприятия в сфере образования",907,7,2,7951500,"022",0,0]
["Долгосрочная целевая программа \"Совершенствование организации питания в образовательных учреждениях Черемховского района на 2011-2013гг.\"",907,7,2,7951600,0,600,0]
["Мероприятия в сфере образования",907,7,2,7951600,"022",600,0]
["Профессиональная подготовка, переподготовка и повышение квалификации",907,7,5,0,0,100,100]
["Мероприятия по переподготовке и повышению квалификации",907,7,5,4340000,0,100,100]
["Выполнение функций казенными учреждениями",907,7,5,4340000,"001",100,100]
["Молодежная политика и оздоровление детей",907,7,7,0,0,126,126]
["Мероприятия по проведению оздоровительной кампании детей",907,7,7,4320000,0,126,126]
["Оплата стоимости набора продуктов питания для детей в организованных органами местного самоуправления оздоровительных лагерях с дневным пребыванием детей за счет средств областного бюджета",907,7,7,4320300,0,126,126]
["Оплата стоимости набора продуктов питания для детей в организованных органами местного самоуправления оздоровительных лагерях с дневным пребыванием детей за счет средств местного бюджета ",907,7,7,4320302,0,126,126]
["Выполнение функций казенными учреждениями",907,7,7,4320302,"001",126,126]
["Региональные целевые программы",907,7,7,5220000,0,0,0]
["Долгосрочная целевая программа Иркутской области \"Организация и обеспечение отдыха и оздоровления детей в Иркутской области на 2012-2014гг.\"",907,7,7,5226200,0,0,0]
["Выполнение функций казенными учреждениями",907,7,7,5226200,"001",0,0]
["Другие вопросы в области образования",907,7,9,0,0,7106.6,7196.4]
["Руководство и управление в сфере установленных функций органов государственной власти субъектов Российской Федерации  и органов местного самоуправления",907,7,9,20000,0,2106.6,2196.4]
["Центральный аппарат",907,7,9,20400,0,2106.6,2196.4]
["Выполнение функций органами местного самоуправления",907,7,9,20400,"500",2106.6,2196.4]
["Учебно-методические кабинеты, централизованные бухгалтерии, группы хозяйственного обслуживания, учебные фильмотеки, межшкольные учебно-производственные комбинаты, логопедические пункты",907,7,9,4520000,0,5000,5000]
["Субсидии бюджетным учреждениям на финансовое обеспечение муниципального задания на оказание муниципальных услуг (выполнение работ)",907,7,9,4520000,"611",5000,5000]
["Социальная политика",907,10,0,0,0,6361.8,6361.8]
["Социальное обеспечение населения",907,10,3,0,0,6361.8,6361.8]
["Руководство и управление в сфере установленных функций органов государственной власти субъектов Российской Федерации  и органов местного самоуправления",907,10,3,20000,0,6361.8,6361.8]
["Осуществление отдельных областных государственных полномочий по предоставлению мер социальной поддержки многодетным и малоимущим семьям",907,10,3,24600,0,6361.8,6361.8]
["Социальные выплаты",907,10,3,24600,"005",6361.8,6361.8]
["Финансовое управление администрации ЧРМО",910,0,0,0,0,20193.3,21036.799999999999]
["ОБЩЕГОСУДАРСТВЕННЫЕ ВОПРОСЫ",910,1,0,0,0,16732.099999999999,17473.3]
["Обеспечение деятельности финансовых, налоговых и таможенных органов и органов финансового (финансово-бюджетного) надзора",910,1,6,0,0,5642.7,5882.2]
["Руководство и управление в сфере установленных функций органов государственной власти субъектов Российской Федерации  и органов местного самоуправления",910,1,6,20000,0,5642.7,5882.2]
["Центральный аппарат",910,1,6,20400,0,5642.7,5882.2]
["Выполнение функций органами местного самоуправления",910,1,6,20400,"500",5642.7,5882.2]
["Целевые программы муниципальных образований",910,1,6,7950000,0,0,0]
["Долгосрочная целевая программа Черемховского районного муниципального образования \"Повышение эффективности бюджетных расходов Черемховского районного муниципального образования на 2012-2013 годы\"",910,1,6,7950200,0,0,0]
["Выполнение функций органами местного самоуправления",910,1,6,7950200,"500",0,0]
["Другие общегосударственные вопросы",910,1,13,0,0,11089.4,11591.1]
["Руководство и управление в сфере установленных функций органов государственной власти субъектов Российской Федерации  и органов местного самоуправления",910,1,13,20000,0,11089.4,11591.1]
["Обеспечение деятельности подведомственных учреждений",910,1,13,29900,0,11089.4,11591.1]
["Выполнение функций казенными учреждениями",910,1,13,29900,"001",11089.4,11591.1]
["ЖИЛИЩНО-КОММУНАЛЬНОЕ ХОЗЯЙСТВО",910,5,0,0,0,0,0]
["Коммунальное хозяйство",910,5,2,0,0,0,0]
["Региональные целевые программы",910,5,2,5220000,0,0,0]
["Долгосрочная целевая программа «Энергосбережение и повышение энергетической эффективности на территории Иркутской области на 2011-2015 годы и на период до 2020 года»",910,5,2,5225400,0,0,0]
["Иные межбюджетные трансферты",910,5,2,5225400,"017",0,0]
["ОБРАЗОВАНИЕ",910,7,0,0,0,0,0]
["Профессиональная подготовка, переподготовка и повышение квалификации",910,7,5,0,0,0,0]
["Мероприятия по переподготовке и повышению квалификации",910,7,5,4340000,0,0,0]
["Выполнение функций органами местного самоуправления",910,7,5,4340000,"500",0,0]
["ОБСЛУЖИВАНИЕ ГОСУДАРСТВЕННОГО И МУНИЦИПАЛЬНОГО ДОЛГА",910,13,0,0,0,61.2,63.5]
["Обслуживание внутреннего государственного и муниципального долга",910,13,1,0,0,61.2,63.5]
["Процентные платежи по долговым обязательствам",910,13,1,650000,0,61.2,63.5]
["Процентные платежи по муниципальному долгу",910,13,1,650300,0,61.2,63.5]
["Прочие расходы",910,13,1,650300,"013",61.2,63.5]
["МЕЖБЮДЖЕТНЫЕ ТРАНСФЕРТЫ ОБЩЕГО ХАРАКТЕРА БЮДЖЕТАМ СУБЪЕКТОВ РОССИЙСКОЙ ФЕДЕРАЦИИ И МУНИЦИПАЛЬНЫХ ОБРАЗОВАНИЙ ",910,14,0,0,0,3400,3500]
["Дотации на выравнивание бюджетной обеспеченности субъектов Российской Федерации и муниципальных образований",910,14,1,0,0,3400,3500]
["Выравнивание бюджетной обеспечености",910,14,1,5160000,0,3400,3500]
["Выравнивание бюджетной обеспеченности",910,14,1,5160100,0,3400,3500]
["Выравнивание бюджетной обеспеченности поселений из районного фонда финансовой поддержки",910,14,1,5160130,0,3400,3500]
["Фонд финансовой поддержки",910,14,1,5160130,"008",3400,3500]
["Прочие межбюджетные трансферты общего характера бюджетам субъектов Российской Федерации и муниципальных образований ",910,14,3,0,0,0,0]
["Целевые программы муниципальных образований",910,14,3,7950000,0,0,0]
["Долгосрочная целевая программа Черемховского районного муниципального образования \"Повышение эффективности бюджетных расходов Черемховского районного муниципального образования на 2012-2013 годы\"",910,14,3,7950200,0,0,0]
["Иные межбюджетные трансферты",910,14,3,7950200,"017",0,0]
["Комитет по управлению муниципальным имуществом ЧРМО",913,0,0,0,0,12669.7,11759]
["ОБЩЕГОСУДАРСТВЕННЫЕ ВОПРОСЫ",913,1,0,0,0,10169.700000000001,9759]
["Другие общегосударственные вопросы",913,1,13,0,0,10169.700000000001,9759]
["Руководство и управление в сфере установленных функций органов государственной власти субъектов Российской Федерации  и органов местного самоуправления",913,1,13,20000,0,3162.4,3251.7]
["Центральный аппарат",913,1,13,20400,0,2262.4,2351.6999999999998]
["Выполнение функций органами местного самоуправления",913,1,13,20400,"500",2262.4,2351.6999999999998]
["Обеспечение деятельности подведомственных учреждений",913,1,13,29900,0,900,900]
["Субсидии бюджетным учреждениям на финансовое обеспечение муниципального задания на оказание муниципальных услуг (выполнение работ)",913,1,13,29900,"611",900,900]
["Реализация государственных функций, связанных с общегосударственным управлением",913,1,13,920000,0,7.3,7.3]
["Выполнение других обязательств государства",913,1,13,920300,0,7.3,7.3]
["Выполнение функций органами местного самоуправления",913,1,13,920300,"500",7.3,7.3]
["Учреждения по обеспечению хозяйственного обслуживания",913,1,13,930000,0,6500,6500]
["Субсидии бюджетным учреждениям на финансовое обеспечение муниципального задания на оказание муниципальных услуг (выполнение работ)",913,1,13,930000,"611",6500,6500]
["Целевые программы муниципальных образований",913,1,13,7950000,0,500,0]
["Долгосрочная целевая программа \"Инвентаризация муниципальных объектов недвижимости Черемховского районного муниципального образования на 2012-2014 годы\"",913,1,13,7951900,0,500,0]
["Выполнение функций органами местного самоуправления",913,1,13,7951900,"500",500,0]
["НАЦИОНАЛЬНАЯ ЭКОНОМИКА",913,4,0,0,0,500,0]
["Дорожное хозяйство(дорожные фонды)",913,4,9,0,0,0,0]
["Целевые программы муниципальных образований",913,4,9,7950000,0,0,0]
["Долгосрочная целевая программа \"Инвентаризация муниципальных объектов недвижимости Черемховского районного муниципального образования на 2012-2014 годы\"",913,4,9,7951900,0,0,0]
["Выполнение функций органами местного самоуправления",913,4,9,7951900,"500",0,0]
["Другие вопросы в области национальной экономики",913,4,12,0,0,500,0]
["Целевые программы муниципальных образований",913,4,12,7950000,0,500,0]
["Долгосрочная целевая программа \"Инвентаризация муниципальных объектов недвижимости Черемховского районного муниципального образования на 2012-2014 годы\"",913,4,12,7951900,0,500,0]
["Выполнение функций органами местного самоуправления",913,4,12,7951900,"500",500,0]
["ЖИЛИЩНО-КОММУНАЛЬНОЕ ХОЗЯЙСТВО",913,5,0,0,0,0,0]
["Жилищное хозяйство",913,5,1,0,0,0,0]
["Поддержка жилищного хозяйства",913,5,1,3500000,0,0,0]
["Мероприятия в области жилищного хозяйства",913,5,1,3500300,0,0,0]
["Выполнение функций органами местного самоуправления",913,5,1,3500300,"500",0,0]
["ОБРАЗОВАНИЕ",913,7,0,0,0,0,0]
["Профессиональная подготовка, переподготовка и повышение квалификации",913,7,5,0,0,0,0]
["Мероприятия по переподготовке и повышению квалификации",913,7,5,4340000,0,0,0]
["Выполнение функций органами местного самоуправления",913,7,5,4340000,"500",0,0]
["Социальная политика",913,10,0,0,0,0,0]
["Охрана семьи и детства",913,10,4,0,0,0,0]
["Исполнение судебных актов по обеспечению жилыми помещениями детей-сирот и детей, оставшихся без попечения родителей, лиц из числа детей-сирот и детей, оставшихся без попечения родителей, вынесенных в соответствии с Законом Иркутской области от 22.06.2010 № 50-ОЗ «О дополнительных гарантиях прав детей-сирот и детей, оставшихся без попечения родителей, на жилое помещение в Иркутской области» и Законом Иркутской области от 29.06.2010 № 52-ОЗ «О наделении органов местного самоуправления областными государственными полномочиями по обеспечению детей-сирот и детей, оставшихся без попечения родителей, лиц из числа детей-сирот и детей, оставшихся без попечения родителей, жилыми помещениями по договорам социального найма в Иркутской области",913,10,4,6040000,0,0,0]
["Бюджетные инвестиции",913,10,4,6040000,"003",0,0]
["СРЕДСТВА МАССОВОЙ ИНФОРМАЦИИ",913,12,0,0,0,2000,2000]
["Периодическая печать и издательства",913,12,2,0,0,2000,2000]
["Периодические издания, учрежденные органами законодательной и исполнительной власти",913,12,2,4570000,0,2000,2000]
["Государственная поддержка в сфере культуры, кинематографии и средств массовой информации",913,12,2,4578500,0,2000,2000]
["Субсидии юридическим лицам",913,12,2,4578500,"006",2000,2000]
["Дума ЧРМО",916,0,0,0,0,940.5,986.3]
["ОБЩЕГОСУДАРСТВЕННЫЕ ВОПРОСЫ",916,1,0,0,0,940.5,986.3]
["Функционирование законодательных (представительных) органов государственной власти и представительных органов муниципальных образований",916,1,3,0,0,940.5,986.3]
["Руководство и управление в сфере установленных функций органов государственной власти субъектов Российской Федерации  и органов местного самоуправления",916,1,3,20000,0,940.5,986.3]
["Центральный аппарат",916,1,3,20400,0,289,302]
["Выполнение функций органами местного самоуправления",916,1,3,20400,"500",289,302]
["Председатель представительного органа муниципального образования",916,1,3,21100,0,651.5,684.3]
["Выполнение функций органами местного самоуправления",916,1,3,21100,"500",651.5,684.3]
["Администрация ЧРМО",917,0,0,0,0,36164.1,33915]
["ОБЩЕГОСУДАРСТВЕННЫЕ ВОПРОСЫ",917,1,0,0,0,27482,25975.9]
["Функционирование высшего должностного лица субъекта Российской Федерации и муниципального образования",917,1,2,0,0,1403,1472.1]
["Руководство и управление в сфере установленных функций органов государственной власти субъектов Российской Федерации  и органов местного самоуправления",917,1,2,20000,0,1403,1472.1]
["Глава муниципального образования",917,1,2,20300,0,1403,1472.1]
["Выполнение функций органами местного самоуправления",917,1,2,20300,"500",1403,1472.1]
["Функционирование Правительства Российской Федерации, высших исполнительных органов государственной власти субъектов Российской Федерации, местных администраций",917,1,4,0,0,20490.5,21389.4]
["Руководство и управление в сфере установленных функций органов государственной власти субъектов Российской Федерации  и органов местного самоуправления",917,1,4,20000,0,20490.5,21389.4]
["Центральный аппарат",917,1,4,20400,0,20490.5,21389.4]
["Выполнение функций органами местного самоуправления",917,1,4,20400,"500",20490.5,21389.4]
["Региональные целевые программы",917,1,4,5220000,0,0,0]
["Долгосрочная целевая программа «Энергосбережение и повышение энергетической эффективности на территории Иркутской области на 2011-2015 годы и на период до 2020 года»",917,1,4,5225400,0,0,0]
["Выполнение функций органами местного самоуправления",917,1,4,5225400,"500",0,0]
["Целевые программы муниципальных образований",917,1,4,7950000,0,0,0]
["Долгосрочная целевая программа энергосбережения и повышения энергетической эффективности Черемховского районного муниципального образования на 2010-2015 годы",917,1,4,7951100,0,0,0]
["Мероприятия по повышению энергетической эффективности",917,1,4,7951100,"451",0,0]
["Обеспечение проведения выборов и референдумов",917,1,7,0,0,2500,0]
["Проведение выборов и референдумов",917,1,7,200000,0,2500,0]
["Проведение выборов и референдумов",917,1,7,200000,0,2500,0]
["Проведение выборов в представительные органы муниципального образования",917,1,7,200002,0,2500,0]
["Выполнение функций органами местного самоуправления",917,1,7,200002,"500",2500,0]
["Резервные фонды",917,1,11,0,0,300,300]
["Резервные фонды",917,1,11,700000,0,300,300]
["Резервные фонды местных администраций",917,1,11,700500,0,300,300]
["Выполнение функций органами местного самоуправления",917,1,11,700500,"500",300,300]
["Другие общегосударственные вопросы",917,1,13,0,0,2788.5,2814.4]
["Руководство и управление в сфере установленных функций органов государственной власти субъектов Российской Федерации  и органов местного самоуправления",917,1,13,20000,0,2617.5,2643.4]
["Осуществление областных государственных полномочий по хранению, комплектованию, учету и использованию архивных документов, относящихся к государственной собственности Иркутской области",917,1,13,24000,0,1086,1086]
["Выполнение функций органами местного самоуправления",917,1,13,24000,"500",1086,1086]
["Осуществление областных государственных полномочий по определению персонального состава и обеспечению деятельности административных комиссий",917,1,13,24300,0,563.6,563.6]
["Выполнение функций органами местного самоуправления",917,1,13,24300,"500",563.6,563.6]
["Осуществление отдельных государственных полномочий в области производства и оборота этилового спирта, алкогольной и спиртосодержащей продукции",917,1,13,24400,0,404.3,430.2]
["Выполнение функций органами местного самоуправления",917,1,13,24400,"500",404.3,430.2]
["Осуществление отдельных областных государственных полномочий в области охраны труда",917,1,13,24500,0,563.6,563.6]
["Выполнение функций органами местного самоуправления",917,1,13,24500,"500",563.6,563.6]
["Реализация государственных функций, связанных с общегосударственным управлением",917,1,13,920000,0,131,131]
["Выполнение других обязательств государства",917,1,13,920300,0,131,131]
["Выполнение функций органами местного самоуправления",917,1,13,920300,"500",131,131]
["Целевые программы муниципальных образований",917,1,13,7950000,0,40,40]
["Долгосрочная целевая программа \"Улучшение условий и охраны труда в Черемховском районе на 2011-2013гг.\"",917,1,13,7951400,0,0,0]
["Выполнение функций органами местного самоуправления",917,1,13,7951400,"500",0,0]
["Комплексная программа \"Профилактика правонарушений в Черемховском районном муниципальном образовании на 2013-2016 годы\"",917,1,13,7952600,0,40,40]
["Выполнение функций органами местного самоуправления",917,1,13,7952600,"500",40,40]
["Долгосрочная целевая программа \"Поддержка молодых педагогов на территории Черемховского районного муниципального образования\" на 2012-2013 годы",917,1,13,7952700,0,0,0]
["Выполнение функций органами местного самоуправления",917,1,13,7952700,"500",0,0]
["НАЦИОНАЛЬНАЯ ЭКОНОМИКА",917,4,0,0,0,3198.1,2406.5]
["Дорожное хозяйство(дорожные фонды)",917,4,9,0,0,3048.1,2406.5]
["Региональные целевые программы",917,4,9,5220000,0,0,0]
["Долгосрочная целевая программа \"Развитие автомобильных дорог общего пользования регионального или межмуниципального значения и местного значения в Иркутской области на 2011 - 2014 годы\"",917,4,9,5224700,0,0,0]
["Выполнение функций органами местного самоуправления",917,4,9,5224700,"500",0,0]
["Целевые программы муниципальных образований",917,4,9,7950000,0,3048.1,2406.5]
["Долгосрочная целевая программа \"Развитие автомобильных дорог Черемховского районного муниципального образования на 2013-2015 годы\"",917,4,9,7952300,0,3048.1,2406.5]
["Выполнение функций органами местного самоуправления",917,4,9,7952300,"500",3048.1,2406.5]
["Другие вопросы в области национальной экономики",917,4,12,0,0,150,0]
["Целевые программы муниципальных образований",917,4,12,7950000,0,150,0]
["Долгосрочная целевая программа \"Поддержка и развитие малого и среднего предпринимательства в Черемховском районе\" на 2013-2014 годы",917,4,12,7952200,0,150,0]
["Выполнение функций органами местного самоуправления",917,4,12,7952200,"500",150,0]
["ЖИЛИЩНО-КОММУНАЛЬНОЕ ХОЗЯЙСТВО",917,5,0,0,0,0,0]
["Жилищное хозяйство",917,5,1,0,0,0,0]
["Поддержка жилищного хозяйства",917,5,1,3500000,0,0,0]
["Мероприятия в области жилищного хозяйства",917,5,1,3500300,0,0,0]
["Выполнение функций органами местного самоуправления",917,5,1,3500300,"500",0,0]
["ОБРАЗОВАНИЕ",917,7,0,0,0,86,86]
["Профессиональная подготовка, переподготовка и повышение квалификации",917,7,5,0,0,0,0]
["Мероприятия по переподготовке и повышению квалификации",917,7,5,4340000,0,0,0]
["Выполнение функций органами местного самоуправления",917,7,5,4340000,"500",0,0]
["Молодежная политика и оздоровление детей",917,7,7,0,0,86,86]
["Организационно-воспитательная работа с молодежью",917,7,7,4310000,0,46,46]
["Проведение мероприятий для детей и молодежи",917,7,7,4310100,0,46,46]
["Проведение мероприятия для детей и молодежи",917,7,7,4310100,"447",46,46]
["Целевые программы муниципальных образований",917,7,7,7950000,0,40,40]
["Долгосрочная целевая программа \"Комплексные меры профилактики злоупотребления наркотическими средствами и психотропными веществами в Черемховском районном муниципальном образовании на 2011-2013 гг.\"",917,7,7,7951300,0,0,0]
["Выполнение функций органами местного самоуправления",917,7,7,7951300,"500",0,0]
["Долгосрочная целевая программа \"Молодежная политика в Черемховском районном муниципальном образовании\" на 2013-2015 гг.",917,7,7,7952500,0,40,40]
["Проведение мероприятия для детей и молодежи",917,7,7,7952500,"447",40,40]
["ЗДРАВООХРАНЕНИЕ",917,9,0,0,0,0,0]
["Другие вопросы в области здравоохранения",917,9,9,0,0,0,0]
["Целевые программы муниципальных образований",917,9,9,7950000,0,0,0]
["Ведомственная целевая программа \"Обеспечение учреждений здравоохранения Черемховского районного муниципального образования квалифицированными медицинскими кадрами\" на 2013 год",917,9,9,7952800,0,0,0]
["Выполнение функций органами местного самоуправления",917,9,9,7952800,"500",0,0]
["Социальная политика",917,10,0,0,0,5315.6,5364.2]
["Пенсионное обеспечение",917,10,1,0,0,2980,2980]
["Доплаты к пенсиям, дополнительное пенсионное обеспечение ",917,10,1,4910000,0,2980,2980]
["Доплаты к пенсиям государственных служащих субъектов Российской Федерации и муниципальных служащих ",917,10,1,4910100,0,2980,2980]
["Социальные выплаты",917,10,1,4910100,"005",2980,2980]
["Социальное обеспечение населения",917,10,3,0,0,1157.5,1206.0999999999999]
["Реализация государственных функций в области социальной политики",917,10,3,5140000,0,882.1,910]
["Мероприятия в области социальной политики",917,10,3,5140100,0,882.1,910]
["Социальные выплаты",917,10,3,5140100,"005",882.1,910]
["Региональные целевые программы",917,10,3,5220000,0,0,0]
["Областная государственная социальная программа \"Молодым семьям - доступное жилье\" на 2005-2019 годы",917,10,3,5222200,0,0,0]
["Социальные выплаты",917,10,3,5222200,"005",0,0]
["Целевые программы муниципальных образований",917,10,3,7950000,0,275.39999999999998,296.10000000000002]
["Долгосрочная целевая программа \"Молодым семьям-доступное жилье\" на 2012-2019 гг.",917,10,3,7952100,0,275.39999999999998,296.10000000000002]
["Социальные выплаты",917,10,3,7952100,"005",275.39999999999998,296.10000000000002]
["Другие вопросы в области социальной политики",917,10,6,0,0,1178.0999999999999,1178.0999999999999]
["Руководство и управление в сфере установленных функций органов государственной власти субъектов Российской Федерации  и органов местного самоуправления",917,10,6,20000,0,1078.0999999999999,1078.0999999999999]
["Осуществление областных государственных полномочий по определению персонального состава и обеспечению деятельности районных (городских), районных в городах комиссий по делам несовершеннолетних и защите их прав",917,10,6,24100,0,1078.0999999999999,1078.0999999999999]
["Выполнение функций органами местного самоуправления",917,10,6,24100,"500",1078.0999999999999,1078.0999999999999]
["Целевые программы муниципальных образований",917,10,6,7950000,0,100,100]
["Муниципальная целевая программа \"Поддержка, проводимых мероприятий, посвященных Дням воинской славы, памятным датам России и работе с ветеранами и инвалидами в черемховском районе на 2013-2015 гг.\"",917,10,6,7952400,0,100,100]
["Выполнение функций органами местного самоуправления",917,10,6,7952400,"500",100,100]
["ФИЗИЧЕСКАЯ КУЛЬТУРА И СПОРТ",917,11,0,0,0,82.4,82.4]
["Физическая культура",917,11,1,0,0,82.4,82.4]
["Физкультурно-оздоровительная работа и спортивные мероприятия",917,11,1,5120000,0,82.4,82.4]
["Мероприятия в области спорта, физической культуры и туризма",917,11,1,5129700,0,82.4,82.4]
["Выполнение функций органами местного самоуправления",917,11,1,5129700,"500",82.4,82.4]
["Целевые программы муниципальных образований",917,11,1,7950000,0,0,0]
["Долгосрочная целевая программа \"Развитие физической культуры, спорта и туризма в Черемховском районном муниципальном образовании на 2011-2013 гг.\"",917,11,1,7951200,0,0,0]
["Выполнение функций органами местного самоуправления",917,11,1,7951200,"500",0,0]
["Управление жилищно-коммунального хозяйства, строительства, транспорта, связи и экологии АЧРМО",918,0,0,0,0,12176.3,12731.6]
["ОБЩЕГОСУДАРСТВЕННЫЕ ВОПРОСЫ",918,1,0,0,0,32.5,32.5]
["Другие общегосударственные вопросы",918,1,13,0,0,32.5,32.5]
["Реализация государственных функций, связанных с общегосударственным управлением",918,1,13,920000,0,32.5,32.5]
["Выполнение других обязательств государства",918,1,13,920300,0,32.5,32.5]
["Выполнение функций органами местного самоуправления",918,1,13,920300,"500",32.5,32.5]
["НАЦИОНАЛЬНАЯ ЭКОНОМИКА",918,4,0,0,0,0,0]
["Другие вопросы в области национальной экономики",918,4,12,0,0,0,0]
["Мероприятия в области строительства, архитектуры и градостроительства",918,4,12,3380000,0,0,0]
["Подготовка проектов правил землепользования и застройки муниципальных образований Черемховского районного муниципального образования",918,4,12,3380200,0,0,0]
["Выполнение функций органами местного самоуправления",918,4,12,3380200,"500",0,0]
["ЖИЛИЩНО-КОММУНАЛЬНОЕ ХОЗЯЙСТВО",918,5,0,0,0,4258,4464.7]
["Другие вопросы в области жилищно-коммунального хозяйства",918,5,5,0,0,4258,4464.7]
["Руководство и управление в сфере установленных функций органов государственной власти субъектов Российской Федерации  и органов местного самоуправления",918,5,5,20000,0,4258,4464.7]
["Центральный аппарат",918,5,5,20400,0,4258,4464.7]
["Выполнение функций органами местного самоуправления",918,5,5,20400,"500",4258,4464.7]
["ОХРАНА ОКРУЖАЮЩЕЙ СРЕДЫ",918,6,0,0,0,0,0]
["Другие вопросы в области охраны окружающей среды",918,6,5,0,0,0,0]
["Состояние окружающей среды и природопользования",918,6,5,4100000,0,0,0]
["Природоохранные мероприятия",918,6,5,4100100,0,0,0]
["Выполнение функций органами местного самоуправления",918,6,5,4100100,"500",0,0]
["Региональные целевые программы",918,6,5,5220000,0,0,0]
["Долгосрочная целевая программа Иркутской области «Защита окружающей среды в Иркутской области на 2011-2015 годы»",918,6,5,5222500,0,0,0]
["Подпрограмма «Отходы производства и потребления в Иркутской области на 2011-2015 годы»",918,6,5,5222502,0,0,0]
["Выполнение функций органами местного самоуправления",918,6,5,5222502,"500",0,0]
["ОБРАЗОВАНИЕ",918,7,0,0,0,0,0]
["Профессиональная подготовка, переподготовка и повышение квалификации",918,7,5,0,0,0,0]
["Мероприятия по переподготовке и повышению квалификации",918,7,5,4340000,0,0,0]
["Выполнение функций органами местного самоуправления",918,7,5,4340000,"500",0,0]
["Социальная политика",918,10,0,0,0,7885.8,8234.4]
["Социальное обеспечение населения",918,10,3,0,0,7885.8,8234.4]
["Руководство и управление в сфере установленных функций органов государственной власти субъектов Российской Федерации  и органов местного самоуправления",918,10,3,20000,0,7885.8,8234.4]
["Осуществление областных государственных полномочий по предоставлению гражданам субсидий на оплату жилых помещений и коммунальных услуг",918,10,3,24700,0,7885.8,8234.4]
["Содержание и обеспечение деятельности муниципальных служащих, осуществляющих областные государственные полномочия по предоставлению гражданам субсидий на оплату жилых помещений и коммунальных услуг",918,10,3,24701,0,771.9,771.9]
["Выполнение функций органами местного самоуправления",918,10,3,24701,"500",771.9,771.9]
["Предоставление гражданам субсидий на оплату жилых помещений и коммунальных услуг",918,10,3,24702,0,7113.9,7462.5]
["Социальные выплаты",918,10,3,24702,"005",7113.9,7462.5]
["Контрольно-счетная палата ЧРМО",923,0,0,0,0,1816.6,1907.3]
["ОБЩЕГОСУДАРСТВЕННЫЕ ВОПРОСЫ",923,1,0,0,0,1816.6,1907.3]
["Обеспечение деятельности финансовых, налоговых и таможенных органов и органов финансового (финансово-бюджетного) надзора",923,1,6,0,0,1816.6,1907.3]
["Руководство и управление в сфере установленных функций органов государственной власти субъектов Российской Федерации  и органов местного самоуправления",923,1,6,20000,0,1816.6,1907.3]
["Центральный аппарат",923,1,6,20400,0,1031.4000000000001,1082.0999999999999]
["Выполнение функций органами местного самоуправления",923,1,6,20400,"500",1031.4000000000001,1082.0999999999999]
["Руководитель контрольно-счетной палаты муниципального образования и его заместители",923,1,6,22500,0,785.2,825.2]
["Выполнение функций органами местного самоуправления",923,1,6,22500,"500",785.2,825.2]
["ОБРАЗОВАНИЕ",923,7,0,0,0,0,0]
["Профессиональная подготовка, переподготовка и повышение квалификации",923,7,5,0,0,0,0]
["Мероприятия по переподготовке и повышению квалификации",923,7,5,4340000,0,0,0]
["Выполнение функций органами местного самоуправления",923,7,5,4340000,"500",0,0]
["ИТОГО",{"$nulls":5},452326,448058]
[]
["Начальник финуправления",{"$nulls":5},"Ю.Н. Гайдук"]

{"sheet":"прил10","index":9,"n_rows":66,"n_cols":10,"rows_kept":66,"cut":false,"hidden":false,"merged":[[14,0,14,7],[15,6,15,7],[16,0,17,0],[16,1,17,1],[16,2,17,2],[16,3,16,6],[16,7,17,7],[62,0,62,1],[62,2,62,6],[20,2,24,2],[26,2,36,2],[37,0,39,0],[37,1,39,1],[40,0,61,0],[40,1,61,1]]}
{"$rows_empty":14}
["Распределение бюджетных ассигнований на реализацию долгосрочных районных целевых программ Черемховского районного муниципального образования на 2013 год"]
[{"$nulls":6},"(тыс. рублей)"]
["№ п/п","Наименование программы","Исполнители","Бюджетная классификация",null,null,null,"сумма "]
[null,null,null,"ГРБС","РзПр","ЦСР","ВР"]
[1,2,3,4,5,6,7,8]
[1,"Развитие культуры в Черемховском районном муниципальном образовании на период 2012-2016 гг.","Отдел по культуре и библиотечному обслуживанию АЧРМО",904,"0801, 0702",7952000,"023",1023.8]
[2,"Ветхие школы Черемховского района на 2011-2013 гг.","Отдел образования АЧРМО",907,"0702",7951500,"022",900]
[3,"Совершенствование дошкольного образования Черемховского района на 2011-2014 гг.",null,907,"0701",7951800,"022",350]
[4,"Совершенствование организации питания в образовательных учреждениях Черемховского района на 2011-2013 гг.",null,907,"0702",7951600,"022",1000]
[5,"Развитие дошкольного образования на 2011-2014 гг.",null,907,"0701",7951700,"022",1102]
[6,"\"Безопасность образовательных учреждений\" 2010-2014гг.",null,907,"0701, 0702",7951000,"450",1700,null," "]
[7,"Инвентаризация муниципальных объектов недвижимости Черемховского районного муниципального образования на 2012-2014 годы","КУМИ",913,"0113, 0412, 0409",7951900,"500",2468.6]
[8,"Молодым семьям доступное жилье на 2012-2019гг.","Администрация ЧРМО ",917,1003,7952100,"005",360]
[9,"Комплексные меры профилактики злоупотребления наркотическими средствами, психотропними веществами в Черемховском районном муниципальном образовании на 2011-2013 гг.",null,917,"0707",7951300,500,10]
[10,"Молодежная политика в Черемховском районном муниципальном образовании на 2013-2015 ",null,917,"0707",7952500,447,40]
[11,"Развитие физической культуры, спорта и туризма в Черемховском районном муниципальном образовании на 2011-2013гг.",null,917,"1101",7951200,500,100]
[12,"Поддержка и развитие малого и среднего предпринимательства в Черемховском районе на 2013-2014 гг.",null,917,"0412",7952200,500,100]
[13,"Поддержка, проводимых мероприятий, посвященных Дням воинской славы, памятным датам России и работе с ветеранами и инвалидами в Черемховском районе на 2013-2015 гг.",null,917,"1006",7952400,500,100]
[14,"Улучшение условий и охраны труда в Черемховском районе на 2011-2013 гг",null,917,"0113",7951400,500,15]
[15,"Развитие автомобильных дорог Черемховского районного муниципального образования на 2013-2015 гг.",null,917,"0409",7952300,500,202.5]
[16,"Поддержка молодых педагогов на территории Черемховского районного муниципального образования на 2012-2013 гг.",null,917,"0113",7952700,500,100]
[17,"Обеспечение учреждений здравоохранения Черемховского районного муниципального образования квалифицированными медицинскими кадрами на 2013 год",null,917,"0909",7952800,500,200]
[18,"Профилактика правонарушений в Черемховском районном муниципальном образовании на 2013-2016 гг.",null,917,"0113",7952600,500,40]
[19,"Программа повышения энергетической эффективности Черемховского районного муниципального образования на 2010-2015 гг","Отдел образования АЧРМО",907,"0701, 0702",7951100,"451",600]
[null,null,"Отдел по культуре и библиотечному обслуживанию АЧРМО",903,"0800",7951099,"451",282]
[null,null,"Администрация ЧРМО ",917,"0104",7951100,"451",18.3]
[20,"Повышение эффективности бюджетных расходов Черемховского районного муниципального образования на 2012-2013 годы","Финансовое управление АЧРМО",910,"0106",7950200,"500",200]
[null,null,"Отдел образования АЧРМО",907,"0701, 0702",7950200,"001",12894.9]
[null,null,"Отдел по культуре и библиотечному обслуживанию АЧРМО",904,"0702, 0801",7950200,"001",858]
[null,null,"Муниципальные образования района, Всего, в том числе",{"$nulls":4},{"$f":"SUM(H45:H62)","v":3366}]
[null,null,"Алехинское сельское поселение",910,"1403",7950200,"017",326]
[null,null,"Бельское сельское поселение",910,"1403",7950200,"017",192]
[null,null,"Булайское сельское поселение",910,"1403",7950200,"017",255]
[null,null,"Голуметское сельское поселение",910,"1403",7950200,"017",187]
[null,null,"Зерновское сельское поселение",910,"1403",7950200,"017",174]
[null,null,"Каменно-Ангарское сельское поселение",910,"1403",7950200,"017",180]
[null,null,"Лоховское сельское поселение",910,"1403",7950200,"017",105]
[null,null,"Михайловское городское поселение",910,"1403",7950200,"017",257]
[null,null,"Нижнеиретское сельское поселение",910,"1403",7950200,"017",134]
[null,null,"Новогромовское сельское поселение",910,"1403",7950200,"017",143]
[null,null,"Новостроевское сельское поселение",910,"1403",7950200,"017",143]
[null,null,"Онотское сельское поселение",910,"1403",7950200,"017",211]
[null,null,"Парфеновское сельское поселение",910,"1403",7950200,"017",194]
[null,null,"Саянское сельское поселение",910,"1403",7950200,"017",165]
[null,null,"Тальниковское сельское поселение",910,"1403",7950200,"017",145]
[null,null,"Тунгусское сельское поселение",910,"1403",7950200,"017",163]
[null,null,"Узколугское сельское поселение",910,"1403",7950200,"017",197]
[null,null,"Черемховское сельское поселение",910,"1403",7950200,"017",195]
["Всего",{"$nulls":6},{"$f":"SUM(H20:H44)","v":28031.1}]
[]
[]
["Начальник финансового управления",{"$nulls":6},"Ю.Н. Гайдук"]

{"sheet":"прил18источн2013","index":10,"n_rows":31,"n_cols":3,"rows_kept":31,"cut":false,"hidden":false,"merged":[[13,0,13,2]]}
{"$rows_empty":13}
["Источники внутреннего финансирования дефицита бюджета Черемховского районного муниципального образования на 2013 год"]
[]
[null,null,"(тыс.рублей)"]
["Наименование","Код","Сумма"]
["Источники внутреннего финансирования дефицита бюджета","000 01 00 00 00 00 0000 000",{"$f":"C19+C25","v":19503.168850000075}]
["Кредиты кредитных организаций в валюте Российской Федерации","910 01 02 00 00 00 0000 000",{"$f":"C20+C22","v":4061.4479500000002}]
["Получение кредитов от кредитных организаций в валюте Российской Федерации","910 01 02 00 00 00 0000 700",{"$f":"C21","v":4061.4479500000002}]
["Кредиты, полученные в валюте Российской Федерации от кредитных организаций бюджетами муниципальных районнов","910 01 02 00 00 05 0000 710",4061.4479500000002]
["Бюджетные кредиты от других бюджетов бюджетной системы Российской Федерации ","910 01 03 00 00 00 0000 000",0]
["Погашение бюджетных кредитов, полученных от других бюджетов бюджетной системы Российской Федерации в валюте Российской Федерации","910 01 03 00 00 00 0000 800",0]
["Погашение бюджетами муниципальных районнов кредитов от других бюджетов бюджетной системы Российской Федерации в валюте Российской Федерации","910 01 03 00 00 05 0000 810",0]
["Изменение остатков средств на счетах по учету средств бюджетов","000 01 05 00 00 00 0000 000",{"$f":"C26+C28","v":15441.720900000073}]
["Увеличение остатков средств бюджетов","000 01 05 00 00 00 0000 500",{"$f":"C27","v":-601083.07909999997}]
["Увеличение прочих остатков  средств бюджетов","000 01 05 02 00 00 0000 500",-601083.07909999997]
["Уменьшение остатков средств бюджетов","000 01 05 00 00 00 0000 600",{"$f":"C29","v":616524.80000000005}]
["Уменьшение прочих остатков средств бюджетов","000 01 05 02 00 00 0000 600",616524.80000000005]
[]
["Начальник финансового управления",null,"Ю.Н. Гайдук"]

{"sheet":"прил19источ 2014-2015)","index":11,"n_rows":33,"n_cols":4,"rows_kept":33,"cut":false,"hidden":false,"merged":[[12,0,12,3]]}
{"$rows_empty":12}
["Источники внутреннего финансирования дефицита бюджета Черемховского районного муниципального образования на плановый период 2014 и 2015 годов"]
[]
[null,null,null,"(тыс.рублей)"]
["Наименование","Код"," 2014 год"," 2015 год"]
["Источники внутреннего финансирования дефицита бюджета","000 01 00 00 00 00 0000 000",{"$f":"C18+C26","v":4153.915},{"$f":"D18+D26","v":4315.2}]
["Кредиты кредитных организаций в валюте Российской Федерации","810 01 02 00 00 00 0000 000",{"$f":"C19+C21","v":4153.915},{"$f":"D19+D21","v":4315.2}]
["Получение кредитов от кредитных организаций в валюте Российской Федерации","810 01 02 00 00 00 0000 700",{"$f":"C20","v":4153.915},{"$f":"D20","v":4315.2}]
["Кредиты, полученные в валюте Российской Федерации от кредитных организаций бюджетами муниципальных районов","810 01 02 00 00 050000 710",4153.915,4315.2]
["Погашение кредитов, предоставленных кредитными организациями в валюте Российской Федерации","810 01 02 00 00 00 0000 800",{"$f":"C22","v":0},{"$f":"D22","v":0}]
["Погашение бюджетами муниципальных районов кредитов от кредитных организаций в валюте Российской Федерации","810 01 02 00 00 05 0000 810",0,0]
["Бюджетные кредиты от других бюджетов бюджетной системы Российской Федерации ","810 01 03 00 00 00 0000 000",0,0]
["Погашение бюджетных кредитов, полученных от других бюджетов бюджетной системы Российской Федерации в валюте Российской Федерации","810 01 03 00 00 00 0000 800",0,0]
["Погашение бюджетами муниципальных районов кредитов от других бюджетов бюджетной системы Российской Федерации в валюте Российской Федерации","810 01 03 00 00 05 0000 810",0,0]
["Изменение остатков средств на счетах по учету средств бюджетов","000 01 05 00 00 00 0000 000",{"$f":"C27+C29","v":0},{"$f":"D27+D29","v":0}]
["Увеличение остатков средств бюджетов","000 01 05 00 00 00 0000 500",{"$f":"C28","v":-463925},{"$f":"D28","v":-471640}]
["Увеличение прочих остатков  средств бюджетов","000 01 05 02 00 00 0000 500",-463925,-471640]
["Уменьшение остатков средств бюджетов","000 01 05 00 00 00 0000 600",{"$f":"C30","v":463925},{"$f":"D30","v":471640}]
["Уменьшение прочих остатков средств бюджетов","000 01 05 02 00 00 0000 600",463925,471640]
[]
[]
["Начальник финансового управления",null,null,"Ю.Н. Гайдук"]

{"sheet":"Лист1","index":12,"n_rows":0,"n_cols":0,"rows_kept":0,"cut":false,"hidden":false,"merged":[]}